Service Delivery Area(T),Service Delivery Team(T),ExpenditureGroup(T),Account(T),Supplier Name(T),Trans Date,Amount
"Business, Development & Employment","AD - Development, Business & Housing",Capital Expenditure,Legal Fees,Geldards LLP,23/05/2017,705.00
"Business, Development & Employment","AD - Development, Business & Housing",Capital Expenditure,Legal Fees,Geldards LLP,23/05/2017,702.00
"Business, Development & Employment","AD - Development, Business & Housing",Capital Expenditure,Payments to Contractor,Lovell Partnerships Limited,19/05/2017,"387,200.13"
"Business, Development & Employment","AD - Development, Business & Housing",Capital Expenditure,Payments to Contractor,Lovell Partnerships Limited,19/05/2017,"352,417.38"
"Business, Development & Employment",Business & Development planning,Contribution to provision,Advertising,Rightmove,02/05/2017,550.00
"Business, Development & Employment",Development Management & Planning Policy,Premises-Related Expenditure,Planned Repairs,JONES & HAMPTON LTD T/A BLUE SQUARE,31/05/2017,485.40
"Business, Development & Employment",Development Management & Planning Policy,Employees,Course Fees,RTPI WEST MIDLANDS,15/05/2017,175.00
"Business, Development & Employment",Development Management & Planning Policy,Supplies & Services,Subscriptions,HAYMARKET MEDIA GROUP LTD,22/05/2017,697.81
"Business, Development & Employment",Development Management & Planning Policy,Supplies & Services,Subscriptions,HAYMARKET MEDIA GROUP LTD,15/05/2017,644.00
"Business, Development & Employment",Development Management & Planning Policy,Supplies & Services,Legal Expenses,RAMADA TELFORD IRONBRIDGE,09/05/2017,"1,246.12"
"Business, Development & Employment",Development Management & Planning Policy,Supplies & Services,Advertising,THE MIDLAND NEWS ASSOCIATION LTD,22/05/2017,194.04
"Business, Development & Employment",Development Management & Planning Policy,Supplies & Services,Advertising,THE MIDLAND NEWS ASSOCIATION LTD,09/05/2017,277.20
"Business, Development & Employment",Development Management & Planning Policy,Supplies & Services,Advertising,THE MIDLAND NEWS ASSOCIATION LTD,18/05/2017,166.32
"Business, Development & Employment",Development Management & Planning Policy,Supplies & Services,Legal Expenses,WYG Environment Planning Transport Ltd,08/05/2017,"3,390.00"
"Business, Development & Employment",Development Management & Planning Policy,Supplies & Services,Comp Software (Purch / Hire),CONCERTO SUPPORT SERVICES LTD,17/05/2017,"10,750.00"
"Business, Development & Employment",Development Management & Planning Policy,Supplies & Services,Subscriptions,HAYMARKET MEDIA GROUP LTD,22/05/2017,697.81
"Business, Development & Employment",Development Management & Planning Policy,Supplies & Services,Subscriptions,HAYMARKET MEDIA GROUP LTD,15/05/2017,644.00
"Business, Development & Employment",Development Management & Planning Policy,Supplies & Services,Subscriptions,Shropshire Constructing Excellence,18/05/2017,175.00
"Business, Development & Employment",Development Management & Planning Policy,Supplies & Services,Consultants Fees,IRONBRIDGE GORGE MUSEUM TRUST LTD,08/05/2017,"9,224.65"
"Business, Development & Employment",Development Management & Planning Policy,Supplies & Services,Consultants Fees,AECOM INFRASTRUCTURE & ENVIRONMENT UK LTD,08/05/2017,"1,358.00"
"Business, Development & Employment",Development Management & Planning Policy,Employees,Professional Subs,HQN LTD,31/05/2017,"1,095.00"
"Business, Development & Employment",Development Management & Planning Policy,Supplies & Services,Advertising,THE MIDLAND NEWS ASSOCIATION LTD,22/05/2017,221.76
"Business, Development & Employment",Development Management & Planning Policy,Supplies & Services,Advertising,THE MIDLAND NEWS ASSOCIATION LTD,22/05/2017,471.24
"Business, Development & Employment",Development Management & Planning Policy,Supplies & Services,Subscriptions,HAYMARKET MEDIA GROUP LTD,22/05/2017,199.38
"Business, Development & Employment",Development Management & Planning Policy,Supplies & Services,Subscriptions,HAYMARKET MEDIA GROUP LTD,15/05/2017,184.00
"Business, Development & Employment",Development Management & Planning Policy,Supplies & Services,Consultants Fees,Trust Ecology,04/05/2017,500.00
"Business, Development & Employment",Development Management & Planning Policy,Supplies & Services,Subscriptions,World Heritage UK,04/05/2017,500.00
"Business, Development & Employment",Development Management & Planning Policy,Supplies & Services,Research Surveys,Peter Brett Associates LLP,04/05/2017,"1,305.00"
"Business, Development & Employment",Development Management & Planning Policy,Supplies & Services,Research Surveys,Peter Brett Associates LLP,17/05/2017,"3,663.00"
"Business, Development & Employment",Development Management & Planning Policy,Supplies & Services,Advertising,THE MIDLAND NEWS ASSOCIATION LTD,04/05/2017,221.76
"Business, Development & Employment",Development Management & Planning Policy,Capital Expenditure,Expenditure on loans & other financial assistance,Greener Renewables Limited C/O mfg Solicitors LLP,12/05/2017,"36,500.00"
"Business, Development & Employment",Estates & Investment,Premises-Related Expenditure,R&M -Buildings DLO Charge,(CIS) BRITISH GAS SERVICES LTD,23/05/2017,804.00
"Business, Development & Employment",Estates & Investment,Premises-Related Expenditure,R&M -Building Other,GRANVILLE CONSTRUCTION & MAINTENANCE LTD,15/05/2017,796.24
"Business, Development & Employment",Estates & Investment,Premises-Related Expenditure,R&M -Building Other,GRANVILLE CONSTRUCTION & MAINTENANCE LTD,16/05/2017,196.60
"Business, Development & Employment",Estates & Investment,Premises-Related Expenditure,R&M -Building Other,GRANVILLE CONSTRUCTION & MAINTENANCE LTD,25/05/2017,490.00
"Business, Development & Employment",Estates & Investment,Premises-Related Expenditure,Fire Alarms & Emergency Light,SECURITY WISE LTD,25/05/2017,185.00
"Business, Development & Employment",Estates & Investment,Premises-Related Expenditure,Gas,West Mercia Energy (WME),26/05/2017,838.88
"Business, Development & Employment",Estates & Investment,Premises-Related Expenditure,Gas,West Mercia Energy (WME),26/05/2017,134.58
"Business, Development & Employment",Estates & Investment,Premises-Related Expenditure,Gas,West Mercia Energy (WME),26/05/2017,622.85
"Business, Development & Employment",Estates & Investment,Premises-Related Expenditure,R&M -Building Other,DMW ENVIRONMENTAL SAFETY LTD,04/05/2017,"2,615.00"
"Business, Development & Employment",Estates & Investment,Premises-Related Expenditure,Dilapidations,DOOR LOADING SERVICES UK LTD,04/05/2017,788.00
"Business, Development & Employment",Estates & Investment,Premises-Related Expenditure,Electricity,EDF ENERGY CUSTOMERS PLC,17/05/2017,"15,588.27"
"Business, Development & Employment",Estates & Investment,Premises-Related Expenditure,R&M -Building Other,GRANVILLE CONSTRUCTION & MAINTENANCE LTD,11/05/2017,936.50
"Business, Development & Employment",Estates & Investment,Premises-Related Expenditure,R&M -Building Other,GRANVILLE CONSTRUCTION & MAINTENANCE LTD,15/05/2017,440.00
"Business, Development & Employment",Estates & Investment,Premises-Related Expenditure,R&M -Building Other,GRANVILLE CONSTRUCTION & MAINTENANCE LTD,15/05/2017,390.00
"Business, Development & Employment",Estates & Investment,Premises-Related Expenditure,Dilapidations,GRANVILLE CONSTRUCTION & MAINTENANCE LTD,16/05/2017,560.27
"Business, Development & Employment",Estates & Investment,Premises-Related Expenditure,R&M -Building Other,GRANVILLE CONSTRUCTION & MAINTENANCE LTD,09/05/2017,"7,200.00"
"Business, Development & Employment",Estates & Investment,Premises-Related Expenditure,R&M -Building Other,GRANVILLE CONSTRUCTION & MAINTENANCE LTD,09/05/2017,"7,404.00"
"Business, Development & Employment",Estates & Investment,Premises-Related Expenditure,R&M -Building Other,GRANVILLE CONSTRUCTION & MAINTENANCE LTD,09/05/2017,"3,042.00"
"Business, Development & Employment",Estates & Investment,Premises-Related Expenditure,R&M -Building Other,GRANVILLE CONSTRUCTION & MAINTENANCE LTD,18/05/2017,"1,491.16"
"Business, Development & Employment",Estates & Investment,Premises-Related Expenditure,R&M -Building Other,GRANVILLE CONSTRUCTION & MAINTENANCE LTD,19/05/2017,723.00
"Business, Development & Employment",Estates & Investment,Premises-Related Expenditure,R&M -Building Other,JCE & SONS LTD,15/05/2017,182.38
"Business, Development & Employment",Estates & Investment,Premises-Related Expenditure,R&M -Building Other,"LLM Locket, Loveday & McMahon Solicetors",16/05/2017,"1,000.00"
"Business, Development & Employment",Estates & Investment,Premises-Related Expenditure,R&M -Building Other,NOBRIDGE LTD,31/05/2017,150.00
"Business, Development & Employment",Estates & Investment,Premises-Related Expenditure,Electricity,NPOWER GAS,09/05/2017,176.11
"Business, Development & Employment",Estates & Investment,Premises-Related Expenditure,Electricity,NPOWER ELECTRICITY,09/05/2017,132.27
"Business, Development & Employment",Estates & Investment,Premises-Related Expenditure,Water Rates,WATER PLUS FORMERLY SEVERN TRENT WATER LTD,16/05/2017,547.97
"Business, Development & Employment",Estates & Investment,Premises-Related Expenditure,R&M -Building Other,WREKIN DRAIN SERVICES LTD,15/05/2017,170.00
"Business, Development & Employment",Estates & Investment,Supplies & Services,Advertising,3S PRINT & DISPLAY LIMITED,18/05/2017,120.00
"Business, Development & Employment",Estates & Investment,Supplies & Services,Advertising,3S PRINT & DISPLAY LIMITED,18/05/2017,140.00
"Business, Development & Employment",Estates & Investment,Supplies & Services,Security Services,BUSINESS WATCH GUARDING LIMITED,17/05/2017,"2,786.74"
"Business, Development & Employment",Estates & Investment,Supplies & Services,Other Services,EQUIFAX PLC,05/05/2017,110.32
"Business, Development & Employment",Estates & Investment,Supplies & Services,Payment Of Income Collected,HSBC EQUIPMENT FINANCE (UK) LIMITED,26/05/2017,"33,369.42"
"Business, Development & Employment",Estates & Investment,Supplies & Services,Payment Of Income Collected,HSBC EQUIPMENT FINANCE (UK) LIMITED,26/05/2017,"5,668.87"
"Business, Development & Employment",Estates & Investment,Supplies & Services,Payment Of Income Collected,HSBC EQUIPMENT FINANCE (UK) LIMITED,31/05/2017,"13,544.79"
"Business, Development & Employment",Estates & Investment,Supplies & Services,Payment Of Income Collected,HSBC EQUIPMENT FINANCE (UK) LIMITED,31/05/2017,"1,500.00"
"Business, Development & Employment",Estates & Investment,Supplies & Services,Other Services,MFG Solicitors,19/05/2017,350.00
"Business, Development & Employment",Estates & Investment,Supplies & Services,Security Services,MSM Hire Ltd,19/05/2017,209.00
"Business, Development & Employment",Estates & Investment,Premises-Related Expenditure,Electricity,(CIS) BRITISH GAS SERVICES LTD,02/05/2017,"-4,780.33"
"Business, Development & Employment",Estates & Investment,Premises-Related Expenditure,R&M -Building Other,APT CONTROLS LTD,05/05/2017,252.50
"Business, Development & Employment",Estates & Investment,Premises-Related Expenditure,R&M -Buildings DLO Charge,ARJOHUNTLEIGH UK,23/05/2017,264.00
"Business, Development & Employment",Estates & Investment,Premises-Related Expenditure,R&M WC Planned,BLACKDOWN HORTICULTURAL CONSULTANTS LTD,31/05/2017,778.50
"Business, Development & Employment",Estates & Investment,Premises-Related Expenditure,Electricity,BRITISH GAS BUSINESS,02/05/2017,"4,780.33"
"Business, Development & Employment",Estates & Investment,Premises-Related Expenditure,Electricity,BRITISH GAS BUSINESS,22/05/2017,"4,768.19"
"Business, Development & Employment",Estates & Investment,Premises-Related Expenditure,Electricity,BRITISH GAS BUSINESS,16/05/2017,284.14
"Business, Development & Employment",Estates & Investment,Premises-Related Expenditure,Electricity,BRITISH GAS BUSINESS ELEC,24/05/2017,"4,768.19"
"Business, Development & Employment",Estates & Investment,Premises-Related Expenditure,Electricity,BRITISH GAS BUSINESS ELEC,24/05/2017,"5,345.78"
"Business, Development & Employment",Estates & Investment,Premises-Related Expenditure,Contract Cleaning,BUSY BEE CLEANING,04/05/2017,166.00
"Business, Development & Employment",Estates & Investment,Premises-Related Expenditure,Window Cleaning,BUSY BEE CLEANING,05/05/2017,240.00
"Business, Development & Employment",Estates & Investment,Premises-Related Expenditure,Contract Cleaning,BUSY BEE CLEANING,09/05/2017,187.00
"Business, Development & Employment",Estates & Investment,Premises-Related Expenditure,Grounds Maintenance - L&CS,BUSY BEE CLEANING,05/05/2017,150.00
"Business, Development & Employment",Estates & Investment,Premises-Related Expenditure,Clean Mats & Toilet Requisites,CLEANIT CLEANING SERVICES,15/05/2017,498.33
"Business, Development & Employment",Estates & Investment,Premises-Related Expenditure,Gas,E.ON,09/05/2017,479.84
"Business, Development & Employment",Estates & Investment,Premises-Related Expenditure,Gas,Gazprom Energy,09/05/2017,"1,190.67"
"Business, Development & Employment",Estates & Investment,Premises-Related Expenditure,Gas,Gazprom Energy,25/05/2017,"1,007.03"
"Business, Development & Employment",Estates & Investment,Premises-Related Expenditure,Grounds Maintenance - L&CS,GO PLANT SWEEPERS T/A SHROPSHIRE ROADSWEEPERS,09/05/2017,225.00
"Business, Development & Employment",Estates & Investment,Premises-Related Expenditure,R&M -Building Other,GRANVILLE CONSTRUCTION & MAINTENANCE LTD,12/05/2017,277.88
"Business, Development & Employment",Estates & Investment,Premises-Related Expenditure,R&M - Pavillions,GRANVILLE CONSTRUCTION & MAINTENANCE LTD,16/05/2017,190.00
"Business, Development & Employment",Estates & Investment,Premises-Related Expenditure,R&M WC Planned,GRANVILLE CONSTRUCTION & MAINTENANCE LTD,16/05/2017,430.00
"Business, Development & Employment",Estates & Investment,Premises-Related Expenditure,Contract Cleaning,INITIAL WASHROOM SOLUTIONS,30/05/2017,126.58
"Business, Development & Employment",Estates & Investment,Premises-Related Expenditure,R&M -Building Other,JCE & SONS LTD,17/05/2017,"1,025.09"
"Business, Development & Employment",Estates & Investment,Premises-Related Expenditure,Grounds Maintenance - L&CS,MITIE LANDSCAPES LTD,15/05/2017,177.51
"Business, Development & Employment",Estates & Investment,Premises-Related Expenditure,Grounds Maintenance - L&CS,PROKILL UK LIMITED,19/05/2017,120.00
"Business, Development & Employment",Estates & Investment,Premises-Related Expenditure,Grounds Maintenance - L&CS,RMF LANDSCAPING LTD,19/05/2017,258.60
"Business, Development & Employment",Estates & Investment,Premises-Related Expenditure,Grounds Maintenance - L&CS,RMF LANDSCAPING LTD,19/05/2017,392.62
"Business, Development & Employment",Estates & Investment,Premises-Related Expenditure,Fire Alarms & Emergency Light,SECURITY WISE LTD,09/05/2017,190.00
"Business, Development & Employment",Estates & Investment,Premises-Related Expenditure,Fire Alarms & Emergency Light,SECURITY WISE LTD,25/05/2017,190.00
"Business, Development & Employment",Estates & Investment,Premises-Related Expenditure,R&M -Building Other,SECURITY WISE LTD,31/05/2017,190.00
"Business, Development & Employment",Estates & Investment,Premises-Related Expenditure,R&M -Building Other,SECURITY WISE LTD,31/05/2017,190.00
"Business, Development & Employment",Estates & Investment,Premises-Related Expenditure,Grounds Maintenance - L&CS,SPACECARE,16/05/2017,111.00
"Business, Development & Employment",Estates & Investment,Premises-Related Expenditure,Gas,TOTAL GAS & POWER LIMITED,22/05/2017,"1,260.91"
"Business, Development & Employment",Estates & Investment,Premises-Related Expenditure,Contract Cleaning,VEOLIA ES (UK) LTD,15/05/2017,204.06
"Business, Development & Employment",Estates & Investment,Premises-Related Expenditure,Clean Mats & Toilet Requisites,VEOLIA ES (UK) LTD,18/05/2017,213.33
"Business, Development & Employment",Estates & Investment,Premises-Related Expenditure,Water Rates,WATER PLUS FORMERLY SEVERN TRENT WATER LTD,26/05/2017,277.90
"Business, Development & Employment",Estates & Investment,Premises-Related Expenditure,Water Rates,WATER PLUS FORMERLY SEVERN TRENT WATER LTD,26/05/2017,"4,174.59"
"Business, Development & Employment",Estates & Investment,Premises-Related Expenditure,Electricity,West Mercia Energy (WME),09/05/2017,197.12
"Business, Development & Employment",Estates & Investment,Premises-Related Expenditure,R&M -Building Other,WINDOW & DOOR CONTRACT SERVICES,31/05/2017,402.35
"Business, Development & Employment",Estates & Investment,Supplies & Services,Security Services,BUSINESS WATCH GUARDING LIMITED,16/05/2017,362.19
"Business, Development & Employment",Estates & Investment,Supplies & Services,Security Services,BUSINESS WATCH GUARDING LIMITED,09/05/2017,"2,470.21"
"Business, Development & Employment",Estates & Investment,Supplies & Services,Security Services,SITEWATCH,26/05/2017,856.30
"Business, Development & Employment",Estates & Investment,Income,Advertising Income,3S PRINT & DISPLAY LIMITED,16/05/2017,179.00
"Business, Development & Employment",Estates & Investment,Income,Advertising Income,3S PRINT & DISPLAY LIMITED,17/05/2017,381.00
"Business, Development & Employment",Estates & Investment,Income,Advertising Income,3S PRINT & DISPLAY LIMITED,24/05/2017,360.00
"Business, Development & Employment",Estates & Investment,Premises-Related Expenditure,R&M -Building Other,GRANVILLE CONSTRUCTION & MAINTENANCE LTD,16/05/2017,117.99
"Business, Development & Employment",Estates & Investment,Premises-Related Expenditure,Fire Alarms & Emergency Light,Protec Fire Detection PLC,04/05/2017,223.82
"Business, Development & Employment",Estates & Investment,Premises-Related Expenditure,Fire Alarms & Emergency Light,SECURITY WISE LTD,30/05/2017,190.00
"Business, Development & Employment",Estates & Investment,Premises-Related Expenditure,R&M -Building Other,WREKIN SERVICES LTD,17/05/2017,360.00
"Business, Development & Employment",Estates & Investment,Premises-Related Expenditure,R&M -Building Other,WREKIN SERVICES LTD,17/05/2017,450.00
"Business, Development & Employment",Estates & Investment,Supplies & Services,Stationery,BemroseBooth Paragon,30/05/2017,"1,363.60"
"Business, Development & Employment",Estates & Investment,Supplies & Services,Stationery,BemroseBooth Paragon,18/05/2017,340.90
"Business, Development & Employment",Estates & Investment,Supplies & Services,Other Services,CreditCall Limited,30/05/2017,314.52
"Business, Development & Employment",Estates & Investment,Supplies & Services,Other Services,CreditCall Limited,18/05/2017,265.74
"Business, Development & Employment",Estates & Investment,Third Party Payments,Contractor Recharge,FITZGERALD CONTRACTORS LTD,30/05/2017,"12,236.79"
"Business, Development & Employment",Estates & Investment,Capital Expenditure,External Professional Fees,AECOM INFRASTRUCTURE & ENVIRONMENT UK LTD,31/05/2017,"2,089.03"
"Business, Development & Employment",Estates & Investment,Capital Expenditure,Payments to Contractor,ALUN GRIFFITHS (CONTRACTORS) LTD,19/05/2017,"82,190.99"
"Business, Development & Employment",Estates & Investment,Capital Expenditure,Land Purchase,HM Revenue & Customs,15/05/2017,"17,736.00"
"Business, Development & Employment",Estates & Investment,Capital Expenditure,Payments to Contractor,Lovell Partnerships Limited,22/05/2017,"100,862.02"
"Business, Development & Employment",Estates & Investment,Capital Expenditure,Payments to Contractor,Lovell Partnerships Limited,16/05/2017,"38,055.72"
"Business, Development & Employment",Estates & Investment,Capital Expenditure,Payments to Contractor,MCPHILLIPS (WELLINGTON) LTD,24/05/2017,"13,301.64"
"Business, Development & Employment",Estates & Investment,Capital Expenditure,Payments to Contractor,MCPHILLIPS (WELLINGTON) LTD,25/05/2017,"42,900.89"
"Business, Development & Employment",Estates & Investment,Capital Expenditure,External Professional Fees,Morland Property Ltd,12/05/2017,"74,375.00"
"Business, Development & Employment",Estates & Investment,Capital Expenditure,Payments to Contractor,Morris Property Ltd,22/05/2017,"438,837.40"
"Business, Development & Employment",Estates & Investment,Capital Expenditure,Payments to Contractor,PINSENT MASONS LLP,16/05/2017,"1,720.02"
"Business, Development & Employment",Estates & Investment,Capital Expenditure,Payments to Contractor,PINSENT MASONS LLP,16/05/2017,"8,886.25"
"Business, Development & Employment",Estates & Investment,Capital Expenditure,Payments to Contractor,PINSENT MASONS LLP,16/05/2017,"7,031.00"
"Business, Development & Employment",Estates & Investment,Capital Expenditure,Payments to Contractor,PINSENT MASONS LLP,16/05/2017,"4,006.00"
"Business, Development & Employment",Estates & Investment,Capital Expenditure,External Professional Fees,PINSENT MASONS LLP,16/05/2017,"1,444.00"
"Business, Development & Employment",Estates & Investment,Capital Expenditure,Payments to Contractor,PINSENT MASONS LLP,16/05/2017,"3,020.00"
"Business, Development & Employment",Estates & Investment,Capital Expenditure,Payments to Contractor,PINSENT MASONS LLP,16/05/2017,"1,500.00"
"Business, Development & Employment",Estates & Investment,Capital Expenditure,External Professional Fees,PINSENT MASONS LLP,16/05/2017,557.90
"Business, Development & Employment",Estates & Investment,Capital Expenditure,Payments to Contractor,PINSENT MASONS LLP,16/05/2017,842.00
"Business, Development & Employment",Estates & Investment,Capital Expenditure,Payments to Contractor,PRYCE (BUILDERS) LTD,23/05/2017,"6,352.08"
"Business, Development & Employment",Estates & Investment,Capital Expenditure,Payments to Contractor,SIGNS EXPRESS (TELFORD),18/05/2017,"2,803.16"
"Business, Development & Employment",Estates & Investment,Capital Expenditure,Payments to Contractor,SIGNS EXPRESS (TELFORD),18/05/2017,250.00
"Business, Development & Employment",Estates & Investment,Supplies & Services,Advertising,THE MIDLAND NEWS ASSOCIATION LTD,24/05/2017,110.88
"Business, Development & Employment",Estates & Investment,Capital Expenditure,Marketing / Advertising,3S PRINT & DISPLAY LIMITED,25/05/2017,185.00
"Business, Development & Employment",Estates & Investment,Capital Expenditure,Legal Fees,Geldards LLP,30/05/2017,717.00
"Business, Development & Employment",Estates & Investment,Capital Expenditure,Payments to Contractor,GRANVILLE CONSTRUCTION & MAINTENANCE LTD,04/05/2017,"5,800.00"
"Business, Development & Employment",Estates & Investment,Capital Expenditure,Payments to Contractor,GRANVILLE CONSTRUCTION & MAINTENANCE LTD,04/05/2017,"4,200.00"
"Business, Development & Employment",Estates & Investment,Capital Expenditure,Landscaping,NOBRIDGE LTD,04/05/2017,"2,790.00"
"Business, Development & Employment",Estates & Investment,Capital Expenditure,Payments to Contractor,PP ELECTRICAL SERVICES (Shropshire) Ltd,09/05/2017,"1,990.00"
"Business, Development & Employment",Estates & Investment,Capital Expenditure,Payments to Contractor,PRYCE (BUILDERS) LTD,15/05/2017,605.00
"Business, Development & Employment",Estates & Investment,Capital Expenditure,Payments to Contractor,TELFORD & WREKIN SERVICES LTD,23/05/2017,"2,078.50"
"Business, Development & Employment",Estates & Investment,Capital Expenditure,Other Capital Expenditure,VPS (UK) LTD,04/05/2017,440.00
"Business, Development & Employment",Estates & Investment,Capital Expenditure,Payments to Contractor,VPS (UK) LTD,04/05/2017,550.00
"Business, Development & Employment",Estates & Investment,Capital Expenditure,Other Capital Expenditure,VPS (UK) LTD,04/05/2017,440.00
"Business, Development & Employment",Estates & Investment,Capital Expenditure,Payments to Contractor,VPS (UK) LTD,15/05/2017,448.00
"Business, Development & Employment",Estates & Investment,Capital Expenditure,Marketing / Advertising,3S PRINT & DISPLAY LIMITED,03/05/2017,800.00
"Business, Development & Employment",Estates & Investment,Capital Expenditure,Payments to Contractor,AECOM INFRASTRUCTURE & ENVIRONMENT UK LTD,31/05/2017,321.39
"Business, Development & Employment",Estates & Investment,Capital Expenditure,Site Investigation,GROUND INVESTIGATION & PILING LTD,15/05/2017,"10,273.65"
"Business, Development & Employment",Estates & Investment,Capital Expenditure,Marketing / Advertising,Metropolis Business Publishing Ltd,23/05/2017,"2,905.00"
"Business, Development & Employment",Estates & Investment,Capital Expenditure,Payments to Contractor,ALS ENVIRONMENTAL LIMITED,17/05/2017,138.00
"Business, Development & Employment",Estates & Investment,Capital Expenditure,Payments to Contractor,BUSINESS WATCH GUARDING LIMITED,31/05/2017,310.00
"Business, Development & Employment",Estates & Investment,Capital Expenditure,Payments to Contractor,BUSINESS WATCH GUARDING LIMITED,31/05/2017,320.00
"Business, Development & Employment",Inward Investment & Business Support,Supplies & Services,Web Services,Interdirect Limited,04/05/2017,355.00
"Business, Development & Employment",Inward Investment & Business Support,Supplies & Services,Conference Expenses,MASH MEDIA GROUP LTD,19/05/2017,375.00
"Business, Development & Employment",Inward Investment & Business Support,Supplies & Services,Conference Expenses,MASH MEDIA GROUP LTD,19/05/2017,"2,975.00"
"Business, Development & Employment",Inward Investment & Business Support,Supplies & Services,Out of School Activities Insurance,ROB FINNEY PHOTOGRAPHY,17/05/2017,200.00
"Business, Development & Employment",Inward Investment & Business Support,Supplies & Services,Conference Expenses,TELFORD INTERNATIONAL CENTRE,22/05/2017,116.50
"Business, Development & Employment",Inward Investment & Business Support,Third Party Payments,Contribution To Other La's,SHROPSHIRE CHAMBER OF COMMERCE & ENTERPR,17/05/2017,"8,000.00"
"Business, Development & Employment",Inward Investment & Business Support,Supplies & Services,Other Grants (Expenses),Good2Great Ltd,17/05/2017,"5,062.71"
"Business, Development & Employment",Inward Investment & Business Support,Supplies & Services,Other Grants (Expenses),Good2Great Ltd,17/05/2017,385.33
"Business, Development & Employment",Inward Investment & Business Support,Supplies & Services,Other Grants (Expenses),Good2Great Ltd,17/05/2017,962.33
"Business, Development & Employment",Inward Investment & Business Support,Supplies & Services,Other Grants (Expenses),Good2Great Ltd,17/05/2017,192.67
"Business, Development & Employment",Inward Investment & Business Support,Supplies & Services,Other Grants (Expenses),Good2Great Ltd,17/05/2017,769.67
"Business, Development & Employment",Inward Investment & Business Support,Supplies & Services,Other Grants (Expenses),Start Up Enterprise Partnership Ltd,17/05/2017,"1,875.00"
"Business, Development & Employment",Inward Investment & Business Support,Premises-Related Expenditure,Hire Of Rooms,The Lighting Industrial Association,17/05/2017,176.70
"Business, Development & Employment",Inward Investment & Business Support,Supplies & Services,Printing - Print Room,Wiggly Worm Media Limited,17/05/2017,600.00
"Business, Development & Employment",Inward Investment & Business Support,Capital Expenditure,Payments to Contractor,PAVE AWAYS LTD,17/05/2017,"9,874.11"
"Business, Development & Employment",Inward Investment & Business Support,Capital Expenditure,Payments to Contractor,PAVE AWAYS LTD,24/05/2017,"25,754.86"
"Business, Development & Employment",Skills,Premises-Related Expenditure,Hire Of Rooms,INTERSERVE (FACILITIES MANAGEMENT) LTD,02/05/2017,192.00
"Business, Development & Employment",Skills,Premises-Related Expenditure,Hire Of Rooms,TELFORD & WREKIN CVS,18/05/2017,130.00
"Business, Development & Employment",Skills,Third Party Payments,Childminders,CHILDCARE SOS,22/05/2017,484.38
"Business, Development & Employment",Skills,Third Party Payments,Childminders,CHILDCARE SOS,22/05/2017,246.88
"Business, Development & Employment",Skills,Third Party Payments,Childminders,CHILDCARE SOS,22/05/2017,121.88
"Business, Development & Employment",Skills,Third Party Payments,Childminders,CHILDCARE SOS,22/05/2017,346.88
"Business, Development & Employment",Skills,Supplies & Services,Consumable Stores,For Skills Limited,22/05/2017,"1,116.00"
"Business, Development & Employment",Skills,Premises-Related Expenditure,Hire Of Rooms,MEETING POINT TRUST LTD,02/05/2017,208.40
"Business, Development & Employment",Skills,Supplies & Services,Equipment - Purchase,EUROPEAN ELECTRONIQUE LTD,02/05/2017,-123.78
"Business, Development & Employment",Skills,Employees,Staff Training,Kodo Education Ltd,02/05/2017,199.00
"Business, Development & Employment",Skills,Income,Fees & Charges General,British Association for Supported Employment,18/05/2017,300.00
"Business, Development & Employment",Skills,Employees,Course Fees,Navigation Learning,30/05/2017,125.00
"Business, Development & Employment",Skills,Income,Fees & Charges General,The Inspirational Learning Group Limited,18/05/2017,"8,000.00"
"Business, Development & Employment",Skills,Supplies & Services,Other Grants (Expenses),Majestic Distribution BITEC,17/05/2017,250.00
"Business, Development & Employment",Skills,Supplies & Services,Graphic Design Charges,Systematic Print Management Limited,22/05/2017,345.00
"Business, Development & Employment",Skills,Supplies & Services,Other Grants (Expenses),WOODSIDE MEDICAL PRACTICE,08/05/2017,250.00
"Business, Development & Employment",Skills,Supplies & Services,Instructors Fees,REDACTED PERSONAL INFORMATION,25/05/2017,"1,782.75"
"Business, Development & Employment",Skills,Third Party Payments,Childminders,CHILDCARE SOS,22/05/2017,156.25
"Business, Development & Employment",Skills,Premises-Related Expenditure,Hire Of Rooms,HOLLINSWOOD & RANDLAY PARISH COUNCIL,18/05/2017,432.00
"Business, Development & Employment",Skills,Supplies & Services,Other Grants (Expenses),The Employment & Skills Group,11/05/2017,526.82
"Business, Development & Employment",Skills,Supplies & Services,Other Grants (Expenses),The Employment & Skills Group,26/05/2017,"1,771.00"
"Business, Development & Employment",Skills,Transport-Related Expenditure,Travelling Expenses General,ARRIVA MIDLANDS NORTH LTD,26/05/2017,110.00
"Business, Development & Employment",Skills,Third Party Payments,Agency Services,CITY OF WOLVERHAMPTON COLLEGE,05/05/2017,"1,090.93"
"Business, Development & Employment",Skills,Third Party Payments,Agency Services,CITY OF WOLVERHAMPTON COLLEGE,19/05/2017,"1,090.93"
"Business, Development & Employment",Skills,Third Party Payments,Agency Services,CITY OF WOLVERHAMPTON COLLEGE,19/05/2017,"1,090.93"
"Business, Development & Employment",Skills,Third Party Payments,Agency Services,Newcastle Under-Lyme College,05/05/2017,"1,267.14"
"Business, Development & Employment",Skills,Third Party Payments,Agency Services,SOUTH STAFFORDSHIRE COLLEGE,30/05/2017,"3,083.33"
"Business, Development & Employment",Skills,Third Party Payments,Agency Services,STAFF SELECT LTD T/A NOVA TRAINING LTD,19/05/2017,"7,790.34"
"Business, Development & Employment",Skills,Third Party Payments,Agency Services,TELFORD COLLEGE OF ARTS & TECHNOLOGY,19/05/2017,"60,704.27"
"Business, Development & Employment",Skills,Third Party Payments,Agency Services,TELFORD COLLEGE OF ARTS & TECHNOLOGY,19/05/2017,"74,074.00"
"Business, Development & Employment",Skills,Third Party Payments,Agency Services,WALFORD & NORTH SHROPSHIRE COLLEGE,30/05/2017,"23,229.03"
Children's Safeguarding,Child Protection & Family Support,Employees,Staff Training,TALKING LIFE SEMINARS LTD,03/05/2017,801.66
Children's Safeguarding,Child Protection & Family Support,Supplies & Services,Other Travel,ARRIVA MIDLANDS NORTH LTD,09/05/2017,416.00
Children's Safeguarding,Child Protection & Family Support,Supplies & Services,CL - External Accommodation,REDACTED PERSONAL INFORMATION,16/05/2017,660.00
Children's Safeguarding,Child Protection & Family Support,Supplies & Services,CL - External Accommodation,REDACTED PERSONAL INFORMATION,19/05/2017,"1,980.00"
Children's Safeguarding,Child Protection & Family Support,Third Party Payments,Childminders,Twiggy's Day Nursery,09/05/2017,157.50
Children's Safeguarding,Child Protection & Family Support,Third Party Payments,Childminders,Twiggy's Day Nursery,09/05/2017,202.50
Children's Safeguarding,Child Protection & Family Support,Employees,Staff Training,TALKING LIFE SEMINARS LTD,03/05/2017,"1,603.32"
Children's Safeguarding,Child Protection & Family Support,Third Party Payments,Social Care External Contact,DMR Services Ltd,10/05/2017,252.00
Children's Safeguarding,Child Protection & Family Support,Third Party Payments,Social Care External Contact,DMR Services Ltd,02/05/2017,236.25
Children's Safeguarding,Child Protection & Family Support,Employees,Agency Supply Costs,Simply Umbrella Services Ltd,19/05/2017,240.00
Children's Safeguarding,Child Protection & Family Support,Employees,Staff Training,TALKING LIFE SEMINARS LTD,03/05/2017,"1,603.32"
Children's Safeguarding,Child Protection & Family Support,Supplies & Services,Legal Expenses,Wright McMillian Bennett Law,09/05/2017,572.20
Children's Safeguarding,Child Protection & Family Support,Supplies & Services,Legal Expenses,Wright McMillian Bennett Law,09/05/2017,455.91
Children's Safeguarding,Child Protection & Family Support,Third Party Payments,Childminders,ABC Day Nursery (LIGHTMOOR),19/05/2017,520.00
Children's Safeguarding,Child Protection & Family Support,Third Party Payments,Childminders,Charlie Caterpillars Day Nursery Limited,09/05/2017,124.20
Children's Safeguarding,Child Protection & Family Support,Third Party Payments,Childminders,NOAH'S ARK NURS & AFTER SCH CLUB,09/05/2017,149.00
Children's Safeguarding,Child Protection & Family Support,Transport-Related Expenditure,Mileage,REDACTED PERSONAL INFORMATION,09/05/2017,146.95
Children's Safeguarding,Child Protection & Family Support,Employees,Staff Training,TALKING LIFE SEMINARS LTD,03/05/2017,"1,603.32"
Children's Safeguarding,Child Protection & Family Support,Supplies & Services,Equipment - Hire,QUICK SKIPS (TELFORD) LTD,04/05/2017,115.00
Children's Safeguarding,Child Protection & Family Support,Supplies & Services,Equipment - Hire,QUICK SKIPS (TELFORD) LTD,05/05/2017,170.00
Children's Safeguarding,Child Protection & Family Support,Supplies & Services,Legal Expenses,Wright McMillian Bennett Law,09/05/2017,284.07
Children's Safeguarding,Child Protection & Family Support,contribution to provision,Legal,HM Courts and Tribunal service,16/05/2017,"1,125.00"
Children's Safeguarding,Child Protection & Family Support,Supplies & Services,Legal,REDACTED PERSONAL INFORMATION,17/05/2017,550.00
Children's Safeguarding,Child Protection & Family Support,Supplies & Services,Legal,REDACTED PERSONAL INFORMATION,17/05/2017,"2,500.00"
Children's Safeguarding,Child Protection & Family Support,Supplies & Services,Other Services,ALPHA BIOLABORATORIES LIMITED,10/05/2017,"1,330.00"
Children's Safeguarding,Child Protection & Family Support,Supplies & Services,Other Services,ALPHA BIOLABORATORIES LIMITED,10/05/2017,105.00
Children's Safeguarding,Child Protection & Family Support,Supplies & Services,Other Services,ALPHA BIOLABORATORIES LIMITED,10/05/2017,510.00
Children's Safeguarding,Child Protection & Family Support,Supplies & Services,Other Services,ALPHA BIOLABORATORIES LIMITED,17/05/2017,105.00
Children's Safeguarding,Child Protection & Family Support,Supplies & Services,Other Services,CARTER BROWN LIMITED,10/05/2017,"2,100.00"
Children's Safeguarding,Child Protection & Family Support,Supplies & Services,Other Services,CARTER BROWN LIMITED,10/05/2017,"2,100.00"
Children's Safeguarding,Child Protection & Family Support,Supplies & Services,Other Services,CARTER BROWN LIMITED,10/05/2017,"1,638.00"
Children's Safeguarding,Child Protection & Family Support,Supplies & Services,Other Services,CARTER BROWN LIMITED,17/05/2017,"3,200.00"
Children's Safeguarding,Child Protection & Family Support,Supplies & Services,Other Services,ELMHURST PSYCHOLOGY LTD,17/05/2017,395.50
Children's Safeguarding,Child Protection & Family Support,Supplies & Services,Other Services,FORENSIC PSYCHOLOGY PRACTICE,17/05/2017,"3,230.00"
Children's Safeguarding,Child Protection & Family Support,Supplies & Services,Other Services,PHOENIX FOSTERING,10/05/2017,280.00
Children's Safeguarding,Child Protection & Family Support,Supplies & Services,Other Services,Right Mediation,17/05/2017,750.00
Children's Safeguarding,Child Protection & Family Support,Supplies & Services,Other Services,Right Mediation,17/05/2017,800.00
Children's Safeguarding,Child Protection & Family Support,Supplies & Services,Other Services,The Deaf Health Charity Signhealth,10/05/2017,210.60
Children's Safeguarding,Child Protection & Family Support,Supplies & Services,Other Services,The Deaf Health Charity Signhealth,17/05/2017,210.60
Children's Safeguarding,Child Protection & Family Support,Supplies & Services,Other Services,WILCOX PSYCHOLOGICAL ASSOCIATES LTD,10/05/2017,"1,452.96"
Children's Safeguarding,Child Protection & Family Support,Third Party Payments,Joint Financing,SHROPSHIRE COUNCIL,10/05/2017,"-3,971.00"
Children's Safeguarding,Family Connect,Employees,Training Expenses,MENTAL HEALTH SOCIAL CARE STRTEGIC NETWO,24/05/2017,150.00
Children's Safeguarding,Family Connect,Third Party Payments,Interpreters Fees,WORD 360 T/AEXPRESS INTERPRETING & TRANSLATION,24/05/2017,196.00
Children's Safeguarding,Family Connect,Employees,Course Fees,UNIVERSITY OF WOLVERHAMPTON,12/05/2017,581.00
Children's Safeguarding,"Family Placements, Children in Care, Leaving Care & Emergency Duty Team",Income,Fees & Charges General,AT BROWN (COACHES) LTD,10/05/2017,282.00
Children's Safeguarding,"Family Placements, Children in Care, Leaving Care & Emergency Duty Team",Income,Fees & Charges General,ROYAL MAIL GROUP PLC,10/05/2017,217.86
Children's Safeguarding,"Family Placements, Children in Care, Leaving Care & Emergency Duty Team",Supplies & Services,Aids & Appliances,FIVE TOWNS CARE CENTRE LTD,05/05/2017,"3,176.00"
Children's Safeguarding,"Family Placements, Children in Care, Leaving Care & Emergency Duty Team",Third Party Payments,Agency Services,Direct Health Homecare Limited,10/05/2017,103.46
Children's Safeguarding,"Family Placements, Children in Care, Leaving Care & Emergency Duty Team",Supplies & Services,Other Services,Telford Sailability,03/05/2017,"1,000.00"
Children's Safeguarding,"Family Placements, Children in Care, Leaving Care & Emergency Duty Team",Third Party Payments,Agency Services,NESTOR PRIMECARE SERVICES LTD T/A ALLIED HEALTHCARE,12/05/2017,142.35
Children's Safeguarding,"Family Placements, Children in Care, Leaving Care & Emergency Duty Team",Employees,Staff Training,TALKING LIFE SEMINARS LTD,03/05/2017,"1,603.41"
Children's Safeguarding,"Family Placements, Children in Care, Leaving Care & Emergency Duty Team",Supplies & Services,Respite Care,CRUCKTON HALL SCHOOL,31/05/2017,"3,268.00"
Children's Safeguarding,"Family Placements, Children in Care, Leaving Care & Emergency Duty Team",Third Party Payments,Agency Services,ACTION FOR CHILDREN LIMITED,12/05/2017,"1,054.00"
Children's Safeguarding,"Family Placements, Children in Care, Leaving Care & Emergency Duty Team",Third Party Payments,Agency Services,Caretech LTD T/A Inspire (Acorn House),31/05/2017,840.00
Children's Safeguarding,"Family Placements, Children in Care, Leaving Care & Emergency Duty Team",Third Party Payments,Agency Services,Caretech LTD T/A Inspire (Acorn House),31/05/2017,652.26
Children's Safeguarding,"Family Placements, Children in Care, Leaving Care & Emergency Duty Team",Third Party Payments,Agency Services,Caretech LTD T/A Inspire (Acorn House),31/05/2017,372.26
Children's Safeguarding,"Family Placements, Children in Care, Leaving Care & Emergency Duty Team",Third Party Payments,Agency Services,Caretech LTD T/A Inspire (Acorn House),31/05/2017,744.52
Children's Safeguarding,"Family Placements, Children in Care, Leaving Care & Emergency Duty Team",Third Party Payments,Agency Services,Caretech LTD T/A Inspire (Acorn House),31/05/2017,372.26
Children's Safeguarding,"Family Placements, Children in Care, Leaving Care & Emergency Duty Team",Third Party Payments,Agency Services,Caretech LTD T/A Inspire (Acorn House),31/05/2017,490.00
Children's Safeguarding,"Family Placements, Children in Care, Leaving Care & Emergency Duty Team",Third Party Payments,Agency Services,Caretech LTD T/A Inspire (Acorn House),12/05/2017,744.52
Children's Safeguarding,"Family Placements, Children in Care, Leaving Care & Emergency Duty Team",Third Party Payments,Agency Services,Caretech LTD T/A Inspire (Acorn House),18/05/2017,"1,116.78"
Children's Safeguarding,"Family Placements, Children in Care, Leaving Care & Emergency Duty Team",Third Party Payments,Agency Services,Caretech LTD T/A Inspire (Acorn House),18/05/2017,"1,116.78"
Children's Safeguarding,"Family Placements, Children in Care, Leaving Care & Emergency Duty Team",Third Party Payments,Agency Services,Caretech LTD T/A Inspire (Acorn House),19/05/2017,"1,116.78"
Children's Safeguarding,"Family Placements, Children in Care, Leaving Care & Emergency Duty Team",Third Party Payments,Agency Services,Caretech LTD T/A Inspire (Acorn House),19/05/2017,"1,116.78"
Children's Safeguarding,"Family Placements, Children in Care, Leaving Care & Emergency Duty Team",Third Party Payments,Agency Services,Direct Health Homecare Limited,12/05/2017,"1,294.65"
Children's Safeguarding,"Family Placements, Children in Care, Leaving Care & Emergency Duty Team",Third Party Payments,Agency Services,Direct Health Homecare Limited,12/05/2017,115.20
Children's Safeguarding,"Family Placements, Children in Care, Leaving Care & Emergency Duty Team",Third Party Payments,Agency Services,Direct Health Homecare Limited,12/05/2017,324.00
Children's Safeguarding,"Family Placements, Children in Care, Leaving Care & Emergency Duty Team",Third Party Payments,Agency Services,Higford School,31/05/2017,"2,532.30"
Children's Safeguarding,"Family Placements, Children in Care, Leaving Care & Emergency Duty Team",Third Party Payments,Agency Services,NESTOR PRIMECARE SERVICES LTD T/A ALLIED HEALTHCARE,31/05/2017,363.60
Children's Safeguarding,"Family Placements, Children in Care, Leaving Care & Emergency Duty Team",Third Party Payments,Agency Services,NESTOR PRIMECARE SERVICES LTD T/A ALLIED HEALTHCARE,12/05/2017,200.00
Children's Safeguarding,"Family Placements, Children in Care, Leaving Care & Emergency Duty Team",Third Party Payments,Agency Services,NESTOR PRIMECARE SERVICES LTD T/A ALLIED HEALTHCARE,03/05/2017,300.79
Children's Safeguarding,"Family Placements, Children in Care, Leaving Care & Emergency Duty Team",Third Party Payments,Agency Services,NESTOR PRIMECARE SERVICES LTD T/A ALLIED HEALTHCARE,03/05/2017,420.66
Children's Safeguarding,"Family Placements, Children in Care, Leaving Care & Emergency Duty Team",Third Party Payments,Agency Services,NESTOR PRIMECARE SERVICES LTD T/A ALLIED HEALTHCARE,10/05/2017,228.52
Children's Safeguarding,"Family Placements, Children in Care, Leaving Care & Emergency Duty Team",Third Party Payments,Agency Services,NESTOR PRIMECARE SERVICES LTD T/A ALLIED HEALTHCARE,10/05/2017,560.88
Children's Safeguarding,"Family Placements, Children in Care, Leaving Care & Emergency Duty Team",Third Party Payments,Agency Services,Options Higford(Options Autism (5) Limited,12/05/2017,"6,720.00"
Children's Safeguarding,"Family Placements, Children in Care, Leaving Care & Emergency Duty Team",Supplies & Services,Advertising,Bauer Radio Ltd,12/05/2017,"1,000.00"
Children's Safeguarding,"Family Placements, Children in Care, Leaving Care & Emergency Duty Team",Supplies & Services,Advertising,Bauer Radio Ltd,03/05/2017,525.08
Children's Safeguarding,"Family Placements, Children in Care, Leaving Care & Emergency Duty Team",Income,Fees & Charges General,Calder Training & Consultancy Limited,31/05/2017,"1,100.00"
Children's Safeguarding,"Family Placements, Children in Care, Leaving Care & Emergency Duty Team",Income,Fees & Charges General,Fox & Associates T/A Strengthening Practice,04/05/2017,"4,075.00"
Children's Safeguarding,"Family Placements, Children in Care, Leaving Care & Emergency Duty Team",Income,Fees & Charges General,MEETING POINT TRUST LTD,04/05/2017,143.20
Children's Safeguarding,"Family Placements, Children in Care, Leaving Care & Emergency Duty Team",Income,Fees & Charges General,UNIVERSITY OF WOLVERHAMPTON,31/05/2017,296.06
Children's Safeguarding,"Family Placements, Children in Care, Leaving Care & Emergency Duty Team",Supplies & Services,Advertising,THE MIDLAND NEWS ASSOCIATION LTD,04/05/2017,313.52
Children's Safeguarding,"Family Placements, Children in Care, Leaving Care & Emergency Duty Team",Supplies & Services,Advertising,THE MIDLAND NEWS ASSOCIATION LTD,04/05/2017,189.00
Children's Safeguarding,"Family Placements, Children in Care, Leaving Care & Emergency Duty Team",Supplies & Services,Other Travel,ARRIVA MIDLANDS NORTH LTD,09/05/2017,893.10
Children's Safeguarding,"Family Placements, Children in Care, Leaving Care & Emergency Duty Team",Supplies & Services,Supportive Lodgings,BROMFORD HOUSING ASSOCIATION LIMITED,31/05/2017,781.80
Children's Safeguarding,"Family Placements, Children in Care, Leaving Care & Emergency Duty Team",Supplies & Services,Supportive Lodgings,Empowering U Care Ltd,31/05/2017,"7,503.16"
Children's Safeguarding,"Family Placements, Children in Care, Leaving Care & Emergency Duty Team",Supplies & Services,Supportive Lodgings,Empowering U Care Ltd,12/05/2017,"8,430.38"
Children's Safeguarding,"Family Placements, Children in Care, Leaving Care & Emergency Duty Team",Supplies & Services,Supportive Lodgings,Keys 16 Plus ILS Ltd,19/05/2017,"3,139.20"
Children's Safeguarding,"Family Placements, Children in Care, Leaving Care & Emergency Duty Team",Supplies & Services,CL - Basic Allowance,Keys 16 Plus ILS Ltd,16/05/2017,248.10
Children's Safeguarding,"Family Placements, Children in Care, Leaving Care & Emergency Duty Team",Supplies & Services,Supportive Lodgings,Life Skills Supporting Accommodation Ltd,12/05/2017,"6,642.86"
Children's Safeguarding,"Family Placements, Children in Care, Leaving Care & Emergency Duty Team",Supplies & Services,Supportive Lodgings,STAY TELFORD XC SUPPORTED HOUSE,18/05/2017,766.91
Children's Safeguarding,"Family Placements, Children in Care, Leaving Care & Emergency Duty Team",Supplies & Services,Supportive Lodgings,Swanton Care & Community Ltd (Darwin Community Support),12/05/2017,"8,676.60"
Children's Safeguarding,"Family Placements, Children in Care, Leaving Care & Emergency Duty Team",Transfer Payments,Leaving Care Grant,Stonewater Limited,12/05/2017,210.00
Children's Safeguarding,"Family Placements, Children in Care, Leaving Care & Emergency Duty Team",Transfer Payments,Leaving Care Grant,STUBLEYS WAREHOUSE,10/05/2017,225.00
Children's Safeguarding,"Family Placements, Children in Care, Leaving Care & Emergency Duty Team",Employees,Staff Training,TALKING LIFE SEMINARS LTD,03/05/2017,"2,404.98"
Children's Safeguarding,"Family Placements, Children in Care, Leaving Care & Emergency Duty Team",Supplies & Services,Other Travel,ARRIVA MIDLANDS NORTH LTD,09/05/2017,128.00
Children's Safeguarding,"Family Placements, Children in Care, Leaving Care & Emergency Duty Team",Supplies & Services,Other Travel,Idsall School Fund,19/05/2017,200.00
Children's Safeguarding,"Family Placements, Children in Care, Leaving Care & Emergency Duty Team",Third Party Payments,Childminders,EARLYWORLD LIMITED,31/05/2017,295.00
Children's Safeguarding,"Family Placements, Children in Care, Leaving Care & Emergency Duty Team",Third Party Payments,Childminders,Lawley Village Day Nursery,31/05/2017,155.10
Children's Safeguarding,"Family Placements, Children in Care, Leaving Care & Emergency Duty Team",Third Party Payments,Childminders,MOORLAND NURSERY SCHOOL,19/05/2017,132.90
Children's Safeguarding,"Family Placements, Children in Care, Leaving Care & Emergency Duty Team",Third Party Payments,Childminders,Sutton Hill Community Trust,19/05/2017,109.20
Children's Safeguarding,"Family Placements, Children in Care, Leaving Care & Emergency Duty Team",Third Party Payments,Childminders,WOODEN TOPS DAY NURSERY,19/05/2017,284.76
Children's Safeguarding,"Family Placements, Children in Care, Leaving Care & Emergency Duty Team",Transport-Related Expenditure,Taxi Costs,Wrixon Care Escorts and Outreach,19/05/2017,"1,166.45"
Children's Safeguarding,"Family Placements, Children in Care, Leaving Care & Emergency Duty Team",Third Party Payments,External Foster Care Payments,ABC FOSTERING SERVICES LTD,03/05/2017,"1,225.71"
Children's Safeguarding,"Family Placements, Children in Care, Leaving Care & Emergency Duty Team",Third Party Payments,External Foster Care Payments,ABC FOSTERING SERVICES LTD,18/05/2017,"3,129.69"
Children's Safeguarding,"Family Placements, Children in Care, Leaving Care & Emergency Duty Team",Third Party Payments,External Foster Care Payments,ABC FOSTERING SERVICES LTD,18/05/2017,"3,342.86"
Children's Safeguarding,"Family Placements, Children in Care, Leaving Care & Emergency Duty Team",Third Party Payments,External Foster Care Payments,ABC FOSTERING SERVICES LTD,19/05/2017,"3,342.86"
Children's Safeguarding,"Family Placements, Children in Care, Leaving Care & Emergency Duty Team",Third Party Payments,External Foster Care Payments,ACORN FOSTERING SERVICES,18/05/2017,"2,284.29"
Children's Safeguarding,"Family Placements, Children in Care, Leaving Care & Emergency Duty Team",Third Party Payments,External Foster Care Payments,ACORN FOSTERING SERVICES,18/05/2017,"3,492.86"
Children's Safeguarding,"Family Placements, Children in Care, Leaving Care & Emergency Duty Team",Third Party Payments,External Foster Care Payments,Childcare Bureau,19/05/2017,"3,917.40"
Children's Safeguarding,"Family Placements, Children in Care, Leaving Care & Emergency Duty Team",Third Party Payments,External Foster Care Payments,Children Always First,18/05/2017,"2,835.00"
Children's Safeguarding,"Family Placements, Children in Care, Leaving Care & Emergency Duty Team",Third Party Payments,External Foster Care Payments,Children Always First,18/05/2017,"2,835.00"
Children's Safeguarding,"Family Placements, Children in Care, Leaving Care & Emergency Duty Team",Third Party Payments,External Foster Care Payments,Children Always First,18/05/2017,"3,150.00"
Children's Safeguarding,"Family Placements, Children in Care, Leaving Care & Emergency Duty Team",Third Party Payments,External Foster Care Payments,Children Always First,18/05/2017,"3,514.29"
Children's Safeguarding,"Family Placements, Children in Care, Leaving Care & Emergency Duty Team",Third Party Payments,External Foster Care Payments,Children Always First,18/05/2017,"3,364.29"
Children's Safeguarding,"Family Placements, Children in Care, Leaving Care & Emergency Duty Team",Third Party Payments,External Foster Care Payments,COMPASS FOSTERING CENTRAL LTD,10/05/2017,103.00
Children's Safeguarding,"Family Placements, Children in Care, Leaving Care & Emergency Duty Team",Third Party Payments,External Foster Care Payments,COMPASS FOSTERING CENTRAL LTD,19/05/2017,"3,090.00"
Children's Safeguarding,"Family Placements, Children in Care, Leaving Care & Emergency Duty Team",Third Party Payments,External Foster Care Payments,COMPASS FOSTERING CENTRAL LTD,19/05/2017,"3,193.00"
Children's Safeguarding,"Family Placements, Children in Care, Leaving Care & Emergency Duty Team",Third Party Payments,External Foster Care Payments,FAMILIES@FAMILYCARE,26/05/2017,"2,962.32"
Children's Safeguarding,"Family Placements, Children in Care, Leaving Care & Emergency Duty Team",Third Party Payments,External Foster Care Payments,FAMILIES@FAMILYCARE,26/05/2017,"2,962.32"
Children's Safeguarding,"Family Placements, Children in Care, Leaving Care & Emergency Duty Team",Third Party Payments,External Foster Care Payments,FAMILIES@FAMILYCARE,26/05/2017,"3,385.51"
Children's Safeguarding,"Family Placements, Children in Care, Leaving Care & Emergency Duty Team",Third Party Payments,External Foster Care Payments,FAMILIES@FAMILYCARE,26/05/2017,"3,385.51"
Children's Safeguarding,"Family Placements, Children in Care, Leaving Care & Emergency Duty Team",Third Party Payments,External Foster Care Payments,FAMILIES@FAMILYCARE,18/05/2017,"2,703.04"
Children's Safeguarding,"Family Placements, Children in Care, Leaving Care & Emergency Duty Team",Third Party Payments,External Foster Care Payments,FAMILIES@FAMILYCARE,18/05/2017,"2,703.00"
Children's Safeguarding,"Family Placements, Children in Care, Leaving Care & Emergency Duty Team",Third Party Payments,External Foster Care Payments,FAMILIES@FAMILYCARE,25/05/2017,"2,793.10"
Children's Safeguarding,"Family Placements, Children in Care, Leaving Care & Emergency Duty Team",Third Party Payments,External Foster Care Payments,FAMILIES@FAMILYCARE,25/05/2017,"2,793.14"
Children's Safeguarding,"Family Placements, Children in Care, Leaving Care & Emergency Duty Team",Third Party Payments,External Foster Care Payments,FAMILIES@FAMILYCARE,19/05/2017,"2,866.76"
Children's Safeguarding,"Family Placements, Children in Care, Leaving Care & Emergency Duty Team",Third Party Payments,External Foster Care Payments,FAMILIES@FAMILYCARE,19/05/2017,"2,866.76"
Children's Safeguarding,"Family Placements, Children in Care, Leaving Care & Emergency Duty Team",Third Party Payments,External Foster Care Payments,FAMILIES@FAMILYCARE,19/05/2017,"3,276.30"
Children's Safeguarding,"Family Placements, Children in Care, Leaving Care & Emergency Duty Team",Third Party Payments,External Foster Care Payments,FAMILIES@FAMILYCARE,19/05/2017,"3,276.30"
Children's Safeguarding,"Family Placements, Children in Care, Leaving Care & Emergency Duty Team",Third Party Payments,External Foster Care Payments,FAMILY FOSTER CARE LTD,19/05/2017,"3,285.60"
Children's Safeguarding,"Family Placements, Children in Care, Leaving Care & Emergency Duty Team",Third Party Payments,External Foster Care Payments,FAMILY FOSTER CARE LTD,19/05/2017,"3,395.12"
Children's Safeguarding,"Family Placements, Children in Care, Leaving Care & Emergency Duty Team",Third Party Payments,External Foster Care Payments,FOSTER CARE ASSOCIATES LTD,31/05/2017,"-1,685.47"
Children's Safeguarding,"Family Placements, Children in Care, Leaving Care & Emergency Duty Team",Third Party Payments,External Foster Care Payments,FOSTER CARE ASSOCIATES LTD,31/05/2017,"-3,240.00"
Children's Safeguarding,"Family Placements, Children in Care, Leaving Care & Emergency Duty Team",Third Party Payments,External Foster Care Payments,FOSTER CARE ASSOCIATES LTD,31/05/2017,"1,669.20"
Children's Safeguarding,"Family Placements, Children in Care, Leaving Care & Emergency Duty Team",Third Party Payments,External Foster Care Payments,FOSTER CARE ASSOCIATES LTD,31/05/2017,"3,240.00"
Children's Safeguarding,"Family Placements, Children in Care, Leaving Care & Emergency Duty Team",Third Party Payments,External Foster Care Payments,FOSTER CARE ASSOCIATES LTD,22/05/2017,"3,234.10"
Children's Safeguarding,"Family Placements, Children in Care, Leaving Care & Emergency Duty Team",Third Party Payments,External Foster Care Payments,FOSTER CARE ASSOCIATES LTD,22/05/2017,"3,198.27"
Children's Safeguarding,"Family Placements, Children in Care, Leaving Care & Emergency Duty Team",Third Party Payments,External Foster Care Payments,FOSTER CARE ASSOCIATES LTD,22/05/2017,"3,265.60"
Children's Safeguarding,"Family Placements, Children in Care, Leaving Care & Emergency Duty Team",Third Party Payments,External Foster Care Payments,FOSTER CARE ASSOCIATES LTD,22/05/2017,"4,113.97"
Children's Safeguarding,"Family Placements, Children in Care, Leaving Care & Emergency Duty Team",Third Party Payments,External Foster Care Payments,FOSTER CARE ASSOCIATES LTD,19/05/2017,"3,981.30"
Children's Safeguarding,"Family Placements, Children in Care, Leaving Care & Emergency Duty Team",Third Party Payments,External Foster Care Payments,FOSTER CARE ASSOCIATES LTD,19/05/2017,"3,159.00"
Children's Safeguarding,"Family Placements, Children in Care, Leaving Care & Emergency Duty Team",Third Party Payments,External Foster Care Payments,FOSTER CARE ASSOCIATES LTD,19/05/2017,"3,129.75"
Children's Safeguarding,"Family Placements, Children in Care, Leaving Care & Emergency Duty Team",Third Party Payments,External Foster Care Payments,FOSTER CARE ASSOCIATES LTD,19/05/2017,"3,095.10"
Children's Safeguarding,"Family Placements, Children in Care, Leaving Care & Emergency Duty Team",Third Party Payments,External Foster Care Payments,FOSTER CARE ASSOCIATES LTD,19/05/2017,"3,160.26"
Children's Safeguarding,"Family Placements, Children in Care, Leaving Care & Emergency Duty Team",Third Party Payments,External Foster Care Payments,FOSTER CARE ASSOCIATES LTD,19/05/2017,"3,115.12"
Children's Safeguarding,"Family Placements, Children in Care, Leaving Care & Emergency Duty Team",Third Party Payments,External Foster Care Payments,FOSTER CARE ASSOCIATES LTD,19/05/2017,"3,264.30"
Children's Safeguarding,"Family Placements, Children in Care, Leaving Care & Emergency Duty Team",Third Party Payments,External Foster Care Payments,FOSTER CARE ASSOCIATES LTD,19/05/2017,"3,218.96"
Children's Safeguarding,"Family Placements, Children in Care, Leaving Care & Emergency Duty Team",Third Party Payments,External Foster Care Payments,FOSTER CARE ASSOCIATES LTD,19/05/2017,"3,115.12"
Children's Safeguarding,"Family Placements, Children in Care, Leaving Care & Emergency Duty Team",Third Party Payments,External Foster Care Payments,FOSTER CARE ASSOCIATES LTD,19/05/2017,"3,218.96"
Children's Safeguarding,"Family Placements, Children in Care, Leaving Care & Emergency Duty Team",Third Party Payments,External Foster Care Payments,FOSTER CARE ASSOCIATES LTD,19/05/2017,"3,159.00"
Children's Safeguarding,"Family Placements, Children in Care, Leaving Care & Emergency Duty Team",Third Party Payments,External Foster Care Payments,FOSTER CARE ASSOCIATES LTD,19/05/2017,"3,264.30"
Children's Safeguarding,"Family Placements, Children in Care, Leaving Care & Emergency Duty Team",Third Party Payments,External Foster Care Payments,FOSTERING SOLUTIONS LTD,19/05/2017,"3,450.00"
Children's Safeguarding,"Family Placements, Children in Care, Leaving Care & Emergency Duty Team",Third Party Payments,External Foster Care Payments,FOSTERING SOLUTIONS LTD,19/05/2017,"3,432.01"
Children's Safeguarding,"Family Placements, Children in Care, Leaving Care & Emergency Duty Team",Third Party Payments,External Foster Care Payments,FOSTERING SOLUTIONS LTD,19/05/2017,"1,352.40"
Children's Safeguarding,"Family Placements, Children in Care, Leaving Care & Emergency Duty Team",Third Party Payments,External Foster Care Payments,FOSTERING SOLUTIONS LTD,19/05/2017,"3,321.30"
Children's Safeguarding,"Family Placements, Children in Care, Leaving Care & Emergency Duty Team",Third Party Payments,External Foster Care Payments,FOSTERING SOLUTIONS LTD,19/05/2017,"3,376.74"
Children's Safeguarding,"Family Placements, Children in Care, Leaving Care & Emergency Duty Team",Third Party Payments,External Foster Care Payments,FOSTERING SOLUTIONS LTD,19/05/2017,"3,267.81"
Children's Safeguarding,"Family Placements, Children in Care, Leaving Care & Emergency Duty Team",Third Party Payments,External Foster Care Payments,FOSTERING SOLUTIONS LTD,19/05/2017,"3,565.00"
Children's Safeguarding,"Family Placements, Children in Care, Leaving Care & Emergency Duty Team",Third Party Payments,External Foster Care Payments,FOSTERING SOLUTIONS LTD,19/05/2017,"3,450.00"
Children's Safeguarding,"Family Placements, Children in Care, Leaving Care & Emergency Duty Team",Third Party Payments,External Foster Care Payments,FOSTERING SOLUTIONS LTD,19/05/2017,"2,185.00"
Children's Safeguarding,"Family Placements, Children in Care, Leaving Care & Emergency Duty Team",Third Party Payments,External Foster Care Payments,NATIONAL FOSTERING AGENCY,31/05/2017,"3,233.30"
Children's Safeguarding,"Family Placements, Children in Care, Leaving Care & Emergency Duty Team",Third Party Payments,External Foster Care Payments,NATIONAL FOSTERING AGENCY,31/05/2017,"-1,877.40"
Children's Safeguarding,"Family Placements, Children in Care, Leaving Care & Emergency Duty Team",Third Party Payments,External Foster Care Payments,NATIONAL FOSTERING AGENCY,12/05/2017,"1,199.66"
Children's Safeguarding,"Family Placements, Children in Care, Leaving Care & Emergency Duty Team",Third Party Payments,External Foster Care Payments,NATIONAL FOSTERING AGENCY,18/05/2017,"3,065.10"
Children's Safeguarding,"Family Placements, Children in Care, Leaving Care & Emergency Duty Team",Third Party Payments,External Foster Care Payments,NATIONAL FOSTERING AGENCY,18/05/2017,"3,129.00"
Children's Safeguarding,"Family Placements, Children in Care, Leaving Care & Emergency Duty Team",Third Party Payments,External Foster Care Payments,NATIONAL FOSTERING AGENCY,18/05/2017,"3,065.10"
Children's Safeguarding,"Family Placements, Children in Care, Leaving Care & Emergency Duty Team",Third Party Payments,External Foster Care Payments,NATIONAL FOSTERING AGENCY,19/05/2017,"3,204.90"
Children's Safeguarding,"Family Placements, Children in Care, Leaving Care & Emergency Duty Team",Third Party Payments,External Foster Care Payments,NEXUS FOSTERING,19/05/2017,"3,060.00"
Children's Safeguarding,"Family Placements, Children in Care, Leaving Care & Emergency Duty Team",Third Party Payments,External Foster Care Payments,NEXUS FOSTERING,19/05/2017,"3,486.00"
Children's Safeguarding,"Family Placements, Children in Care, Leaving Care & Emergency Duty Team",Third Party Payments,External Foster Care Payments,NEXUS FOSTERING,19/05/2017,"3,162.00"
Children's Safeguarding,"Family Placements, Children in Care, Leaving Care & Emergency Duty Team",Third Party Payments,External Foster Care Payments,NEXUS FOSTERING,19/05/2017,"3,602.20"
Children's Safeguarding,"Family Placements, Children in Care, Leaving Care & Emergency Duty Team",Third Party Payments,External Foster Care Payments,ORANGE GROVE FOSTERCARE LTD,10/05/2017,"2,708.64"
Children's Safeguarding,"Family Placements, Children in Care, Leaving Care & Emergency Duty Team",Third Party Payments,External Foster Care Payments,ORANGE GROVE FOSTERCARE LTD,19/05/2017,"3,385.80"
Children's Safeguarding,"Family Placements, Children in Care, Leaving Care & Emergency Duty Team",Third Party Payments,External Foster Care Payments,ORANGE GROVE FOSTERCARE LTD,19/05/2017,"3,498.66"
Children's Safeguarding,"Family Placements, Children in Care, Leaving Care & Emergency Duty Team",Third Party Payments,External Foster Care Payments,ORANGE GROVE FOSTERCARE LTD,19/05/2017,"2,678.70"
Children's Safeguarding,"Family Placements, Children in Care, Leaving Care & Emergency Duty Team",Third Party Payments,External Foster Care Payments,ORANGE GROVE FOSTERCARE LTD,19/05/2017,"3,385.71"
Children's Safeguarding,"Family Placements, Children in Care, Leaving Care & Emergency Duty Team",Third Party Payments,External Foster Care Payments,ORANGE GROVE FOSTERCARE LTD,19/05/2017,"3,344.59"
Children's Safeguarding,"Family Placements, Children in Care, Leaving Care & Emergency Duty Team",Third Party Payments,External Foster Care Payments,ORANGE GROVE FOSTERCARE LTD,19/05/2017,"2,767.99"
Children's Safeguarding,"Family Placements, Children in Care, Leaving Care & Emergency Duty Team",Third Party Payments,External Foster Care Payments,ORANGE GROVE FOSTERCARE LTD,19/05/2017,"3,236.70"
Children's Safeguarding,"Family Placements, Children in Care, Leaving Care & Emergency Duty Team",Third Party Payments,External Foster Care Payments,ORANGE GROVE FOSTERCARE LTD,19/05/2017,"3,498.66"
Children's Safeguarding,"Family Placements, Children in Care, Leaving Care & Emergency Duty Team",Third Party Payments,External Foster Care Payments,ORANGE GROVE FOSTERCARE LTD,19/05/2017,"3,498.57"
Children's Safeguarding,"Family Placements, Children in Care, Leaving Care & Emergency Duty Team",Third Party Payments,External Foster Care Payments,ORANGE GROVE FOSTERCARE LTD,19/05/2017,"3,385.80"
Children's Safeguarding,"Family Placements, Children in Care, Leaving Care & Emergency Duty Team",Third Party Payments,External Foster Care Payments,PARK FOSTER CARE,31/05/2017,"3,240.00"
Children's Safeguarding,"Family Placements, Children in Care, Leaving Care & Emergency Duty Team",Third Party Payments,External Foster Care Payments,PARK FOSTER CARE,12/05/2017,217.14
Children's Safeguarding,"Family Placements, Children in Care, Leaving Care & Emergency Duty Team",Third Party Payments,External Foster Care Payments,PARK FOSTER CARE,22/05/2017,"3,240.00"
Children's Safeguarding,"Family Placements, Children in Care, Leaving Care & Emergency Duty Team",Third Party Payments,External Foster Care Payments,PARK FOSTER CARE,18/05/2017,"3,257.14"
Children's Safeguarding,"Family Placements, Children in Care, Leaving Care & Emergency Duty Team",Third Party Payments,External Foster Care Payments,PARK FOSTER CARE,18/05/2017,"3,450.00"
Children's Safeguarding,"Family Placements, Children in Care, Leaving Care & Emergency Duty Team",Third Party Payments,External Foster Care Payments,PARK FOSTER CARE,10/05/2017,"-8,121.60"
Children's Safeguarding,"Family Placements, Children in Care, Leaving Care & Emergency Duty Team",Third Party Payments,External Foster Care Payments,PARK FOSTER CARE,19/05/2017,"3,309.60"
Children's Safeguarding,"Family Placements, Children in Care, Leaving Care & Emergency Duty Team",Third Party Payments,External Foster Care Payments,Prospects for Young People Ltd,31/05/2017,"2,763.12"
Children's Safeguarding,"Family Placements, Children in Care, Leaving Care & Emergency Duty Team",Third Party Payments,External Foster Care Payments,Prospects for Young People Ltd,31/05/2017,-108.00
Children's Safeguarding,"Family Placements, Children in Care, Leaving Care & Emergency Duty Team",Third Party Payments,External Foster Care Payments,Prospects for Young People Ltd,31/05/2017,"3,497.73"
Children's Safeguarding,"Family Placements, Children in Care, Leaving Care & Emergency Duty Team",Third Party Payments,External Foster Care Payments,Prospects for Young People Ltd,12/05/2017,"2,872.46"
Children's Safeguarding,"Family Placements, Children in Care, Leaving Care & Emergency Duty Team",Third Party Payments,External Foster Care Payments,Prospects for Young People Ltd,03/05/2017,"3,604.99"
Children's Safeguarding,"Family Placements, Children in Care, Leaving Care & Emergency Duty Team",Third Party Payments,External Foster Care Payments,Prospects for Young People Ltd,03/05/2017,"3,609.33"
Children's Safeguarding,"Family Placements, Children in Care, Leaving Care & Emergency Duty Team",Third Party Payments,External Foster Care Payments,Prospects for Young People Ltd,18/05/2017,"3,568.99"
Children's Safeguarding,"Family Placements, Children in Care, Leaving Care & Emergency Duty Team",Third Party Payments,External Foster Care Payments,Prospects for Young People Ltd,10/05/2017,"3,492.90"
Children's Safeguarding,"Family Placements, Children in Care, Leaving Care & Emergency Duty Team",Third Party Payments,External Foster Care Payments,Prospects for Young People Ltd,10/05/2017,543.00
Children's Safeguarding,"Family Placements, Children in Care, Leaving Care & Emergency Duty Team",Third Party Payments,External Foster Care Payments,Prospects for Young People Ltd,10/05/2017,"3,052.57"
Children's Safeguarding,"Family Placements, Children in Care, Leaving Care & Emergency Duty Team",Third Party Payments,External Foster Care Payments,Prospects for Young People Ltd,10/05/2017,"3,453.90"
Children's Safeguarding,"Family Placements, Children in Care, Leaving Care & Emergency Duty Team",Third Party Payments,External Foster Care Payments,Prospects for Young People Ltd,19/05/2017,"3,604.99"
Children's Safeguarding,"Family Placements, Children in Care, Leaving Care & Emergency Duty Team",Third Party Payments,External Foster Care Payments,Prospects for Young People Ltd,19/05/2017,"3,453.90"
Children's Safeguarding,"Family Placements, Children in Care, Leaving Care & Emergency Duty Team",Third Party Payments,External Foster Care Payments,Prospects for Young People Ltd,19/05/2017,"3,488.70"
Children's Safeguarding,"Family Placements, Children in Care, Leaving Care & Emergency Duty Team",Third Party Payments,External Foster Care Payments,Prospects for Young People Ltd,19/05/2017,"3,453.90"
Children's Safeguarding,"Family Placements, Children in Care, Leaving Care & Emergency Duty Team",Third Party Payments,External Foster Care Payments,Prospects for Young People Ltd,19/05/2017,"3,569.03"
Children's Safeguarding,"Family Placements, Children in Care, Leaving Care & Emergency Duty Team",Third Party Payments,External Foster Care Payments,Prospects for Young People Ltd,19/05/2017,"2,872.46"
Children's Safeguarding,"Family Placements, Children in Care, Leaving Care & Emergency Duty Team",Third Party Payments,External Foster Care Payments,Prospects for Young People Ltd,19/05/2017,"3,569.03"
Children's Safeguarding,"Family Placements, Children in Care, Leaving Care & Emergency Duty Team",Third Party Payments,External Foster Care Payments,Prospects for Young People Ltd,19/05/2017,"2,954.10"
Children's Safeguarding,"Family Placements, Children in Care, Leaving Care & Emergency Duty Team",Third Party Payments,External Foster Care Payments,Prospects for Young People Ltd,19/05/2017,"2,779.80"
Children's Safeguarding,"Family Placements, Children in Care, Leaving Care & Emergency Duty Team",Third Party Payments,External Foster Care Payments,Prospects for Young People Ltd,19/05/2017,"3,052.57"
Children's Safeguarding,"Family Placements, Children in Care, Leaving Care & Emergency Duty Team",Third Party Payments,External Foster Care Payments,REGIONAL FOSTER PLACEMENTS,31/05/2017,"2,485.68"
Children's Safeguarding,"Family Placements, Children in Care, Leaving Care & Emergency Duty Team",Third Party Payments,External Foster Care Payments,St Christopher's Fellowship,31/05/2017,"3,406.90"
Children's Safeguarding,"Family Placements, Children in Care, Leaving Care & Emergency Duty Team",Third Party Payments,External Foster Care Payments,St Christopher's Fellowship,22/05/2017,"3,406.90"
Children's Safeguarding,"Family Placements, Children in Care, Leaving Care & Emergency Duty Team",Third Party Payments,External Foster Care Payments,St Christopher's Fellowship,03/05/2017,336.42
Children's Safeguarding,"Family Placements, Children in Care, Leaving Care & Emergency Duty Team",Third Party Payments,External Foster Care Payments,St Christopher's Fellowship,18/05/2017,"3,297.00"
Children's Safeguarding,"Family Placements, Children in Care, Leaving Care & Emergency Duty Team",Third Party Payments,External Foster Care Payments,St Christopher's Fellowship,19/05/2017,"3,297.00"
Children's Safeguarding,"Family Placements, Children in Care, Leaving Care & Emergency Duty Team",Third Party Payments,External Foster Care Payments,SWIIS FOSTER CARE LTD,18/05/2017,"3,600.00"
Children's Safeguarding,"Family Placements, Children in Care, Leaving Care & Emergency Duty Team",Third Party Payments,External Foster Care Payments,SWIIS FOSTER CARE LTD,18/05/2017,"3,739.80"
Children's Safeguarding,"Family Placements, Children in Care, Leaving Care & Emergency Duty Team",Employees,Staff Training,Coram Academy Limited,10/05/2017,238.00
Children's Safeguarding,"Family Placements, Children in Care, Leaving Care & Emergency Duty Team",Employees,Staff Training,Kate Cairns Associates Ltd,10/05/2017,500.00
Children's Safeguarding,"Family Placements, Children in Care, Leaving Care & Emergency Duty Team",Employees,Other Employee Costs,POSTURITE (UK) LTD,20/05/2017,249.00
Children's Safeguarding,"Family Placements, Children in Care, Leaving Care & Emergency Duty Team",Premises-Related Expenditure,Hire Of Rooms,MEETING POINT TRUST LTD,11/05/2017,143.20
Children's Safeguarding,"Family Placements, Children in Care, Leaving Care & Emergency Duty Team",Premises-Related Expenditure,Hire Of Rooms,MEETING POINT TRUST LTD,03/05/2017,120.20
Children's Safeguarding,"Family Placements, Children in Care, Leaving Care & Emergency Duty Team",Supplies & Services,Respite Care,Caretech LTD T/A Inspire (Acorn House),20/05/2017,372.26
Children's Safeguarding,"Family Placements, Children in Care, Leaving Care & Emergency Duty Team",Supplies & Services,Doctors Fees,COURT STREET MEDICAL PRACTICE,31/05/2017,247.50
Children's Safeguarding,"Family Placements, Children in Care, Leaving Care & Emergency Duty Team",Supplies & Services,Comp Hardware (Purch / Hire),EUROPEAN ELECTRONIQUE LTD,02/05/2017,105.32
Children's Safeguarding,"Family Placements, Children in Care, Leaving Care & Emergency Duty Team",Supplies & Services,Comp Hardware (Purch / Hire),EUROPEAN ELECTRONIQUE LTD,02/05/2017,108.99
Children's Safeguarding,"Family Placements, Children in Care, Leaving Care & Emergency Duty Team",Supplies & Services,Advertising,Exterion Media (UK) Limited,03/05/2017,"2,420.00"
Children's Safeguarding,"Family Placements, Children in Care, Leaving Care & Emergency Duty Team",Supplies & Services,Subscriptions,FOSTERING NETWORK,10/05/2017,"5,106.00"
Children's Safeguarding,"Family Placements, Children in Care, Leaving Care & Emergency Duty Team",Supplies & Services,Legal Expenses,Mortimers,03/05/2017,450.65
Children's Safeguarding,"Family Placements, Children in Care, Leaving Care & Emergency Duty Team",Supplies & Services,Comp Software (Purch / Hire),PHOENIX SOFTWARE LTD,02/05/2017,107.21
Children's Safeguarding,"Family Placements, Children in Care, Leaving Care & Emergency Duty Team",Supplies & Services,Advertising,Redbus Media Group,23/05/2017,229.75
Children's Safeguarding,"Family Placements, Children in Care, Leaving Care & Emergency Duty Team",Supplies & Services,Advertising,THE MIDLAND NEWS ASSOCIATION LTD,23/05/2017,269.10
Children's Safeguarding,"Family Placements, Children in Care, Leaving Care & Emergency Duty Team",Supplies & Services,Advertising,THE MIDLAND NEWS ASSOCIATION LTD,23/05/2017,539.10
Children's Safeguarding,"Family Placements, Children in Care, Leaving Care & Emergency Duty Team",Supplies & Services,Advertising,THE MIDLAND NEWS ASSOCIATION LTD,23/05/2017,359.10
Children's Safeguarding,"Family Placements, Children in Care, Leaving Care & Emergency Duty Team",Supplies & Services,Doctors Fees,WOODSIDE MEDICAL PRACTICE,10/05/2017,110.00
Children's Safeguarding,"Family Placements, Children in Care, Leaving Care & Emergency Duty Team",Supplies & Services,Legal Expenses,Wright McMillian Bennett Law,20/05/2017,284.94
Children's Safeguarding,"Family Placements, Children in Care, Leaving Care & Emergency Duty Team",Third Party Payments,Childminders,EARLYWORLD LIMITED,31/05/2017,295.00
Children's Safeguarding,"Family Placements, Children in Care, Leaving Care & Emergency Duty Team",Transport-Related Expenditure,Contract Hire,CENTRAL TAXIS LTD T/A GO CARZ,20/05/2017,186.24
Children's Safeguarding,"Family Placements, Children in Care, Leaving Care & Emergency Duty Team",Third Party Payments,Residential Expenditure,CARE TODAY CHILDRENS SERVICES,19/05/2017,"2,948.70"
Children's Safeguarding,"Family Placements, Children in Care, Leaving Care & Emergency Duty Team",Third Party Payments,Residential Expenditure,Coram Voice,10/05/2017,486.95
Children's Safeguarding,"Family Placements, Children in Care, Leaving Care & Emergency Duty Team",Third Party Payments,Residential Expenditure,HORIZON CARE & EDUCATION GROUP LTD,25/05/2017,"13,644.34"
Children's Safeguarding,"Family Placements, Children in Care, Leaving Care & Emergency Duty Team",Third Party Payments,Residential Expenditure,HORIZON CARE & EDUCATION GROUP LTD,25/05/2017,"16,680.00"
Children's Safeguarding,"Family Placements, Children in Care, Leaving Care & Emergency Duty Team",Third Party Payments,Residential Expenditure,HORIZON CARE & EDUCATION GROUP LTD,25/05/2017,"17,236.00"
Children's Safeguarding,"Family Placements, Children in Care, Leaving Care & Emergency Duty Team",Third Party Payments,Residential Expenditure,HORIZON CARE & EDUCATION GROUP LTD,25/05/2017,"13,204.20"
Children's Safeguarding,"Family Placements, Children in Care, Leaving Care & Emergency Duty Team",Third Party Payments,Residential Expenditure,Neath Port Talbot,31/05/2017,"21,600.00"
Children's Safeguarding,"Family Placements, Children in Care, Leaving Care & Emergency Duty Team",Third Party Payments,Residential Expenditure,Neath Port Talbot,03/05/2017,"23,250.00"
Children's Safeguarding,"Family Placements, Children in Care, Leaving Care & Emergency Duty Team",Third Party Payments,Residential Expenditure,Neath Port Talbot,19/05/2017,121.00
Children's Safeguarding,"Family Placements, Children in Care, Leaving Care & Emergency Duty Team",Third Party Payments,Residential Expenditure,Oracle Care Limited,25/05/2017,"19,285.71"
Children's Safeguarding,"Family Placements, Children in Care, Leaving Care & Emergency Duty Team",Third Party Payments,Residential Expenditure,Oracle Care Limited,25/05/2017,"19,928.57"
Children's Safeguarding,"Family Placements, Children in Care, Leaving Care & Emergency Duty Team",Third Party Payments,Residential Expenditure,SUNFIELD CHILDRENS HOMES LTD,12/05/2017,"15,691.17"
Children's Safeguarding,"Family Placements, Children in Care, Leaving Care & Emergency Duty Team",Third Party Payments,Residential Expenditure,YOUNG OPTIONS COLLEGE LTD,26/05/2017,"17,050.00"
Children's Safeguarding,"Family Placements, Children in Care, Leaving Care & Emergency Duty Team",Third Party Payments,Residential Expenditure,YOUNG OPTIONS COLLEGE LTD,25/05/2017,"16,500.00"
Children's Safeguarding,"Family Placements, Children in Care, Leaving Care & Emergency Duty Team",Third Party Payments,Residential Expenditure,YOUNG OPTIONS COLLEGE LTD,25/05/2017,"15,342.87"
Children's Safeguarding,"Family Placements, Children in Care, Leaving Care & Emergency Duty Team",Third Party Payments,Residential Expenditure,YOUNG OPTIONS COLLEGE LTD,25/05/2017,"14,847.94"
Children's Safeguarding,Safeguarding Advisory,Supplies & Services,Supportive Lodgings,Care Solutions Ltd,03/05/2017,"1,395.00"
Children's Safeguarding,Safeguarding Advisory,Supplies & Services,CL - Basic Allowance,Care Solutions Ltd,03/05/2017,289.50
Children's Safeguarding,Safeguarding Advisory,Supplies & Services,Supportive Lodgings,Care Solutions Ltd,17/05/2017,"1,350.00"
Children's Safeguarding,Safeguarding Advisory,Supplies & Services,CL - Basic Allowance,Care Solutions Ltd,17/05/2017,231.60
Children's Safeguarding,Safeguarding Advisory,Supplies & Services,Supportive Lodgings,YMCA,10/05/2017,117.85
Children's Safeguarding,Safeguarding Advisory,Supplies & Services,Supportive Lodgings,YMCA,10/05/2017,684.06
Children's Safeguarding,Safeguarding Advisory,Third Party Payments,External Foster Care Payments,FOSTER CARE ASSOCIATES LTD,22/05/2017,"3,264.30"
Children's Safeguarding,Safeguarding Advisory,Third Party Payments,External Foster Care Payments,FOSTER CARE ASSOCIATES LTD,22/05/2017,"3,449.68"
Children's Safeguarding,Safeguarding Advisory,Third Party Payments,External Foster Care Payments,FOSTER CARE ASSOCIATES LTD,17/05/2017,"3,338.40"
Children's Safeguarding,Safeguarding Advisory,Third Party Payments,External Foster Care Payments,FOSTER CARE ASSOCIATES LTD,17/05/2017,"3,159.00"
Children's Safeguarding,Safeguarding Advisory,Supplies & Services,Computer Software (Maint),LIQUIDLOGIC LIMITED,03/05/2017,"48,741.00"
Commercial Services,Catering,Premises-Related Expenditure,Clean Mats & Toilet Requisites,Border Janitorial Supplies Limited,04/05/2017,275.00
Commercial Services,Catering,Premises-Related Expenditure,Clean Mats & Toilet Requisites,Border Janitorial Supplies Limited,24/05/2017,121.28
Commercial Services,Catering,Premises-Related Expenditure,Clean Mats & Toilet Requisites,Border Janitorial Supplies Limited,24/05/2017,312.31
Commercial Services,Catering,Premises-Related Expenditure,Clean Mats & Toilet Requisites,Border Janitorial Supplies Limited,24/05/2017,235.54
Commercial Services,Catering,Supplies & Services,Equipment - Purchase,ACUTE SALES LIMITED,02/05/2017,"1,294.00"
Commercial Services,Catering,Supplies & Services,Equipment - Purchase,TRUVOX INTERNATIONAL LIMITED,24/05/2017,"2,498.57"
Commercial Services,Catering,Supplies & Services,Advertising,THE MIDLAND NEWS ASSOCIATION LTD,10/05/2017,194.40
Commercial Services,Catering,Premises-Related Expenditure,Clean Mats & Toilet Requisites,Border Janitorial Supplies Limited,04/05/2017,275.00
Commercial Services,Catering,Premises-Related Expenditure,Clean Mats & Toilet Requisites,Border Janitorial Supplies Limited,04/05/2017,276.79
Commercial Services,Catering,Premises-Related Expenditure,Clean Mats & Toilet Requisites,Border Janitorial Supplies Limited,04/05/2017,276.79
Commercial Services,Catering,Premises-Related Expenditure,Clean Mats & Toilet Requisites,Border Janitorial Supplies Limited,04/05/2017,275.00
Commercial Services,Catering,Premises-Related Expenditure,Clean Mats & Toilet Requisites,Border Janitorial Supplies Limited,04/05/2017,276.79
Commercial Services,Catering,Premises-Related Expenditure,Clean Mats & Toilet Requisites,Border Janitorial Supplies Limited,04/05/2017,276.79
Commercial Services,Catering,Premises-Related Expenditure,Clean Mats & Toilet Requisites,Border Janitorial Supplies Limited,04/05/2017,276.79
Commercial Services,Catering,Premises-Related Expenditure,Clean Mats & Toilet Requisites,Border Janitorial Supplies Limited,04/05/2017,276.79
Commercial Services,Catering,Premises-Related Expenditure,Clean Mats & Toilet Requisites,Border Janitorial Supplies Limited,04/05/2017,276.79
Commercial Services,Catering,Premises-Related Expenditure,Clean Mats & Toilet Requisites,Border Janitorial Supplies Limited,24/05/2017,123.70
Commercial Services,Catering,Premises-Related Expenditure,Clean Mats & Toilet Requisites,Border Janitorial Supplies Limited,24/05/2017,126.09
Commercial Services,Catering,Premises-Related Expenditure,Clean Mats & Toilet Requisites,THE CLEAN MACHINE DIRECT LTD,04/05/2017,103.56
Commercial Services,Catering,Supplies & Services,Equipment - Repair,THE CLEAN MACHINE DIRECT LTD,03/05/2017,121.33
Commercial Services,Catering,Supplies & Services,Equipment - Repair,THE CLEAN MACHINE DIRECT LTD,04/05/2017,972.78
Commercial Services,Catering,Supplies & Services,Equipment - Repair,THE CLEAN MACHINE DIRECT LTD,04/05/2017,142.78
Commercial Services,Catering,Supplies & Services,Equipment - Repair,THE CLEAN MACHINE DIRECT LTD,04/05/2017,433.24
Commercial Services,Catering,Supplies & Services,Equipment - Repair,THE CLEAN MACHINE DIRECT LTD,04/05/2017,294.09
Commercial Services,ICT,Supplies & Services,Telecomms,Airband Community Internet,12/05/2017,295.00
Commercial Services,ICT,Supplies & Services,Telecomms,Airband Community Internet,12/05/2017,295.00
Commercial Services,ICT,Supplies & Services,Telecomms,Airband Community Internet,04/05/2017,295.00
Commercial Services,ICT,Supplies & Services,Telephones,CAPITA IT SERVICES LIMITED,11/05/2017,"1,340.00"
Commercial Services,ICT,Supplies & Services,Telephones,CAPITA IT SERVICES LIMITED,11/05/2017,980.07
Commercial Services,ICT,Supplies & Services,Telecomms,CAPITA IT SERVICES LIMITED,11/05/2017,"1,850.00"
Commercial Services,ICT,Supplies & Services,Telecomms,CAPITA IT SERVICES LIMITED,11/05/2017,405.20
Commercial Services,ICT,Supplies & Services,Mobile Phones,EE LTD AIRTIME ,08/05/2017,"25,280.63"
Commercial Services,ICT,Supplies & Services,Mobile Phones,EE LTD AIRTIME,08/05/2017,"1,658.64"
Commercial Services,ICT,Supplies & Services,Comp Hardware (Purch / Hire),EUROPEAN ELECTRONIQUE LTD,11/05/2017,811.20
Commercial Services,ICT,Supplies & Services,Comp Hardware (Purch / Hire),EUROPEAN ELECTRONIQUE LTD,11/05/2017,112.74
Commercial Services,ICT,Supplies & Services,Comp Hardware (Purch / Hire),EUROPEAN ELECTRONIQUE LTD,11/05/2017,"1,019.12"
Commercial Services,ICT,Supplies & Services,Comp Hardware (Purch / Hire),EUROPEAN ELECTRONIQUE LTD,11/05/2017,"1,010.64"
Commercial Services,ICT,Supplies & Services,Comp Hardware (Purch / Hire),EUROPEAN ELECTRONIQUE LTD,25/05/2017,176.00
Commercial Services,ICT,Supplies & Services,Other Expenses,PROCESS FLOWS UK LTD,15/05/2017,520.68
Commercial Services,ICT,Supplies & Services,Telephones,VIRGIN MEDIA BUSINESS LTD,04/05/2017,"9,343.75"
Commercial Services,ICT,Supplies & Services,Telecomms,JISC SERVICES LTD,18/05/2017,"13,673.50"
Commercial Services,ICT,Supplies & Services,Computer Software (Maint),Planet Enterprises Ltd T/A PLANET DV,15/05/2017,"11,998.40"
Commercial Services,ICT,Supplies & Services,Comp Software (Purch / Hire),Planet Enterprises Ltd T/A PLANET DV,15/05/2017,"5,110.00"
Commercial Services,ICT,Premises-Related Expenditure,R&M -Buildings DLO Charge,Aqua Cooling,31/05/2017,286.70
Commercial Services,ICT,Premises-Related Expenditure,R&M -Building Other,AVK/SEG (UK) Ltd,31/05/2017,759.48
Commercial Services,ICT,Premises-Related Expenditure,R&M -Building Other,Churches Fire Security Ltd,04/05/2017,422.90
Commercial Services,ICT,Supplies & Services,Telecomms,Airband Community Internet,12/05/2017,250.00
Commercial Services,ICT,Supplies & Services,Telecomms,Airband Community Internet,12/05/2017,250.00
Commercial Services,ICT,Supplies & Services,Computer Software (Maint),CAPITA IT SERVICES LIMITED,11/05/2017,"13,000.00"
Commercial Services,ICT,Supplies & Services,Telephones,EUROPEAN ELECTRONIQUE LTD,11/05/2017,161.60
Commercial Services,ICT,Supplies & Services,Telecomms,JISC SERVICES LTD,18/05/2017,"13,698.50"
Commercial Services,ICT,Supplies & Services,Comp Software (Purch / Hire),NORTHGATEARINSO UK LTD,18/05/2017,"31,298.35"
Commercial Services,ICT,Supplies & Services,Comp Software (Purch / Hire),PHOENIX SOFTWARE LTD,10/05/2017,"230,221.53"
Commercial Services,ICT,Supplies & Services,Comp Software (Purch / Hire),PHOENIX SOFTWARE LTD,11/05/2017,"1,404.72"
Commercial Services,ICT,Supplies & Services,Comp Software (Purch / Hire),PHOENIX SOFTWARE LTD,11/05/2017,796.05
Commercial Services,ICT,Supplies & Services,Comp Software (Purch / Hire),PHOENIX SOFTWARE LTD,11/05/2017,"3,512.91"
Commercial Services,ICT,Supplies & Services,Comp Software (Purch / Hire),PHOENIX SOFTWARE LTD,11/05/2017,"24,116.48"
Commercial Services,ICT,Supplies & Services,Comp Software (Purch / Hire),PHOENIX SOFTWARE LTD,11/05/2017,"13,497.12"
Commercial Services,ICT,Transport-Related Expenditure,Servicing & Repairs V&P,MORGANS W/SCREENS LTD T/A NAT WINDSCREEN,12/05/2017,140.00
Commercial Services,ICT,Supplies & Services,Stationery,PREMIER PAPER GROUP LTD,10/05/2017,310.50
Commercial Services,ICT,Supplies & Services,Equipment - Hire,RICOH UK LIMITED,19/05/2017,"7,069.78"
Commercial Services,ICT,Supplies & Services,Equipment - Hire,RICOH UK LIMITED,19/05/2017,"7,069.78"
Commercial Services,ICT,Supplies & Services,Telephones,Digital Exchange Products Ltd,25/05/2017,280.00
Commercial Services,ICT,Supplies & Services,Comp Software (Purch / Hire),PHOENIX SOFTWARE LTD,10/05/2017,"345,187.15"
Commercial Services,ICT,Supplies & Services,Comp Software (Purch / Hire),PHOENIX SOFTWARE LTD,11/05/2017,"4,938.90"
Commercial Services,ICT,Supplies & Services,Comp Software (Purch / Hire),PHOENIX SOFTWARE LTD,11/05/2017,353.44
Commercial Services,ICT,Supplies & Services,Comp Software (Purch / Hire),PHOENIX SOFTWARE LTD,11/05/2017,132.48
Commercial Services,ICT,Supplies & Services,Comp Software (Purch / Hire),PHOENIX SOFTWARE LTD,11/05/2017,"8,400.00"
Commercial Services,ICT,Supplies & Services,Comp Software (Purch / Hire),PHOENIX SOFTWARE LTD,11/05/2017,"1,737.36"
Commercial Services,ICT,Supplies & Services,Comp Software (Purch / Hire),PHOENIX SOFTWARE LTD,11/05/2017,"8,619.34"
Commercial Services,ICT,Supplies & Services,Comp Software (Purch / Hire),PHOENIX SOFTWARE LTD,25/05/2017,"1,200.00"
Commercial Services,ICT,Capital Expenditure,Computer Hardware,EUROPEAN ELECTRONIQUE LTD,02/05/2017,216.00
Commercial Services,ICT,Capital Expenditure,Computer Hardware,EUROPEAN ELECTRONIQUE LTD,02/05/2017,"1,750.00"
Commercial Services,ICT,Capital Expenditure,Computer Hardware,XMA LIMITED,23/05/2017,"1,053,755.50"
Commercial Services,ICT,Capital Expenditure,Computer Hardware,XMA LIMITED,31/05/2017,480.00
Commercial Services,ICT,Capital Expenditure,Computer Hardware,XMA LIMITED,31/05/2017,"36,011.64"
Commercial Services,Policy & Strategy,Supplies & Services,Other Services,IZEN Energy Systems,02/05/2017,"14,195.01"
Commercial Services,Property & Design (BiT),Supplies & Services,Equipment - Purchase,European Innovation Limited,26/05/2017,500.00
Commercial Services,Property & Design (BiT),Supplies & Services,Advertising,Kensa Creative Ltd,26/05/2017,"2,880.00"
Commercial Services,Property & Design (BiT),Supplies & Services,Printing - Other,STANFORD MARSH FINANCE LTD,05/05/2017,234.26
Commercial Services,Property & Design (BiT),Supplies & Services,Equipment - Hire,STANFORD MARSH FINANCE LTD,05/05/2017,148.70
Commercial Services,Property & Design (BiT),Premises-Related Expenditure,R&M -Buildings DLO Charge,(CIS) BRITISH GAS SERVICES LTD,30/05/2017,335.00
Commercial Services,Property & Design (BiT),Premises-Related Expenditure,R&M -Buildings DLO Charge,(CIS) BRITISH GAS SERVICES LTD,23/05/2017,301.50
Commercial Services,Property & Design (BiT),Premises-Related Expenditure,R&M -Buildings DLO Charge,(CIS) BRITISH GAS SERVICES LTD,23/05/2017,201.00
Commercial Services,Property & Design (BiT),Premises-Related Expenditure,R&M -Buildings DLO Charge,(CIS) BRITISH GAS SERVICES LTD,23/05/2017,301.50
Commercial Services,Property & Design (BiT),Premises-Related Expenditure,R&M -Buildings DLO Charge,(CIS) BRITISH GAS SERVICES LTD,23/05/2017,301.50
Commercial Services,Property & Design (BiT),Premises-Related Expenditure,R&M -Buildings DLO Charge,(CIS) BRITISH GAS SERVICES LTD,23/05/2017,335.00
Commercial Services,Property & Design (BiT),Premises-Related Expenditure,R&M -Buildings DLO Charge,(CIS) BRITISH GAS SERVICES LTD,23/05/2017,301.50
Commercial Services,Property & Design (BiT),Premises-Related Expenditure,R&M -Buildings DLO Charge,A1 Glass & Glazing (Shropshire) Limited,30/05/2017,190.00
Commercial Services,Property & Design (BiT),Premises-Related Expenditure,R&M -Buildings DLO Charge,A1 Glass & Glazing (Shropshire) Limited,30/05/2017,170.00
Commercial Services,Property & Design (BiT),Premises-Related Expenditure,R&M -Buildings DLO Charge,AGS AUTOMATIC DOORS LTD,09/05/2017,120.00
Commercial Services,Property & Design (BiT),Premises-Related Expenditure,R&M -Buildings DLO Charge,AGS AUTOMATIC DOORS LTD,09/05/2017,145.00
Commercial Services,Property & Design (BiT),Premises-Related Expenditure,R&M -Buildings DLO Charge,ANGEL SPRINGS LTD / PHS GROUP,30/05/2017,462.11
Commercial Services,Property & Design (BiT),Premises-Related Expenditure,R&M -Buildings DLO Charge,AQUALOGIC (WC) LTD,30/05/2017,113.90
Commercial Services,Property & Design (BiT),Premises-Related Expenditure,R&M -Buildings DLO Charge,AQUALOGIC (WC) LTD,30/05/2017,102.70
Commercial Services,Property & Design (BiT),Premises-Related Expenditure,R&M -Buildings DLO Charge,AQUALOGIC (WC) LTD,30/05/2017,233.10
Commercial Services,Property & Design (BiT),Premises-Related Expenditure,R&M -Buildings DLO Charge,AQUALOGIC (WC) LTD,30/05/2017,102.70
Commercial Services,Property & Design (BiT),Premises-Related Expenditure,Service Contracts,AQUALOGIC (WC) LTD,30/05/2017,124.40
Commercial Services,Property & Design (BiT),Premises-Related Expenditure,R&M -Buildings DLO Charge,ARJOHUNTLEIGH UK,23/05/2017,132.00
Commercial Services,Property & Design (BiT),Premises-Related Expenditure,R&M -Buildings DLO Charge,ARJOHUNTLEIGH UK,23/05/2017,162.00
Commercial Services,Property & Design (BiT),Premises-Related Expenditure,R&M -Buildings DLO Charge,ASLES (TOOL HIRE & SALES) LTD,16/05/2017,265.00
Commercial Services,Property & Design (BiT),Premises-Related Expenditure,R&M -Buildings DLO Charge,BRADLEY INDUSTRIAL SERVICES,23/05/2017,151.35
Commercial Services,Property & Design (BiT),Premises-Related Expenditure,R&M -Buildings DLO Charge,BRADLEY INDUSTRIAL SERVICES,23/05/2017,309.85
Commercial Services,Property & Design (BiT),Premises-Related Expenditure,R&M -Buildings DLO Charge,Clearstone Solutions Ltd,30/05/2017,"1,249.00"
Commercial Services,Property & Design (BiT),Premises-Related Expenditure,R&M -Buildings DLO Charge,COOL SERVICES LTD,30/05/2017,111.16
Commercial Services,Property & Design (BiT),Premises-Related Expenditure,R&M -Buildings DLO Charge,COOL SERVICES LTD,16/05/2017,434.00
Commercial Services,Property & Design (BiT),Premises-Related Expenditure,R&M -Buildings DLO Charge,Cropper Grounds Maintenance Ltd,23/05/2017,"1,800.00"
Commercial Services,Property & Design (BiT),Premises-Related Expenditure,R&M -Buildings DLO Charge,E DAVIES & SON (TF4 3JZ),23/05/2017,588.47
Commercial Services,Property & Design (BiT),Premises-Related Expenditure,R&M -Buildings DLO Charge,E DAVIES & SON (TF4 3JZ),23/05/2017,261.90
Commercial Services,Property & Design (BiT),Premises-Related Expenditure,R&M -Buildings DLO Charge,George Birchall Limited,30/05/2017,121.63
Commercial Services,Property & Design (BiT),Premises-Related Expenditure,R&M -Buildings DLO Charge,George Birchall Limited,30/05/2017,330.36
Commercial Services,Property & Design (BiT),Premises-Related Expenditure,R&M -Buildings DLO Charge,George Birchall Limited,23/05/2017,180.99
Commercial Services,Property & Design (BiT),Premises-Related Expenditure,R&M -Buildings DLO Charge,George Birchall Limited,23/05/2017,100.83
Commercial Services,Property & Design (BiT),Premises-Related Expenditure,R&M -Buildings DLO Charge,George Birchall Limited,23/05/2017,177.00
Commercial Services,Property & Design (BiT),Premises-Related Expenditure,R&M -Buildings DLO Charge,George Birchall Limited,23/05/2017,126.39
Commercial Services,Property & Design (BiT),Premises-Related Expenditure,R&M -Buildings DLO Charge,George Birchall Limited,23/05/2017,106.19
Commercial Services,Property & Design (BiT),Premises-Related Expenditure,R&M -Buildings DLO Charge,George Birchall Limited,23/05/2017,132.75
Commercial Services,Property & Design (BiT),Premises-Related Expenditure,R&M -Buildings DLO Charge,George Birchall Limited,23/05/2017,162.25
Commercial Services,Property & Design (BiT),Premises-Related Expenditure,R&M -Buildings DLO Charge,George Birchall Limited,23/05/2017,"2,218.49"
Commercial Services,Property & Design (BiT),Premises-Related Expenditure,R&M -Buildings DLO Charge,George Birchall Limited,23/05/2017,"1,168.02"
Commercial Services,Property & Design (BiT),Premises-Related Expenditure,R&M -Buildings DLO Charge,GRANVILLE CONSTRUCTION & MAINTENANCE LTD,30/05/2017,139.50
Commercial Services,Property & Design (BiT),Premises-Related Expenditure,R&M -Buildings DLO Charge,GRANVILLE CONSTRUCTION & MAINTENANCE LTD,30/05/2017,162.95
Commercial Services,Property & Design (BiT),Premises-Related Expenditure,R&M -Buildings DLO Charge,GRANVILLE CONSTRUCTION & MAINTENANCE LTD,10/05/2017,153.99
Commercial Services,Property & Design (BiT),Premises-Related Expenditure,R&M -Buildings DLO Charge,GRANVILLE CONSTRUCTION & MAINTENANCE LTD,10/05/2017,197.94
Commercial Services,Property & Design (BiT),Premises-Related Expenditure,R&M -Buildings DLO Charge,GRANVILLE CONSTRUCTION & MAINTENANCE LTD,10/05/2017,139.83
Commercial Services,Property & Design (BiT),Premises-Related Expenditure,R&M -Buildings DLO Charge,GRANVILLE CONSTRUCTION & MAINTENANCE LTD,10/05/2017,158.00
Commercial Services,Property & Design (BiT),Premises-Related Expenditure,R&M -Buildings DLO Charge,GRANVILLE CONSTRUCTION & MAINTENANCE LTD,10/05/2017,119.51
Commercial Services,Property & Design (BiT),Premises-Related Expenditure,R&M -Buildings DLO Charge,GRANVILLE CONSTRUCTION & MAINTENANCE LTD,10/05/2017,175.95
Commercial Services,Property & Design (BiT),Premises-Related Expenditure,R&M -Buildings DLO Charge,GRANVILLE CONSTRUCTION & MAINTENANCE LTD,26/05/2017,138.40
Commercial Services,Property & Design (BiT),Premises-Related Expenditure,R&M -Buildings DLO Charge,GRANVILLE CONSTRUCTION & MAINTENANCE LTD,16/05/2017,284.80
Commercial Services,Property & Design (BiT),Premises-Related Expenditure,R&M -Buildings DLO Charge,GRANVILLE CONSTRUCTION & MAINTENANCE LTD,16/05/2017,282.90
Commercial Services,Property & Design (BiT),Premises-Related Expenditure,R&M -Buildings DLO Charge,GRANVILLE CONSTRUCTION & MAINTENANCE LTD,16/05/2017,112.95
Commercial Services,Property & Design (BiT),Premises-Related Expenditure,R&M -Buildings DLO Charge,GRANVILLE CONSTRUCTION & MAINTENANCE LTD,09/05/2017,364.00
Commercial Services,Property & Design (BiT),Premises-Related Expenditure,R&M -Buildings DLO Charge,JCE & SONS LTD,30/05/2017,613.00
Commercial Services,Property & Design (BiT),Premises-Related Expenditure,R&M -Buildings DLO Charge,JCE & SONS LTD,30/05/2017,398.86
Commercial Services,Property & Design (BiT),Premises-Related Expenditure,R&M -Buildings DLO Charge,JCE & SONS LTD,10/05/2017,226.49
Commercial Services,Property & Design (BiT),Premises-Related Expenditure,R&M -Buildings DLO Charge,JCE & SONS LTD,10/05/2017,122.91
Commercial Services,Property & Design (BiT),Premises-Related Expenditure,R&M -Buildings DLO Charge,JCE & SONS LTD,16/05/2017,618.24
Commercial Services,Property & Design (BiT),Premises-Related Expenditure,R&M -Buildings DLO Charge,JONES & HAMPTON LTD T/A BLUE SQUARE,10/05/2017,656.15
Commercial Services,Property & Design (BiT),Premises-Related Expenditure,R&M -Buildings DLO Charge,JONES & HAMPTON LTD T/A BLUE SQUARE,23/05/2017,"1,305.00"
Commercial Services,Property & Design (BiT),Premises-Related Expenditure,R&M -Buildings DLO Charge,PP ELECTRICAL SERVICES (Shropshire) Ltd,30/05/2017,620.00
Commercial Services,Property & Design (BiT),Premises-Related Expenditure,R&M -Buildings DLO Charge,PP ELECTRICAL SERVICES (Shropshire) Ltd,30/05/2017,325.00
Commercial Services,Property & Design (BiT),Premises-Related Expenditure,R&M -Buildings DLO Charge,PP ELECTRICAL SERVICES (Shropshire) Ltd,30/05/2017,300.00
Commercial Services,Property & Design (BiT),Premises-Related Expenditure,R&M -Buildings DLO Charge,PP ELECTRICAL SERVICES (Shropshire) Ltd,30/05/2017,890.00
Commercial Services,Property & Design (BiT),Premises-Related Expenditure,R&M -Buildings DLO Charge,PP ELECTRICAL SERVICES (Shropshire) Ltd,30/05/2017,450.00
Commercial Services,Property & Design (BiT),Premises-Related Expenditure,R&M -Buildings DLO Charge,PP ELECTRICAL SERVICES (Shropshire) Ltd,30/05/2017,283.90
Commercial Services,Property & Design (BiT),Premises-Related Expenditure,R&M -Buildings DLO Charge,PP ELECTRICAL SERVICES (Shropshire) Ltd,10/05/2017,724.32
Commercial Services,Property & Design (BiT),Premises-Related Expenditure,R&M -Buildings DLO Charge,PP ELECTRICAL SERVICES (Shropshire) Ltd,23/05/2017,"2,140.00"
Commercial Services,Property & Design (BiT),Premises-Related Expenditure,R&M -Buildings DLO Charge,PP ELECTRICAL SERVICES (Shropshire) Ltd,23/05/2017,163.68
Commercial Services,Property & Design (BiT),Premises-Related Expenditure,R&M -Buildings DLO Charge,PP ELECTRICAL SERVICES (Shropshire) Ltd,23/05/2017,247.50
Commercial Services,Property & Design (BiT),Premises-Related Expenditure,R&M -Buildings DLO Charge,PP ELECTRICAL SERVICES (Shropshire) Ltd,16/05/2017,565.00
Commercial Services,Property & Design (BiT),Premises-Related Expenditure,R&M -Buildings DLO Charge,PP ELECTRICAL SERVICES (Shropshire) Ltd,16/05/2017,343.75
Commercial Services,Property & Design (BiT),Premises-Related Expenditure,R&M -Buildings DLO Charge,PP ELECTRICAL SERVICES (Shropshire) Ltd,16/05/2017,545.00
Commercial Services,Property & Design (BiT),Premises-Related Expenditure,R&M -Buildings DLO Charge,PP ELECTRICAL SERVICES (Shropshire) Ltd,16/05/2017,960.00
Commercial Services,Property & Design (BiT),Premises-Related Expenditure,R&M -Buildings DLO Charge,PP ELECTRICAL SERVICES (Shropshire) Ltd,09/05/2017,210.00
Commercial Services,Property & Design (BiT),Premises-Related Expenditure,R&M -Buildings DLO Charge,PP ELECTRICAL SERVICES (Shropshire) Ltd,09/05/2017,130.00
Commercial Services,Property & Design (BiT),Premises-Related Expenditure,R&M -Buildings DLO Charge,PROKILL UK LIMITED,30/05/2017,150.00
Commercial Services,Property & Design (BiT),Premises-Related Expenditure,R&M -Buildings DLO Charge,PTSG ACCESS AND SAFETY LTD,30/05/2017,195.00
Commercial Services,Property & Design (BiT),Premises-Related Expenditure,R&M -Buildings DLO Charge,SECURITY WISE LTD,30/05/2017,185.00
Commercial Services,Property & Design (BiT),Premises-Related Expenditure,R&M -Buildings DLO Charge,SECURITY WISE LTD,30/05/2017,195.00
Commercial Services,Property & Design (BiT),Premises-Related Expenditure,R&M -Buildings DLO Charge,SECURITY WISE LTD,30/05/2017,190.00
Commercial Services,Property & Design (BiT),Premises-Related Expenditure,R&M -Buildings DLO Charge,SECURITY WISE LTD,30/05/2017,190.00
Commercial Services,Property & Design (BiT),Premises-Related Expenditure,R&M -Buildings DLO Charge,SECURITY WISE LTD,30/05/2017,195.00
Commercial Services,Property & Design (BiT),Premises-Related Expenditure,R&M -Buildings DLO Charge,SECURITY WISE LTD,30/05/2017,424.00
Commercial Services,Property & Design (BiT),Premises-Related Expenditure,R&M -Buildings DLO Charge,SECURITY WISE LTD,30/05/2017,195.00
Commercial Services,Property & Design (BiT),Premises-Related Expenditure,R&M -Buildings DLO Charge,SECURITY WISE LTD,30/05/2017,200.00
Commercial Services,Property & Design (BiT),Premises-Related Expenditure,R&M -Buildings DLO Charge,SECURITY WISE LTD,30/05/2017,195.00
Commercial Services,Property & Design (BiT),Premises-Related Expenditure,R&M -Buildings DLO Charge,SECURITY WISE LTD,30/05/2017,250.00
Commercial Services,Property & Design (BiT),Premises-Related Expenditure,R&M -Buildings DLO Charge,SECURITY WISE LTD,30/05/2017,125.00
Commercial Services,Property & Design (BiT),Premises-Related Expenditure,R&M -Buildings DLO Charge,SECURITY WISE LTD,30/05/2017,185.00
Commercial Services,Property & Design (BiT),Premises-Related Expenditure,R&M -Buildings DLO Charge,SECURITY WISE LTD,30/05/2017,190.00
Commercial Services,Property & Design (BiT),Premises-Related Expenditure,R&M -Buildings DLO Charge,SECURITY WISE LTD,30/05/2017,190.00
Commercial Services,Property & Design (BiT),Premises-Related Expenditure,R&M -Buildings DLO Charge,SECURITY WISE LTD,30/05/2017,190.00
Commercial Services,Property & Design (BiT),Premises-Related Expenditure,R&M -Buildings DLO Charge,SECURITY WISE LTD,30/05/2017,190.00
Commercial Services,Property & Design (BiT),Premises-Related Expenditure,R&M -Buildings DLO Charge,SECURITY WISE LTD,30/05/2017,190.00
Commercial Services,Property & Design (BiT),Premises-Related Expenditure,R&M -Buildings DLO Charge,SECURITY WISE LTD,30/05/2017,190.00
Commercial Services,Property & Design (BiT),Premises-Related Expenditure,R&M -Buildings DLO Charge,SECURITY WISE LTD,30/05/2017,190.00
Commercial Services,Property & Design (BiT),Premises-Related Expenditure,R&M -Buildings DLO Charge,SECURITY WISE LTD,30/05/2017,331.00
Commercial Services,Property & Design (BiT),Premises-Related Expenditure,R&M -Buildings DLO Charge,SECURITY WISE LTD,30/05/2017,190.00
Commercial Services,Property & Design (BiT),Premises-Related Expenditure,R&M -Buildings DLO Charge,SECURITY WISE LTD,30/05/2017,190.00
Commercial Services,Property & Design (BiT),Premises-Related Expenditure,R&M -Buildings DLO Charge,SECURITY WISE LTD,30/05/2017,326.00
Commercial Services,Property & Design (BiT),Premises-Related Expenditure,R&M -Buildings DLO Charge,SECURITY WISE LTD,30/05/2017,190.00
Commercial Services,Property & Design (BiT),Premises-Related Expenditure,R&M -Buildings DLO Charge,SECURITY WISE LTD,30/05/2017,190.00
Commercial Services,Property & Design (BiT),Premises-Related Expenditure,R&M -Buildings DLO Charge,SECURITY WISE LTD,30/05/2017,190.00
Commercial Services,Property & Design (BiT),Premises-Related Expenditure,R&M -Buildings DLO Charge,SECURITY WISE LTD,30/05/2017,115.00
Commercial Services,Property & Design (BiT),Premises-Related Expenditure,R&M -Buildings DLO Charge,SECURITY WISE LTD,30/05/2017,190.00
Commercial Services,Property & Design (BiT),Premises-Related Expenditure,R&M -Buildings DLO Charge,SECURITY WISE LTD,30/05/2017,185.00
Commercial Services,Property & Design (BiT),Premises-Related Expenditure,R&M -Buildings DLO Charge,SECURITY WISE LTD,09/05/2017,150.00
Commercial Services,Property & Design (BiT),Premises-Related Expenditure,R&M -Buildings DLO Charge,SECURITY WISE LTD,09/05/2017,190.00
Commercial Services,Property & Design (BiT),Premises-Related Expenditure,R&M -Buildings DLO Charge,SECURITY WISE LTD,09/05/2017,195.00
Commercial Services,Property & Design (BiT),Premises-Related Expenditure,R&M -Buildings DLO Charge,SECURITY WISE LTD,09/05/2017,190.00
Commercial Services,Property & Design (BiT),Premises-Related Expenditure,R&M -Buildings DLO Charge,SECURITY WISE LTD,09/05/2017,190.00
Commercial Services,Property & Design (BiT),Premises-Related Expenditure,R&M -Buildings DLO Charge,SECURITY WISE LTD,09/05/2017,120.00
Commercial Services,Property & Design (BiT),Premises-Related Expenditure,R&M -Buildings DLO Charge,SECURITY WISE LTD,09/05/2017,745.00
Commercial Services,Property & Design (BiT),Premises-Related Expenditure,R&M -Buildings DLO Charge,TAYLORS MECHANICAL H & P SERVICES LTD,30/05/2017,240.00
Commercial Services,Property & Design (BiT),Premises-Related Expenditure,R&M -Buildings DLO Charge,TAYLORS MECHANICAL H & P SERVICES LTD,30/05/2017,384.00
Commercial Services,Property & Design (BiT),Premises-Related Expenditure,R&M -Buildings DLO Charge,TAYLORS MECHANICAL H & P SERVICES LTD,30/05/2017,240.00
Commercial Services,Property & Design (BiT),Premises-Related Expenditure,R&M -Buildings DLO Charge,TAYLORS MECHANICAL H & P SERVICES LTD,30/05/2017,107.16
Commercial Services,Property & Design (BiT),Premises-Related Expenditure,R&M -Buildings DLO Charge,TAYLORS MECHANICAL H & P SERVICES LTD,30/05/2017,"1,283.34"
Commercial Services,Property & Design (BiT),Premises-Related Expenditure,R&M -Buildings DLO Charge,TAYLORS MECHANICAL H & P SERVICES LTD,30/05/2017,312.00
Commercial Services,Property & Design (BiT),Premises-Related Expenditure,R&M -Buildings DLO Charge,TAYLORS MECHANICAL H & P SERVICES LTD,30/05/2017,240.00
Commercial Services,Property & Design (BiT),Premises-Related Expenditure,R&M -Buildings DLO Charge,TAYLORS MECHANICAL H & P SERVICES LTD,30/05/2017,528.00
Commercial Services,Property & Design (BiT),Premises-Related Expenditure,R&M -Buildings DLO Charge,TAYLORS MECHANICAL H & P SERVICES LTD,30/05/2017,216.00
Commercial Services,Property & Design (BiT),Premises-Related Expenditure,R&M -Buildings DLO Charge,TAYLORS MECHANICAL H & P SERVICES LTD,30/05/2017,"2,350.00"
Commercial Services,Property & Design (BiT),Premises-Related Expenditure,R&M -Buildings DLO Charge,TAYLORS MECHANICAL H & P SERVICES LTD,30/05/2017,300.12
Commercial Services,Property & Design (BiT),Premises-Related Expenditure,R&M -Buildings DLO Charge,TAYLORS MECHANICAL H & P SERVICES LTD,30/05/2017,144.00
Commercial Services,Property & Design (BiT),Premises-Related Expenditure,R&M -Buildings DLO Charge,TAYLORS MECHANICAL H & P SERVICES LTD,30/05/2017,552.00
Commercial Services,Property & Design (BiT),Premises-Related Expenditure,R&M -Buildings DLO Charge,TAYLORS MECHANICAL H & P SERVICES LTD,30/05/2017,168.00
Commercial Services,Property & Design (BiT),Premises-Related Expenditure,R&M -Buildings DLO Charge,TAYLORS MECHANICAL H & P SERVICES LTD,30/05/2017,192.00
Commercial Services,Property & Design (BiT),Premises-Related Expenditure,R&M -Buildings DLO Charge,TAYLORS MECHANICAL H & P SERVICES LTD,30/05/2017,456.00
Commercial Services,Property & Design (BiT),Premises-Related Expenditure,R&M -Buildings DLO Charge,WINDOW & DOOR CONTRACT SERVICES,30/05/2017,269.73
Commercial Services,Property & Design (BiT),Premises-Related Expenditure,R&M -Buildings DLO Charge,WINDOW & DOOR CONTRACT SERVICES,30/05/2017,347.32
Commercial Services,Property & Design (BiT),Premises-Related Expenditure,R&M -Buildings DLO Charge,WINDOW & DOOR CONTRACT SERVICES,30/05/2017,180.32
Commercial Services,Property & Design (BiT),Premises-Related Expenditure,R&M -Buildings DLO Charge,WREKIN DRAIN SERVICES LTD,30/05/2017,"1,648.84"
Commercial Services,Property & Design (BiT),Supplies & Services,Telephones,Digital Exchange Products Ltd,24/05/2017,"1,260.00"
Commercial Services,Property & Design (BiT),Premises-Related Expenditure,Grounds Maintenance - Other,NOBRIDGE LTD,10/05/2017,"7,972.46"
Commercial Services,Property & Design (BiT),Premises-Related Expenditure,Grounds Maintenance - Other,NOBRIDGE LTD,10/05/2017,"7,859.46"
Commercial Services,Property & Design (BiT),Supplies & Services,Other Services,INTERSERVE (FACILITIES MANAGEMENT) LTD,31/05/2017,"2,409.28"
Commercial Services,Property & Design (BiT),Capital Financing Costs,Unitary Charge,PYRAMID SCHOOLS (HADLEY) LTD,08/05/2017,"844,476.02"
Commercial Services,Property & Design (BiT),Premises-Related Expenditure,Vandal Damage,PYRAMID SCHOOLS (HADLEY) LTD,23/05/2017,"2,407.95"
Commercial Services,Property & Design (BiT),Supplies & Services,Equipment - Hire,QUICK SKIPS (TELFORD) LTD,09/05/2017,165.00
Commercial Services,Property & Design (BiT),Supplies & Services,Equipment - Hire,QUICK SKIPS (TELFORD) LTD,09/05/2017,365.00
Commercial Services,Property & Design (BiT),Supplies & Services,Equipment - Hire,QUICK SKIPS (TELFORD) LTD,09/05/2017,395.00
Commercial Services,Property & Design (BiT),Supplies & Services,Equipment - Hire,QUICK SKIPS (TELFORD) LTD,09/05/2017,200.00
Commercial Services,Property & Design (BiT),Supplies & Services,Equipment - Hire,QUICK SKIPS (TELFORD) LTD,09/05/2017,400.00
Commercial Services,Property & Design (BiT),Vehicles holding account,Vehicles,Network,08/05/2017,202.24
Commercial Services,Property & Design (BiT),Premises-Related Expenditure,Service Contracts,(CIS) BRITISH GAS SERVICES LTD,30/05/2017,268.00
Commercial Services,Property & Design (BiT),Premises-Related Expenditure,Electricity,BRITISH GAS BUSINESS ELEC,23/05/2017,249.81
Commercial Services,Property & Design (BiT),Premises-Related Expenditure,Trade Refuse,FCC Recycling (UK) Ltd,10/05/2017,457.24
Commercial Services,Property & Design (BiT),Premises-Related Expenditure,Service Contracts,HYDRO-TECH ENVIRONMENTAL LLP,30/05/2017,350.00
Commercial Services,Property & Design (BiT),Premises-Related Expenditure,R&M -Buildings DLO Charge,JCE & SONS LTD,30/05/2017,145.30
Commercial Services,Property & Design (BiT),Premises-Related Expenditure,R&M -Buildings DLO Charge,JCE & SONS LTD,30/05/2017,192.48
Commercial Services,Property & Design (BiT),Premises-Related Expenditure,R&M -Buildings DLO Charge,NYKE ENERGY SERVICES LIMITED,10/05/2017,195.00
Commercial Services,Property & Design (BiT),Premises-Related Expenditure,R&M -Buildings DLO Charge,PROKILL UK LIMITED,30/05/2017,280.00
Commercial Services,Property & Design (BiT),Premises-Related Expenditure,R&M -Buildings DLO Charge,SECURITY WISE LTD,30/05/2017,326.00
Commercial Services,Property & Design (BiT),Premises-Related Expenditure,Service Contracts,SECURITY WISE LTD,30/05/2017,190.00
Commercial Services,Property & Design (BiT),Premises-Related Expenditure,Service Contracts,SECURITY WISE LTD,30/05/2017,190.00
Commercial Services,Property & Design (BiT),Premises-Related Expenditure,R&M -Buildings DLO Charge,SECURITY WISE LTD,30/05/2017,185.00
Commercial Services,Property & Design (BiT),Premises-Related Expenditure,R&M -Buildings DLO Charge,SECURITY WISE LTD,30/05/2017,270.00
Commercial Services,Property & Design (BiT),Premises-Related Expenditure,Service Contracts,SECURITY WISE LTD,30/05/2017,302.00
Commercial Services,Property & Design (BiT),Premises-Related Expenditure,R&M -Buildings DLO Charge,SECURITY WISE LTD,09/05/2017,125.00
Commercial Services,Property & Design (BiT),Premises-Related Expenditure,R&M -Buildings DLO Charge,TURNER ENGINE POWERED SERVICES LTD,30/05/2017,460.00
Commercial Services,Property & Design (BiT),Premises-Related Expenditure,R&M -Buildings DLO Charge,TURNER ENGINE POWERED SERVICES LTD,09/05/2017,370.00
Commercial Services,Property & Design (BiT),Premises-Related Expenditure,Water Rates,WATER PLUS FORMERLY SEVERN TRENT WATER LTD,23/05/2017,220.83
Commercial Services,Property & Design (BiT),Premises-Related Expenditure,Water Rates,WATER PLUS FORMERLY SEVERN TRENT WATER LTD,23/05/2017,220.83
Commercial Services,Property & Design (BiT),Premises-Related Expenditure,Water Rates,WATER PLUS FORMERLY SEVERN TRENT WATER LTD,23/05/2017,203.84
Commercial Services,Property & Design (BiT),Premises-Related Expenditure,Electricity,West Mercia Energy (WME),02/05/2017,663.02
Commercial Services,Property & Design (BiT),Premises-Related Expenditure,Electricity,West Mercia Energy (WME),02/05/2017,"1,158.66"
Commercial Services,Property & Design (BiT),Premises-Related Expenditure,Electricity,West Mercia Energy (WME),02/05/2017,954.33
Commercial Services,Property & Design (BiT),Premises-Related Expenditure,Electricity,West Mercia Energy (WME),02/05/2017,"1,208.66"
Commercial Services,Property & Design (BiT),Premises-Related Expenditure,Electricity,West Mercia Energy (WME),02/05/2017,936.99
Commercial Services,Property & Design (BiT),Premises-Related Expenditure,Electricity,West Mercia Energy (WME),02/05/2017,"1,233.15"
Commercial Services,Property & Design (BiT),Premises-Related Expenditure,Electricity,West Mercia Energy (WME),02/05/2017,"1,014.54"
Commercial Services,Property & Design (BiT),Premises-Related Expenditure,Electricity,West Mercia Energy (WME),02/05/2017,920.32
Commercial Services,Property & Design (BiT),Premises-Related Expenditure,Electricity,West Mercia Energy (WME),02/05/2017,973.79
Commercial Services,Property & Design (BiT),Premises-Related Expenditure,Electricity,West Mercia Energy (WME),02/05/2017,"1,238.11"
Commercial Services,Property & Design (BiT),Premises-Related Expenditure,Electricity,West Mercia Energy (WME),02/05/2017,955.95
Commercial Services,Property & Design (BiT),Premises-Related Expenditure,Electricity,West Mercia Energy (WME),02/05/2017,"1,083.60"
Commercial Services,Property & Design (BiT),Premises-Related Expenditure,Electricity,West Mercia Energy (WME),02/05/2017,"1,031.22"
Commercial Services,Property & Design (BiT),Premises-Related Expenditure,Electricity,West Mercia Energy (WME),02/05/2017,"1,353.11"
Commercial Services,Property & Design (BiT),Premises-Related Expenditure,Gas,West Mercia Energy (WME),26/05/2017,287.16
Commercial Services,Property & Design (BiT),Premises-Related Expenditure,Gas,West Mercia Energy (WME),26/05/2017,982.75
Commercial Services,Property & Design (BiT),Premises-Related Expenditure,Gas,West Mercia Energy (WME),26/05/2017,"1,729.54"
Commercial Services,Property & Design (BiT),Premises-Related Expenditure,R&M -Buildings DLO Charge,WINDOW & DOOR CONTRACT SERVICES,30/05/2017,349.93
Commercial Services,Property & Design (BiT),Premises-Related Expenditure,R&M -Buildings DLO Charge,WINDOW & DOOR CONTRACT SERVICES,30/05/2017,350.50
Commercial Services,Property & Design (BiT),Premises-Related Expenditure,R&M -Buildings DLO Charge,BRADLEY INDUSTRIAL SERVICES,26/05/2017,106.86
Commercial Services,Property & Design (BiT),Premises-Related Expenditure,R&M -Buildings DLO Charge,BRADLEY INDUSTRIAL SERVICES,26/05/2017,166.54
Commercial Services,Property & Design (BiT),Premises-Related Expenditure,R&M -Buildings DLO Charge,BRADLEY INDUSTRIAL SERVICES,26/05/2017,680.64
Commercial Services,Property & Design (BiT),Premises-Related Expenditure,R&M -Buildings DLO Charge,BRADLEY INDUSTRIAL SERVICES,26/05/2017,715.64
Commercial Services,Property & Design (BiT),Premises-Related Expenditure,R&M -Buildings DLO Charge,BRADLEY INDUSTRIAL SERVICES,26/05/2017,240.06
Commercial Services,Property & Design (BiT),Premises-Related Expenditure,R&M -Buildings DLO Charge,BRADLEY INDUSTRIAL SERVICES,26/05/2017,"1,017.41"
Commercial Services,Property & Design (BiT),Premises-Related Expenditure,R&M -Buildings DLO Charge,BRADLEY INDUSTRIAL SERVICES,26/05/2017,230.86
Commercial Services,Property & Design (BiT),Premises-Related Expenditure,R&M -Buildings DLO Charge,BRADLEY INDUSTRIAL SERVICES,26/05/2017,263.13
Commercial Services,Property & Design (BiT),Premises-Related Expenditure,R&M -Buildings DLO Charge,BRADLEY INDUSTRIAL SERVICES,26/05/2017,122.47
Commercial Services,Property & Design (BiT),Premises-Related Expenditure,R&M -Buildings DLO Charge,BRADLEY INDUSTRIAL SERVICES,26/05/2017,159.39
Commercial Services,Property & Design (BiT),Premises-Related Expenditure,R&M -Buildings DLO Charge,BRADLEY INDUSTRIAL SERVICES,23/05/2017,142.53
Commercial Services,Property & Design (BiT),Premises-Related Expenditure,R&M -Buildings DLO Charge,BRADLEY INDUSTRIAL SERVICES,23/05/2017,184.35
Commercial Services,Property & Design (BiT),Premises-Related Expenditure,R&M -Buildings DLO Charge,BRADLEY INDUSTRIAL SERVICES,23/05/2017,296.85
Commercial Services,Property & Design (BiT),Premises-Related Expenditure,R&M -Buildings DLO Charge,BRADLEY INDUSTRIAL SERVICES,23/05/2017,289.85
Commercial Services,Property & Design (BiT),Premises-Related Expenditure,R&M -Buildings DLO Charge,BRADLEY INDUSTRIAL SERVICES,23/05/2017,470.70
Commercial Services,Property & Design (BiT),Premises-Related Expenditure,R&M -Buildings DLO Charge,BRADLEY INDUSTRIAL SERVICES,23/05/2017,180.22
Commercial Services,Property & Design (BiT),Premises-Related Expenditure,R&M -Buildings DLO Charge,BRADLEY INDUSTRIAL SERVICES,23/05/2017,354.70
Commercial Services,Property & Design (BiT),Premises-Related Expenditure,R&M -Buildings DLO Charge,BRADLEY INDUSTRIAL SERVICES,23/05/2017,431.74
Commercial Services,Property & Design (BiT),Premises-Related Expenditure,R&M -Buildings DLO Charge,BRADLEY INDUSTRIAL SERVICES,23/05/2017,456.00
Commercial Services,Property & Design (BiT),Premises-Related Expenditure,R&M -Buildings DLO Charge,BRADLEY INDUSTRIAL SERVICES,23/05/2017,456.85
Commercial Services,Property & Design (BiT),Premises-Related Expenditure,R&M -Buildings DLO Charge,BRADLEY INDUSTRIAL SERVICES,23/05/2017,296.85
Commercial Services,Property & Design (BiT),Premises-Related Expenditure,R&M -Buildings DLO Charge,BRADLEY INDUSTRIAL SERVICES,23/05/2017,190.50
Commercial Services,Property & Design (BiT),Premises-Related Expenditure,R&M -Buildings DLO Charge,BRADLEY INDUSTRIAL SERVICES,23/05/2017,157.67
Commercial Services,Property & Design (BiT),Premises-Related Expenditure,R&M -Buildings DLO Charge,COOL SERVICES LTD,26/05/2017,"1,080.00"
Commercial Services,Property & Design (BiT),Premises-Related Expenditure,R&M -Buildings DLO Charge,COOL SERVICES LTD,05/05/2017,193.00
Commercial Services,Property & Design (BiT),Premises-Related Expenditure,R&M -Buildings DLO Charge,COOL SERVICES LTD,09/05/2017,"1,558.70"
Commercial Services,Property & Design (BiT),Premises-Related Expenditure,R&M -Buildings DLO Charge,ERIC NEVILLE CATERING SUPPLIES LTD,26/05/2017,"1,540.00"
Commercial Services,Property & Design (BiT),Premises-Related Expenditure,R&M -Buildings DLO Charge,George Birchall Limited,30/05/2017,399.90
Commercial Services,Property & Design (BiT),Premises-Related Expenditure,R&M -Buildings DLO Charge,George Birchall Limited,30/05/2017,424.06
Commercial Services,Property & Design (BiT),Premises-Related Expenditure,R&M -Buildings DLO Charge,GRANVILLE CONSTRUCTION & MAINTENANCE LTD,30/05/2017,194.88
Commercial Services,Property & Design (BiT),Premises-Related Expenditure,R&M -Buildings DLO Charge,GRANVILLE CONSTRUCTION & MAINTENANCE LTD,30/05/2017,243.98
Commercial Services,Property & Design (BiT),Premises-Related Expenditure,R&M -Buildings DLO Charge,GRANVILLE CONSTRUCTION & MAINTENANCE LTD,10/05/2017,134.43
Commercial Services,Property & Design (BiT),Premises-Related Expenditure,R&M -Buildings DLO Charge,GRANVILLE CONSTRUCTION & MAINTENANCE LTD,23/05/2017,193.00
Commercial Services,Property & Design (BiT),Premises-Related Expenditure,R&M -Buildings DLO Charge,GRANVILLE CONSTRUCTION & MAINTENANCE LTD,15/05/2017,"6,874.00"
Commercial Services,Property & Design (BiT),Premises-Related Expenditure,R&M -Buildings DLO Charge,GRANVILLE CONSTRUCTION & MAINTENANCE LTD,15/05/2017,"10,312.75"
Commercial Services,Property & Design (BiT),Premises-Related Expenditure,Service Contracts,WAGSTAFF SCHOOL FURNITURE,08/05/2017,735.00
Commercial Services,Property & Design (BiT),Premises-Related Expenditure,Service Contracts,WAGSTAFF SCHOOL FURNITURE,08/05/2017,735.00
Commercial Services,Property & Design (BiT),Premises-Related Expenditure,R&M -Buildings DLO Charge,WAGSTAFF SCHOOL FURNITURE,08/05/2017,"2,205.00"
Commercial Services,Property & Design (BiT),Premises-Related Expenditure,R&M -Buildings DLO Charge,WAGSTAFF SCHOOL FURNITURE,08/05/2017,"2,940.00"
Commercial Services,Property & Design (BiT),Premises-Related Expenditure,R&M -Buildings DLO Charge,WAGSTAFF SCHOOL FURNITURE,08/05/2017,"2,410.00"
Commercial Services,Property & Design (BiT),Premises-Related Expenditure,R&M -Buildings DLO Charge,WAGSTAFF SCHOOL FURNITURE,08/05/2017,"1,955.00"
Commercial Services,Property & Design (BiT),Premises-Related Expenditure,Leasehold Rents,REDACTED PERSONAL INFORMATION,22/05/2017,450.45
Commercial Services,Property & Design (BiT),Premises-Related Expenditure,Leasehold Rents,REDACTED PERSONAL INFORMATION,22/05/2017,450.45
Commercial Services,Property & Design (BiT),Premises-Related Expenditure,Leasehold Rents,CHURCHILL PL LIMITED,22/05/2017,445.50
Commercial Services,Property & Design (BiT),Premises-Related Expenditure,Leasehold Rents,CHURCHILL PL LIMITED,22/05/2017,544.50
Commercial Services,Property & Design (BiT),Premises-Related Expenditure,Leasehold Rents,CHURCHILL PL LIMITED,22/05/2017,445.50
Commercial Services,Property & Design (BiT),Premises-Related Expenditure,Leasehold Rents,CHURCHILL PL LIMITED,22/05/2017,445.50
Commercial Services,Property & Design (BiT),Premises-Related Expenditure,Leasehold Rents,CHURCHILL PL LIMITED,22/05/2017,445.50
Commercial Services,Property & Design (BiT),Premises-Related Expenditure,Leasehold Rents,CHURCHILL PL LIMITED,22/05/2017,445.50
Commercial Services,Property & Design (BiT),Premises-Related Expenditure,Leasehold Rents,REDACTED PERSONAL INFORMATION,22/05/2017,475.00
Commercial Services,Property & Design (BiT),Premises-Related Expenditure,R&M -Buildings DLO Charge,George Birchall Limited,23/05/2017,336.68
Commercial Services,Property & Design (BiT),Premises-Related Expenditure,R&M -Buildings DLO Charge,GRANVILLE CONSTRUCTION & MAINTENANCE LTD,10/05/2017,675.07
Commercial Services,Property & Design (BiT),Premises-Related Expenditure,Tenant Damage,GRANVILLE CONSTRUCTION & MAINTENANCE LTD,23/05/2017,"2,400.00"
Commercial Services,Property & Design (BiT),Premises-Related Expenditure,Tenant Damage,GRANVILLE CONSTRUCTION & MAINTENANCE LTD,23/05/2017,"4,547.85"
Commercial Services,Property & Design (BiT),Premises-Related Expenditure,Tenant Damage,GRANVILLE CONSTRUCTION & MAINTENANCE LTD,16/05/2017,191.00
Commercial Services,Property & Design (BiT),Premises-Related Expenditure,R&M -Buildings DLO Charge,GRANVILLE CONSTRUCTION & MAINTENANCE LTD,09/05/2017,749.00
Commercial Services,Property & Design (BiT),Premises-Related Expenditure,Tenant Damage,GRANVILLE CONSTRUCTION & MAINTENANCE LTD,09/05/2017,993.00
Commercial Services,Property & Design (BiT),Premises-Related Expenditure,R&M -Buildings DLO Charge,JCE & SONS LTD,10/05/2017,250.00
Commercial Services,Property & Design (BiT),Premises-Related Expenditure,R&M -Buildings DLO Charge,JCE & SONS LTD,16/05/2017,168.35
Commercial Services,Property & Design (BiT),Premises-Related Expenditure,Leasehold Rents,REDACTED PERSONAL INFORMATION,22/05/2017,495.00
Commercial Services,Property & Design (BiT),Premises-Related Expenditure,Leasehold Rents,REDACTED PERSONAL INFORMATION,22/05/2017,525.00
Commercial Services,Property & Design (BiT),Premises-Related Expenditure,Leasehold Rents,REDACTED PERSONAL INFORMATION,22/05/2017,416.39
Commercial Services,Property & Design (BiT),Premises-Related Expenditure,Water Rates,WATER PLUS FORMERLY SEVERN TRENT WATER LTD,16/05/2017,110.68
Commercial Services,Property & Design (BiT),Premises-Related Expenditure,Gas,West Mercia Energy (WME),02/05/2017,236.17
Commercial Services,Property & Design (BiT),Premises-Related Expenditure,Gas,West Mercia Energy (WME),02/05/2017,127.45
Commercial Services,Property & Design (BiT),Premises-Related Expenditure,Gas,West Mercia Energy (WME),02/05/2017,101.86
Commercial Services,Property & Design (BiT),Premises-Related Expenditure,Gas,West Mercia Energy (WME),02/05/2017,-221.06
Commercial Services,Property & Design (BiT),Premises-Related Expenditure,Gas,West Mercia Energy (WME),02/05/2017,-185.61
Commercial Services,Property & Design (BiT),Premises-Related Expenditure,Leasehold Rents,BOURNVILLE VILLAGE TRUST,23/05/2017,150.00
Commercial Services,Property & Design (BiT),Premises-Related Expenditure,Tenant Damage,GRANVILLE CONSTRUCTION & MAINTENANCE LTD,16/05/2017,182.84
Commercial Services,Property & Design (BiT),Premises-Related Expenditure,Service Contracts,(CIS) BRITISH GAS SERVICES LTD,30/05/2017,234.50
Commercial Services,Property & Design (BiT),Premises-Related Expenditure,Service Contracts,(CIS) BRITISH GAS SERVICES LTD,30/05/2017,"1,206.00"
Commercial Services,Property & Design (BiT),Premises-Related Expenditure,R&M -Buildings DLO Charge,3CL,30/05/2017,229.80
Commercial Services,Property & Design (BiT),Premises-Related Expenditure,Service Contracts,3CL,09/05/2017,702.00
Commercial Services,Property & Design (BiT),Premises-Related Expenditure,R&M -Buildings DLO Charge,A E Chapman & Co (Old Hill) Ltd,30/05/2017,660.53
Commercial Services,Property & Design (BiT),Premises-Related Expenditure,R&M -Buildings DLO Charge,AGS AUTOMATIC DOORS LTD,30/05/2017,120.00
Commercial Services,Property & Design (BiT),Premises-Related Expenditure,R&M -Buildings DLO Charge,AGS AUTOMATIC DOORS LTD,30/05/2017,588.00
Commercial Services,Property & Design (BiT),Premises-Related Expenditure,Clean Mats & Toilet Requisites,ANGEL SPRINGS LTD / PHS GROUP,30/05/2017,337.99
Commercial Services,Property & Design (BiT),Premises-Related Expenditure,Swimming Pool Chemicals,ANGEL SPRINGS LTD / PHS GROUP,10/05/2017,111.16
Commercial Services,Property & Design (BiT),Premises-Related Expenditure,Clean Mats & Toilet Requisites,ANGEL SPRINGS LTD / PHS GROUP,09/05/2017,617.76
Commercial Services,Property & Design (BiT),Premises-Related Expenditure,Service Contracts,AQUALOGIC (WC) LTD,30/05/2017,102.70
Commercial Services,Property & Design (BiT),Premises-Related Expenditure,Service Contracts,AQUALOGIC (WC) LTD,30/05/2017,177.60
Commercial Services,Property & Design (BiT),Premises-Related Expenditure,Service Contracts,AQUALOGIC (WC) LTD,30/05/2017,113.90
Commercial Services,Property & Design (BiT),Premises-Related Expenditure,Service Contracts,AQUALOGIC (WC) LTD,30/05/2017,156.60
Commercial Services,Property & Design (BiT),Premises-Related Expenditure,R&M -Buildings DLO Charge,ARJOHUNTLEIGH UK,30/05/2017,107.00
Commercial Services,Property & Design (BiT),Premises-Related Expenditure,Service Contracts,ARJOHUNTLEIGH UK,23/05/2017,312.00
Commercial Services,Property & Design (BiT),Premises-Related Expenditure,Service Contracts,Automated building & energy controls,10/05/2017,"1,058.33"
Commercial Services,Property & Design (BiT),Premises-Related Expenditure,R&M -Buildings DLO Charge,Automated building & energy controls,23/05/2017,"1,058.33"
Commercial Services,Property & Design (BiT),Premises-Related Expenditure,Electricity,BRITISH GAS BUSINESS ELEC,10/05/2017,106.24
Commercial Services,Property & Design (BiT),Premises-Related Expenditure,Gas,BRITISH GAS BUSINESS ELEC,23/05/2017,"1,261.69"
Commercial Services,Property & Design (BiT),Premises-Related Expenditure,Gas,BRITISH GAS BUSINESS ELEC,23/05/2017,239.05
Commercial Services,Property & Design (BiT),Premises-Related Expenditure,Gas,BRITISH GAS BUSINESS ELEC,23/05/2017,791.16
Commercial Services,Property & Design (BiT),Premises-Related Expenditure,Gas,BUDGET GAS LTD,23/05/2017,171.95
Commercial Services,Property & Design (BiT),Premises-Related Expenditure,R&M -Buildings DLO Charge,COOL SERVICES LTD,30/05/2017,679.40
Commercial Services,Property & Design (BiT),Premises-Related Expenditure,R&M -Buildings DLO Charge,COOL SERVICES LTD,30/05/2017,984.00
Commercial Services,Property & Design (BiT),Premises-Related Expenditure,R&M -Buildings DLO Charge,COOL SERVICES LTD,30/05/2017,210.00
Commercial Services,Property & Design (BiT),Premises-Related Expenditure,R&M -Buildings DLO Charge,COOL SERVICES LTD,09/05/2017,"5,142.00"
Commercial Services,Property & Design (BiT),Premises-Related Expenditure,Non Domestic Rates,CYNGOR GWYNEDD COUNCIL,31/05/2017,"20,708.50"
Commercial Services,Property & Design (BiT),Premises-Related Expenditure,Trade Refuse,CYNGOR GWYNEDD COUNCIL,30/05/2017,"1,824.00"
Commercial Services,Property & Design (BiT),Premises-Related Expenditure,Trade Refuse,FCC Recycling (UK) Ltd,10/05/2017,124.08
Commercial Services,Property & Design (BiT),Premises-Related Expenditure,Solid Fuel,FOREST FUELS,23/05/2017,466.23
Commercial Services,Property & Design (BiT),Premises-Related Expenditure,Solid Fuel,FOREST FUELS,23/05/2017,199.81
Commercial Services,Property & Design (BiT),Premises-Related Expenditure,Solid Fuel,FOREST FUELS,09/05/2017,245.22
Commercial Services,Property & Design (BiT),Premises-Related Expenditure,Solid Fuel,FOREST FUELS,09/05/2017,105.10
Commercial Services,Property & Design (BiT),Premises-Related Expenditure,Solid Fuel,FOREST FUELS,09/05/2017,380.10
Commercial Services,Property & Design (BiT),Premises-Related Expenditure,Solid Fuel,FOREST FUELS,09/05/2017,162.90
Commercial Services,Property & Design (BiT),Premises-Related Expenditure,Solid Fuel,FOREST FUELS,09/05/2017,"2,192.60"
Commercial Services,Property & Design (BiT),Premises-Related Expenditure,R&M -Buildings DLO Charge,George Birchall Limited,30/05/2017,779.82
Commercial Services,Property & Design (BiT),Premises-Related Expenditure,R&M -Buildings DLO Charge,George Birchall Limited,30/05/2017,476.64
Commercial Services,Property & Design (BiT),Premises-Related Expenditure,R&M -Buildings DLO Charge,George Birchall Limited,30/05/2017,137.51
Commercial Services,Property & Design (BiT),Premises-Related Expenditure,R&M -Buildings DLO Charge,George Birchall Limited,30/05/2017,"1,317.66"
Commercial Services,Property & Design (BiT),Premises-Related Expenditure,R&M -Buildings DLO Charge,George Birchall Limited,30/05/2017,903.20
Commercial Services,Property & Design (BiT),Premises-Related Expenditure,R&M -Buildings DLO Charge,George Birchall Limited,23/05/2017,579.26
Commercial Services,Property & Design (BiT),Premises-Related Expenditure,R&M -Buildings DLO Charge,George Birchall Limited,23/05/2017,369.16
Commercial Services,Property & Design (BiT),Premises-Related Expenditure,R&M -Buildings DLO Charge,GRANVILLE CONSTRUCTION & MAINTENANCE LTD,30/05/2017,137.08
Commercial Services,Property & Design (BiT),Premises-Related Expenditure,R&M -Buildings DLO Charge,GRANVILLE CONSTRUCTION & MAINTENANCE LTD,30/05/2017,695.00
Commercial Services,Property & Design (BiT),Premises-Related Expenditure,R&M -Buildings DLO Charge,GRANVILLE CONSTRUCTION & MAINTENANCE LTD,30/05/2017,720.00
Commercial Services,Property & Design (BiT),Premises-Related Expenditure,R&M -Buildings DLO Charge,GRANVILLE CONSTRUCTION & MAINTENANCE LTD,30/05/2017,154.69
Commercial Services,Property & Design (BiT),Premises-Related Expenditure,R&M -Buildings DLO Charge,GRANVILLE CONSTRUCTION & MAINTENANCE LTD,30/05/2017,125.83
Commercial Services,Property & Design (BiT),Premises-Related Expenditure,R&M -Buildings DLO Charge,GRANVILLE CONSTRUCTION & MAINTENANCE LTD,10/05/2017,156.54
Commercial Services,Property & Design (BiT),Premises-Related Expenditure,R&M -Buildings DLO Charge,GRANVILLE CONSTRUCTION & MAINTENANCE LTD,10/05/2017,275.30
Commercial Services,Property & Design (BiT),Premises-Related Expenditure,R&M -Buildings DLO Charge,GRANVILLE CONSTRUCTION & MAINTENANCE LTD,10/05/2017,193.86
Commercial Services,Property & Design (BiT),Premises-Related Expenditure,R&M -Buildings DLO Charge,GRANVILLE CONSTRUCTION & MAINTENANCE LTD,10/05/2017,432.00
Commercial Services,Property & Design (BiT),Premises-Related Expenditure,R&M -Buildings DLO Charge,GRANVILLE CONSTRUCTION & MAINTENANCE LTD,10/05/2017,113.84
Commercial Services,Property & Design (BiT),Premises-Related Expenditure,R&M -Buildings DLO Charge,GRANVILLE CONSTRUCTION & MAINTENANCE LTD,10/05/2017,390.00
Commercial Services,Property & Design (BiT),Premises-Related Expenditure,R&M -Buildings DLO Charge,GRANVILLE CONSTRUCTION & MAINTENANCE LTD,10/05/2017,142.47
Commercial Services,Property & Design (BiT),Premises-Related Expenditure,R&M -Buildings DLO Charge,GRANVILLE CONSTRUCTION & MAINTENANCE LTD,10/05/2017,460.64
Commercial Services,Property & Design (BiT),Premises-Related Expenditure,R&M -Buildings DLO Charge,GRANVILLE CONSTRUCTION & MAINTENANCE LTD,10/05/2017,467.00
Commercial Services,Property & Design (BiT),Premises-Related Expenditure,R&M -Buildings DLO Charge,GRANVILLE CONSTRUCTION & MAINTENANCE LTD,10/05/2017,"1,200.00"
Commercial Services,Property & Design (BiT),Premises-Related Expenditure,R&M -Buildings DLO Charge,GRANVILLE CONSTRUCTION & MAINTENANCE LTD,10/05/2017,"5,775.00"
Commercial Services,Property & Design (BiT),Premises-Related Expenditure,R&M -Buildings DLO Charge,GRANVILLE CONSTRUCTION & MAINTENANCE LTD,10/05/2017,185.57
Commercial Services,Property & Design (BiT),Premises-Related Expenditure,R&M -Buildings DLO Charge,GRANVILLE CONSTRUCTION & MAINTENANCE LTD,10/05/2017,206.36
Commercial Services,Property & Design (BiT),Premises-Related Expenditure,R&M -Buildings DLO Charge,GRANVILLE CONSTRUCTION & MAINTENANCE LTD,10/05/2017,383.81
Commercial Services,Property & Design (BiT),Premises-Related Expenditure,R&M -Buildings DLO Charge,GRANVILLE CONSTRUCTION & MAINTENANCE LTD,16/05/2017,278.97
Commercial Services,Property & Design (BiT),Premises-Related Expenditure,R&M -Buildings DLO Charge,GRANVILLE CONSTRUCTION & MAINTENANCE LTD,16/05/2017,"1,195.65"
Commercial Services,Property & Design (BiT),Premises-Related Expenditure,R&M -Buildings DLO Charge,GRANVILLE CONSTRUCTION & MAINTENANCE LTD,16/05/2017,156.50
Commercial Services,Property & Design (BiT),Premises-Related Expenditure,R&M -Buildings DLO Charge,GRANVILLE CONSTRUCTION & MAINTENANCE LTD,16/05/2017,593.80
Commercial Services,Property & Design (BiT),Premises-Related Expenditure,R&M -Buildings DLO Charge,GRANVILLE CONSTRUCTION & MAINTENANCE LTD,16/05/2017,278.63
Commercial Services,Property & Design (BiT),Premises-Related Expenditure,R&M -Building Other,GRANVILLE CONSTRUCTION & MAINTENANCE LTD,16/05/2017,154.07
Commercial Services,Property & Design (BiT),Premises-Related Expenditure,Service Contracts,HANOVIA LIMITED,09/05/2017,935.00
Commercial Services,Property & Design (BiT),Premises-Related Expenditure,R&M -Buildings DLO Charge,J.A.K. WATER SYSTEMS LTD,30/05/2017,231.00
Commercial Services,Property & Design (BiT),Premises-Related Expenditure,R&M -Buildings DLO Charge,J.A.K. WATER SYSTEMS LTD,30/05/2017,569.45
Commercial Services,Property & Design (BiT),Premises-Related Expenditure,R&M -Buildings DLO Charge,J.A.K. WATER SYSTEMS LTD,09/05/2017,197.00
Commercial Services,Property & Design (BiT),Premises-Related Expenditure,R&M -Buildings DLO Charge,JCE & SONS LTD,30/05/2017,165.74
Commercial Services,Property & Design (BiT),Premises-Related Expenditure,R&M -Buildings DLO Charge,JCE & SONS LTD,30/05/2017,345.28
Commercial Services,Property & Design (BiT),Premises-Related Expenditure,R&M -Buildings DLO Charge,JCE & SONS LTD,30/05/2017,100.58
Commercial Services,Property & Design (BiT),Premises-Related Expenditure,R&M -Buildings DLO Charge,JCE & SONS LTD,30/05/2017,420.00
Commercial Services,Property & Design (BiT),Premises-Related Expenditure,R&M -Buildings DLO Charge,JCE & SONS LTD,10/05/2017,109.84
Commercial Services,Property & Design (BiT),Premises-Related Expenditure,R&M -Buildings DLO Charge,JCE & SONS LTD,10/05/2017,103.65
Commercial Services,Property & Design (BiT),Premises-Related Expenditure,R&M -Buildings DLO Charge,JCE & SONS LTD,23/05/2017,141.78
Commercial Services,Property & Design (BiT),Premises-Related Expenditure,R&M -Buildings DLO Charge,JCE & SONS LTD,23/05/2017,311.86
Commercial Services,Property & Design (BiT),Premises-Related Expenditure,R&M - Electrical,JGS Electrical Solutions Ltd.,11/05/2017,113.00
Commercial Services,Property & Design (BiT),Premises-Related Expenditure,Gas,NPOWER GAS,23/05/2017,672.87
Commercial Services,Property & Design (BiT),Premises-Related Expenditure,R&M -Buildings DLO Charge,NYKE ENERGY SERVICES LIMITED,30/05/2017,520.00
Commercial Services,Property & Design (BiT),Premises-Related Expenditure,R&M -Buildings DLO Charge,NYKE ENERGY SERVICES LIMITED,30/05/2017,455.00
Commercial Services,Property & Design (BiT),Premises-Related Expenditure,R&M -Buildings DLO Charge,OSPREY WATER MANAGEMENT LTD,30/05/2017,"1,268.28"
Commercial Services,Property & Design (BiT),Premises-Related Expenditure,R&M -Buildings DLO Charge,OSPREY WATER MANAGEMENT LTD,10/05/2017,310.00
Commercial Services,Property & Design (BiT),Premises-Related Expenditure,Service Contracts,OTIS LIMITED,09/05/2017,125.00
Commercial Services,Property & Design (BiT),Premises-Related Expenditure,R&M -Buildings DLO Charge,PP ELECTRICAL SERVICES (Shropshire) Ltd,30/05/2017,"2,560.00"
Commercial Services,Property & Design (BiT),Premises-Related Expenditure,R&M -Buildings DLO Charge,PP ELECTRICAL SERVICES (Shropshire) Ltd,30/05/2017,460.00
Commercial Services,Property & Design (BiT),Premises-Related Expenditure,R&M -Buildings DLO Charge,PP ELECTRICAL SERVICES (Shropshire) Ltd,30/05/2017,120.00
Commercial Services,Property & Design (BiT),Premises-Related Expenditure,Service Contracts,PP ELECTRICAL SERVICES (Shropshire) Ltd,10/05/2017,"1,740.00"
Commercial Services,Property & Design (BiT),Premises-Related Expenditure,Service Contracts,PP ELECTRICAL SERVICES (Shropshire) Ltd,16/05/2017,"3,285.00"
Commercial Services,Property & Design (BiT),Premises-Related Expenditure,R&M -Buildings DLO Charge,PP ELECTRICAL SERVICES (Shropshire) Ltd,09/05/2017,364.12
Commercial Services,Property & Design (BiT),Premises-Related Expenditure,R&M -Buildings DLO Charge,PP ELECTRICAL SERVICES (Shropshire) Ltd,09/05/2017,150.00
Commercial Services,Property & Design (BiT),Premises-Related Expenditure,Clean Mats & Toilet Requisites,PROVAC CLEANING SUPPLIES LTD,16/05/2017,127.56
Commercial Services,Property & Design (BiT),Premises-Related Expenditure,Clean Mats & Toilet Requisites,PROVAC CLEANING SUPPLIES LTD,16/05/2017,289.70
Commercial Services,Property & Design (BiT),Premises-Related Expenditure,Service Contracts,SAXON LIFTS LTD,30/05/2017,"4,320.00"
Commercial Services,Property & Design (BiT),Premises-Related Expenditure,Service Contracts,SECURITY WISE LTD,30/05/2017,195.00
Commercial Services,Property & Design (BiT),Premises-Related Expenditure,Service Contracts,SECURITY WISE LTD,30/05/2017,190.00
Commercial Services,Property & Design (BiT),Premises-Related Expenditure,Service Contracts,SECURITY WISE LTD,30/05/2017,190.00
Commercial Services,Property & Design (BiT),Premises-Related Expenditure,Service Contracts,SECURITY WISE LTD,30/05/2017,190.00
Commercial Services,Property & Design (BiT),Premises-Related Expenditure,Service Contracts,SECURITY WISE LTD,30/05/2017,190.00
Commercial Services,Property & Design (BiT),Premises-Related Expenditure,Service Contracts,SECURITY WISE LTD,30/05/2017,195.00
Commercial Services,Property & Design (BiT),Premises-Related Expenditure,Service Contracts,SECURITY WISE LTD,30/05/2017,195.00
Commercial Services,Property & Design (BiT),Premises-Related Expenditure,Service Contracts,SECURITY WISE LTD,30/05/2017,190.00
Commercial Services,Property & Design (BiT),Premises-Related Expenditure,Service Contracts,SECURITY WISE LTD,30/05/2017,190.00
Commercial Services,Property & Design (BiT),Premises-Related Expenditure,Service Contracts,SECURITY WISE LTD,30/05/2017,625.00
Commercial Services,Property & Design (BiT),Premises-Related Expenditure,Service Contracts,SECURITY WISE LTD,30/05/2017,195.00
Commercial Services,Property & Design (BiT),Premises-Related Expenditure,R&M -Buildings DLO Charge,SECURITY WISE LTD,30/05/2017,185.00
Commercial Services,Property & Design (BiT),Premises-Related Expenditure,R&M -Buildings DLO Charge,SECURITY WISE LTD,30/05/2017,190.00
Commercial Services,Property & Design (BiT),Premises-Related Expenditure,Service Contracts,SECURITY WISE LTD,30/05/2017,190.00
Commercial Services,Property & Design (BiT),Premises-Related Expenditure,Service Contracts,SECURITY WISE LTD,30/05/2017,190.00
Commercial Services,Property & Design (BiT),Premises-Related Expenditure,Service Contracts,SECURITY WISE LTD,30/05/2017,190.00
Commercial Services,Property & Design (BiT),Premises-Related Expenditure,Service Contracts,SECURITY WISE LTD,30/05/2017,190.00
Commercial Services,Property & Design (BiT),Premises-Related Expenditure,Service Contracts,SECURITY WISE LTD,30/05/2017,190.00
Commercial Services,Property & Design (BiT),Premises-Related Expenditure,Service Contracts,SECURITY WISE LTD,30/05/2017,262.00
Commercial Services,Property & Design (BiT),Premises-Related Expenditure,R&M -Buildings DLO Charge,SECURITY WISE LTD,30/05/2017,190.00
Commercial Services,Property & Design (BiT),Premises-Related Expenditure,Service Contracts,SECURITY WISE LTD,30/05/2017,195.00
Commercial Services,Property & Design (BiT),Premises-Related Expenditure,Service Contracts,SECURITY WISE LTD,30/05/2017,190.00
Commercial Services,Property & Design (BiT),Premises-Related Expenditure,Service Contracts,SECURITY WISE LTD,30/05/2017,190.00
Commercial Services,Property & Design (BiT),Premises-Related Expenditure,Service Contracts,SECURITY WISE LTD,30/05/2017,246.00
Commercial Services,Property & Design (BiT),Premises-Related Expenditure,Service Contracts,SECURITY WISE LTD,30/05/2017,505.00
Commercial Services,Property & Design (BiT),Premises-Related Expenditure,Service Contracts,SECURITY WISE LTD,30/05/2017,190.00
Commercial Services,Property & Design (BiT),Premises-Related Expenditure,Service Contracts,SECURITY WISE LTD,30/05/2017,190.00
Commercial Services,Property & Design (BiT),Premises-Related Expenditure,Service Contracts,SECURITY WISE LTD,30/05/2017,150.00
Commercial Services,Property & Design (BiT),Premises-Related Expenditure,R&M -Buildings DLO Charge,SECURITY WISE LTD,30/05/2017,140.00
Commercial Services,Property & Design (BiT),Premises-Related Expenditure,Service Contracts,SECURITY WISE LTD,09/05/2017,150.00
Commercial Services,Property & Design (BiT),Premises-Related Expenditure,Service Contracts,TAYLORS MECHANICAL H & P SERVICES LTD,30/05/2017,"1,920.00"
Commercial Services,Property & Design (BiT),Premises-Related Expenditure,Contract Cleaning,TELFORD & WREKIN SERVICES LTD,10/05/2017,926.36
Commercial Services,Property & Design (BiT),Premises-Related Expenditure,Contract Cleaning,TELFORD & WREKIN SERVICES LTD,23/05/2017,926.36
Commercial Services,Property & Design (BiT),Premises-Related Expenditure,Contract Cleaning,TELFORD & WREKIN SERVICES LTD,09/05/2017,926.36
Commercial Services,Property & Design (BiT),Premises-Related Expenditure,Trade Refuse,VEOLIA ES (UK) LTD,23/05/2017,118.05
Commercial Services,Property & Design (BiT),Premises-Related Expenditure,Water Rates,WATER PLUS FORMERLY SEVERN TRENT WATER LTD,30/05/2017,"13,187.34"
Commercial Services,Property & Design (BiT),Premises-Related Expenditure,Water Rates,WATER PLUS FORMERLY SEVERN TRENT WATER LTD,30/05/2017,"2,082.85"
Commercial Services,Property & Design (BiT),Premises-Related Expenditure,Water Rates,WATER PLUS FORMERLY SEVERN TRENT WATER LTD,30/05/2017,328.75
Commercial Services,Property & Design (BiT),Premises-Related Expenditure,Water Rates,WATER PLUS FORMERLY SEVERN TRENT WATER LTD,30/05/2017,"1,254.57"
Commercial Services,Property & Design (BiT),Premises-Related Expenditure,Water Rates,WATER PLUS FORMERLY SEVERN TRENT WATER LTD,23/05/2017,320.70
Commercial Services,Property & Design (BiT),Premises-Related Expenditure,Water Rates,WATER PLUS FORMERLY SEVERN TRENT WATER LTD,23/05/2017,149.93
Commercial Services,Property & Design (BiT),Premises-Related Expenditure,Water Rates,WATER PLUS FORMERLY SEVERN TRENT WATER LTD,23/05/2017,"3,947.11"
Commercial Services,Property & Design (BiT),Premises-Related Expenditure,Water Rates,WATER PLUS FORMERLY SEVERN TRENT WATER LTD,23/05/2017,191.76
Commercial Services,Property & Design (BiT),Premises-Related Expenditure,Gas,West Mercia Energy (WME),26/05/2017,"1,876.82"
Commercial Services,Property & Design (BiT),Premises-Related Expenditure,Gas,West Mercia Energy (WME),26/05/2017,193.33
Commercial Services,Property & Design (BiT),Premises-Related Expenditure,Gas,West Mercia Energy (WME),26/05/2017,"1,438.84"
Commercial Services,Property & Design (BiT),Premises-Related Expenditure,Gas,West Mercia Energy (WME),26/05/2017,208.68
Commercial Services,Property & Design (BiT),Premises-Related Expenditure,Gas,West Mercia Energy (WME),26/05/2017,259.93
Commercial Services,Property & Design (BiT),Premises-Related Expenditure,Gas,West Mercia Energy (WME),26/05/2017,"1,861.65"
Commercial Services,Property & Design (BiT),Premises-Related Expenditure,Gas,West Mercia Energy (WME),26/05/2017,296.69
Commercial Services,Property & Design (BiT),Premises-Related Expenditure,Gas,West Mercia Energy (WME),26/05/2017,211.28
Commercial Services,Property & Design (BiT),Premises-Related Expenditure,Gas,West Mercia Energy (WME),26/05/2017,"2,023.99"
Commercial Services,Property & Design (BiT),Premises-Related Expenditure,Gas,West Mercia Energy (WME),26/05/2017,209.20
Commercial Services,Property & Design (BiT),Premises-Related Expenditure,Gas,West Mercia Energy (WME),26/05/2017,206.82
Commercial Services,Property & Design (BiT),Premises-Related Expenditure,Gas,West Mercia Energy (WME),26/05/2017,489.16
Commercial Services,Property & Design (BiT),Premises-Related Expenditure,Gas,West Mercia Energy (WME),26/05/2017,142.95
Commercial Services,Property & Design (BiT),Premises-Related Expenditure,Gas,West Mercia Energy (WME),26/05/2017,"2,997.19"
Commercial Services,Property & Design (BiT),Premises-Related Expenditure,Gas,West Mercia Energy (WME),26/05/2017,188.38
Commercial Services,Property & Design (BiT),Premises-Related Expenditure,Gas,West Mercia Energy (WME),26/05/2017,118.65
Commercial Services,Property & Design (BiT),Premises-Related Expenditure,Gas,West Mercia Energy (WME),26/05/2017,285.20
Commercial Services,Property & Design (BiT),Premises-Related Expenditure,Gas,West Mercia Energy (WME),26/05/2017,122.23
Commercial Services,Property & Design (BiT),Premises-Related Expenditure,Gas,West Mercia Energy (WME),26/05/2017,194.82
Commercial Services,Property & Design (BiT),Premises-Related Expenditure,R&M -Buildings DLO Charge,WINDOW & DOOR CONTRACT SERVICES,30/05/2017,105.70
Commercial Services,Property & Design (BiT),Premises-Related Expenditure,R&M -Buildings DLO Charge,WINDOW & DOOR CONTRACT SERVICES,30/05/2017,265.42
Commercial Services,Property & Design (BiT),Premises-Related Expenditure,R&M -Buildings DLO Charge,WREKIN DRAIN SERVICES LTD,30/05/2017,270.00
Commercial Services,Property & Design (BiT),Supplies & Services,Security Services,BUSINESS WATCH GUARDING LIMITED,30/05/2017,698.62
Commercial Services,Property & Design (BiT),Supplies & Services,Security Services,BUSINESS WATCH GUARDING LIMITED,10/05/2017,668.54
Commercial Services,Property & Design (BiT),Supplies & Services,Security Services,BUSINESS WATCH GUARDING LIMITED,09/05/2017,427.49
Commercial Services,Property & Design (BiT),Supplies & Services,Security Services,LEISURE SEC PLC,23/05/2017,150.00
Commercial Services,Property & Design (BiT),Supplies & Services,Security Services,LEISURE SEC PLC,23/05/2017,150.00
Commercial Services,Property & Design (BiT),Supplies & Services,Security Services,LEISURE SEC PLC,23/05/2017,150.00
Commercial Services,Property & Design (BiT),Supplies & Services,Hygiene Products,WEST MERCIA SUPPLIES Catalogue Supplies (None Utility),19/05/2017,102.52
Commercial Services,Property & Design (BiT),Premises-Related Expenditure,R&M -Building Other,George Birchall Limited,31/05/2017,234.23
Commercial Services,Property & Design (BiT),Premises-Related Expenditure,R&M -Building Other,George Birchall Limited,23/05/2017,336.29
Commercial Services,Property & Design (BiT),Premises-Related Expenditure,R&M -Building Other,GRANVILLE CONSTRUCTION & MAINTENANCE LTD,31/05/2017,152.00
Commercial Services,Property & Design (BiT),Premises-Related Expenditure,R&M -Building Other,GRANVILLE CONSTRUCTION & MAINTENANCE LTD,31/05/2017,"1,560.00"
Commercial Services,Property & Design (BiT),Premises-Related Expenditure,R&M -Building Other,GRANVILLE CONSTRUCTION & MAINTENANCE LTD,31/05/2017,"2,413.00"
Commercial Services,Property & Design (BiT),Premises-Related Expenditure,R&M -Building Other,GRANVILLE CONSTRUCTION & MAINTENANCE LTD,31/05/2017,341.86
Commercial Services,Property & Design (BiT),Premises-Related Expenditure,R&M -Building Other,GRANVILLE CONSTRUCTION & MAINTENANCE LTD,10/05/2017,120.56
Commercial Services,Property & Design (BiT),Premises-Related Expenditure,R&M -Building Other,NOBRIDGE LTD,09/05/2017,"2,025.00"
Commercial Services,Property & Design (BiT),Premises-Related Expenditure,R&M -Building Other,PROKILL UK LIMITED,31/05/2017,150.00
Commercial Services,Property & Design (BiT),Premises-Related Expenditure,R&M -Building Other,STEPHEN P WALES LTD,23/05/2017,210.00
Commercial Services,Property & Design (BiT),Premises-Related Expenditure,Water Rates,WATER PLUS FORMERLY SEVERN TRENT WATER LTD,16/05/2017,850.43
Commercial Services,Property & Design (BiT),Premises-Related Expenditure,Electricity,West Mercia Energy (WME),02/05/2017,123.46
Commercial Services,Property & Design (BiT),Premises-Related Expenditure,Electricity,West Mercia Energy (WME),02/05/2017,120.03
Commercial Services,Property & Design (BiT),Premises-Related Expenditure,Electricity,West Mercia Energy (WME),02/05/2017,-114.15
Commercial Services,Property & Design (BiT),Premises-Related Expenditure,Electricity,West Mercia Energy (WME),02/05/2017,127.06
Commercial Services,Property & Design (BiT),Premises-Related Expenditure,Electricity,West Mercia Energy (WME),15/05/2017,989.81
Commercial Services,Property & Design (BiT),Premises-Related Expenditure,Electricity,West Mercia Energy (WME),15/05/2017,"1,531.69"
Commercial Services,Property & Design (BiT),Premises-Related Expenditure,Electricity,West Mercia Energy (WME),15/05/2017,"1,843.84"
Commercial Services,Property & Design (BiT),Premises-Related Expenditure,Electricity,West Mercia Energy (WME),15/05/2017,"1,988.16"
Commercial Services,Property & Design (BiT),Premises-Related Expenditure,Electricity,West Mercia Energy (WME),15/05/2017,"2,162.20"
Commercial Services,Property & Design (BiT),Premises-Related Expenditure,Electricity,West Mercia Energy (WME),15/05/2017,"1,780.66"
Commercial Services,Property & Design (BiT),Premises-Related Expenditure,Electricity,West Mercia Energy (WME),15/05/2017,314.64
Commercial Services,Property & Design (BiT),Premises-Related Expenditure,R&M -Building Other,WREKIN DRAIN SERVICES LTD,31/05/2017,170.00
Commercial Services,Property & Design (BiT),Capital Expenditure,Payments to Contractor,AST FLOORCOVERINGS LTD,05/05/2017,"3,920.55"
Commercial Services,Property & Design (BiT),Capital Expenditure,Payments to Contractor,DMW ENVIRONMENTAL SAFETY LTD,30/05/2017,875.00
Commercial Services,Property & Design (BiT),Capital Expenditure,Payments to Contractor,GRANVILLE CONSTRUCTION & MAINTENANCE LTD,16/05/2017,"1,095.60"
Commercial Services,Property & Design (BiT),Capital Expenditure,Payments to Contractor,UNITRON SYSTEMS & DEVELOPMENT LIMITED,23/05/2017,460.00
Commercial Services,Property & Design (BiT),Capital Expenditure,Payments to Contractor,WREKIN SERVICES LTD,23/05/2017,532.80
Commercial Services,Property & Design (BiT),Capital Expenditure,Payments to Contractor,Ability Lifts Limited,26/05/2017,"6,247.50"
Commercial Services,Property & Design (BiT),Capital Expenditure,Payments to Contractor,Ability Lifts Limited,26/05/2017,638.00
Commercial Services,Property & Design (BiT),Capital Expenditure,Payments to Contractor,Ability Lifts Limited,26/05/2017,"9,096.00"
Commercial Services,Property & Design (BiT),Capital Expenditure,Payments to Contractor,VPS (UK) LTD,15/05/2017,169.08
Commercial Services,Property & Design (BiT),Capital Expenditure,Payments to Contractor,VPS (UK) LTD,15/05/2017,211.35
Commercial Services,Property & Design (BiT),Capital Expenditure,Payments to Contractor,VPS (UK) LTD,15/05/2017,211.35
Commercial Services,Property & Design (BiT),Capital Expenditure,Payments to Contractor,VPS (UK) LTD,15/05/2017,169.08
Commercial Services,Property & Design (BiT),Capital Expenditure,Payments to Contractor,VPS (UK) LTD,15/05/2017,169.08
Commercial Services,Property & Design (BiT),Capital Expenditure,Payments to Contractor,VPS (UK) LTD,15/05/2017,211.35
Commercial Services,Property & Design (BiT),Capital Expenditure,Payments to Contractor,VPS (UK) LTD,15/05/2017,169.08
Commercial Services,Property & Design (BiT),Capital Expenditure,Payments to Contractor,Rollalong Ltd,23/05/2017,"17,496.13"
Commercial Services,Sport & Leisure,Employees,Training Expenses,QUALSAFE.COM,18/05/2017,402.50
Commercial Services,Sport & Leisure,Premises-Related Expenditure,R&M -Building Other,COOL SERVICES LTD,23/05/2017,125.00
Commercial Services,Sport & Leisure,Premises-Related Expenditure,Non Domestic Rates,SHROPSHIRE COUNCIL,15/05/2017,"1,231.11"
Commercial Services,Sport & Leisure,Premises-Related Expenditure,Non Domestic Rates,SHROPSHIRE COUNCIL,18/05/2017,"1,231.11"
Commercial Services,Sport & Leisure,Supplies & Services,Provisions,Aroma Tea & Coffee Merchants,19/05/2017,161.58
Commercial Services,Sport & Leisure,Supplies & Services,Provisions,BIKOLD,11/05/2017,133.92
Commercial Services,Sport & Leisure,Supplies & Services,Provisions,BIKOLD,11/05/2017,188.23
Commercial Services,Sport & Leisure,Supplies & Services,Provisions,BIKOLD,11/05/2017,241.27
Commercial Services,Sport & Leisure,Supplies & Services,Provisions,BIKOLD,26/05/2017,234.32
Commercial Services,Sport & Leisure,Supplies & Services,Provisions,BIKOLD,15/05/2017,155.83
Commercial Services,Sport & Leisure,Supplies & Services,Provisions,BIKOLD,15/05/2017,165.51
Commercial Services,Sport & Leisure,Supplies & Services,Provisions,BIKOLD,15/05/2017,143.93
Commercial Services,Sport & Leisure,Supplies & Services,Provisions,BIKOLD,05/05/2017,167.98
Commercial Services,Sport & Leisure,Supplies & Services,Provisions,BIKOLD,05/05/2017,139.79
Commercial Services,Sport & Leisure,Supplies & Services,Provisions,BIKOLD,24/05/2017,141.87
Commercial Services,Sport & Leisure,Supplies & Services,Provisions,ROWLANDS & COMPANY,08/05/2017,138.85
Commercial Services,Sport & Leisure,Supplies & Services,Provisions,ROWLANDS & COMPANY,08/05/2017,110.89
Commercial Services,Sport & Leisure,Supplies & Services,Provisions,ROWLANDS & COMPANY,08/05/2017,175.47
Commercial Services,Sport & Leisure,Supplies & Services,Provisions,ROWLANDS & COMPANY,19/05/2017,162.30
Commercial Services,Sport & Leisure,Supplies & Services,Holidays & Outings,Vegware,19/05/2017,310.08
Commercial Services,Sport & Leisure,Employees,Training Expenses,CIEH,23/05/2017,121.25
Commercial Services,Sport & Leisure,Employees,Training Expenses,QUALSAFE.COM,19/05/2017,402.50
Commercial Services,Sport & Leisure,Supplies & Services,Provisions,BIKOLD,26/05/2017,111.61
Commercial Services,Sport & Leisure,Supplies & Services,Provisions,BIKOLD,15/05/2017,120.60
Commercial Services,Sport & Leisure,Supplies & Services,Provisions,BIKOLD,24/05/2017,116.14
Commercial Services,Sport & Leisure,Supplies & Services,EEC Whole Milk,JOHAL DAIRIES,08/05/2017,697.58
Commercial Services,Sport & Leisure,Supplies & Services,EEC Whole Milk,JOHAL DAIRIES,08/05/2017,"1,777.82"
Commercial Services,Sport & Leisure,Supplies & Services,EEC Whole Milk,JOHAL DAIRIES,18/05/2017,"1,687.32"
Commercial Services,Sport & Leisure,Supplies & Services,Provisions,BIKOLD,11/05/2017,205.01
Commercial Services,Sport & Leisure,Supplies & Services,Provisions,BIKOLD,11/05/2017,142.40
Commercial Services,Sport & Leisure,Supplies & Services,Provisions,BIKOLD,26/05/2017,147.72
Commercial Services,Sport & Leisure,Supplies & Services,Provisions,BIKOLD,26/05/2017,182.67
Commercial Services,Sport & Leisure,Supplies & Services,Provisions,BIKOLD,26/05/2017,231.42
Commercial Services,Sport & Leisure,Supplies & Services,Provisions,BIKOLD,15/05/2017,122.22
Commercial Services,Sport & Leisure,Supplies & Services,Provisions,BIKOLD,15/05/2017,104.16
Commercial Services,Sport & Leisure,Supplies & Services,Provisions,BIKOLD,15/05/2017,120.49
Commercial Services,Sport & Leisure,Supplies & Services,Provisions,BIKOLD,05/05/2017,106.00
Commercial Services,Sport & Leisure,Supplies & Services,Provisions,BIKOLD,05/05/2017,132.59
Commercial Services,Sport & Leisure,Supplies & Services,Provisions,BIKOLD,24/05/2017,127.13
Commercial Services,Sport & Leisure,Supplies & Services,Provisions,BIKOLD,24/05/2017,141.23
Commercial Services,Sport & Leisure,Supplies & Services,Provisions,BIKOLD,24/05/2017,100.50
Commercial Services,Sport & Leisure,Supplies & Services,Provisions,John Sheppard Catering Butchers,22/05/2017,127.39
Commercial Services,Sport & Leisure,Supplies & Services,Provisions,John Sheppard Catering Butchers,26/05/2017,131.51
Commercial Services,Sport & Leisure,Supplies & Services,Provisions,BIKOLD,11/05/2017,217.89
Commercial Services,Sport & Leisure,Supplies & Services,Provisions,BIKOLD,11/05/2017,113.74
Commercial Services,Sport & Leisure,Supplies & Services,Provisions,BIKOLD,11/05/2017,221.43
Commercial Services,Sport & Leisure,Supplies & Services,Provisions,BIKOLD,11/05/2017,128.55
Commercial Services,Sport & Leisure,Supplies & Services,Provisions,BIKOLD,11/05/2017,164.65
Commercial Services,Sport & Leisure,Supplies & Services,Provisions,BIKOLD,11/05/2017,163.37
Commercial Services,Sport & Leisure,Supplies & Services,Provisions,BIKOLD,11/05/2017,128.63
Commercial Services,Sport & Leisure,Supplies & Services,Provisions,BIKOLD,11/05/2017,181.41
Commercial Services,Sport & Leisure,Supplies & Services,Provisions,BIKOLD,11/05/2017,233.02
Commercial Services,Sport & Leisure,Supplies & Services,Provisions,BIKOLD,11/05/2017,238.86
Commercial Services,Sport & Leisure,Supplies & Services,Provisions,BIKOLD,11/05/2017,172.56
Commercial Services,Sport & Leisure,Supplies & Services,Provisions,BIKOLD,11/05/2017,134.26
Commercial Services,Sport & Leisure,Supplies & Services,Provisions,BIKOLD,11/05/2017,120.85
Commercial Services,Sport & Leisure,Supplies & Services,Provisions,BIKOLD,11/05/2017,133.98
Commercial Services,Sport & Leisure,Supplies & Services,Provisions,BIKOLD,11/05/2017,293.24
Commercial Services,Sport & Leisure,Supplies & Services,Provisions,BIKOLD,11/05/2017,130.75
Commercial Services,Sport & Leisure,Supplies & Services,Provisions,BIKOLD,11/05/2017,136.40
Commercial Services,Sport & Leisure,Supplies & Services,Provisions,BIKOLD,11/05/2017,135.33
Commercial Services,Sport & Leisure,Supplies & Services,Provisions,BIKOLD,11/05/2017,249.86
Commercial Services,Sport & Leisure,Supplies & Services,Provisions,BIKOLD,11/05/2017,222.71
Commercial Services,Sport & Leisure,Supplies & Services,Provisions,BIKOLD,11/05/2017,245.53
Commercial Services,Sport & Leisure,Supplies & Services,Provisions,BIKOLD,11/05/2017,129.68
Commercial Services,Sport & Leisure,Supplies & Services,Provisions,BIKOLD,11/05/2017,526.10
Commercial Services,Sport & Leisure,Supplies & Services,Provisions,BIKOLD,11/05/2017,101.40
Commercial Services,Sport & Leisure,Supplies & Services,Provisions,BIKOLD,11/05/2017,137.59
Commercial Services,Sport & Leisure,Supplies & Services,Provisions,BIKOLD,11/05/2017,301.64
Commercial Services,Sport & Leisure,Supplies & Services,Provisions,BIKOLD,11/05/2017,270.70
Commercial Services,Sport & Leisure,Supplies & Services,Provisions,BIKOLD,11/05/2017,348.95
Commercial Services,Sport & Leisure,Supplies & Services,Provisions,BIKOLD,11/05/2017,125.06
Commercial Services,Sport & Leisure,Supplies & Services,Provisions,BIKOLD,11/05/2017,138.73
Commercial Services,Sport & Leisure,Supplies & Services,Provisions,BIKOLD,11/05/2017,199.46
Commercial Services,Sport & Leisure,Supplies & Services,Provisions,BIKOLD,11/05/2017,-221.14
Commercial Services,Sport & Leisure,Supplies & Services,Provisions,BIKOLD,11/05/2017,251.04
Commercial Services,Sport & Leisure,Supplies & Services,Provisions,BIKOLD,11/05/2017,368.60
Commercial Services,Sport & Leisure,Supplies & Services,Provisions,BIKOLD,11/05/2017,120.51
Commercial Services,Sport & Leisure,Supplies & Services,Provisions,BIKOLD,11/05/2017,400.71
Commercial Services,Sport & Leisure,Supplies & Services,Provisions,BIKOLD,11/05/2017,219.64
Commercial Services,Sport & Leisure,Supplies & Services,Provisions,BIKOLD,11/05/2017,301.52
Commercial Services,Sport & Leisure,Supplies & Services,Provisions,BIKOLD,11/05/2017,178.75
Commercial Services,Sport & Leisure,Supplies & Services,Provisions,BIKOLD,11/05/2017,278.04
Commercial Services,Sport & Leisure,Supplies & Services,Provisions,BIKOLD,11/05/2017,306.76
Commercial Services,Sport & Leisure,Supplies & Services,Provisions,BIKOLD,11/05/2017,288.13
Commercial Services,Sport & Leisure,Supplies & Services,Provisions,BIKOLD,11/05/2017,352.33
Commercial Services,Sport & Leisure,Supplies & Services,Provisions,BIKOLD,11/05/2017,280.24
Commercial Services,Sport & Leisure,Supplies & Services,Provisions,BIKOLD,11/05/2017,176.31
Commercial Services,Sport & Leisure,Supplies & Services,Provisions,BIKOLD,11/05/2017,177.70
Commercial Services,Sport & Leisure,Supplies & Services,Provisions,BIKOLD,11/05/2017,124.44
Commercial Services,Sport & Leisure,Supplies & Services,Provisions,BIKOLD,11/05/2017,273.88
Commercial Services,Sport & Leisure,Supplies & Services,Provisions,BIKOLD,11/05/2017,141.87
Commercial Services,Sport & Leisure,Supplies & Services,Provisions,BIKOLD,11/05/2017,108.47
Commercial Services,Sport & Leisure,Supplies & Services,Provisions,BIKOLD,11/05/2017,273.42
Commercial Services,Sport & Leisure,Supplies & Services,Provisions,BIKOLD,11/05/2017,176.08
Commercial Services,Sport & Leisure,Supplies & Services,Provisions,BIKOLD,11/05/2017,199.70
Commercial Services,Sport & Leisure,Supplies & Services,Provisions,BIKOLD,11/05/2017,128.98
Commercial Services,Sport & Leisure,Supplies & Services,Provisions,BIKOLD,11/05/2017,114.66
Commercial Services,Sport & Leisure,Supplies & Services,Provisions,BIKOLD,11/05/2017,105.23
Commercial Services,Sport & Leisure,Supplies & Services,Provisions,BIKOLD,11/05/2017,138.56
Commercial Services,Sport & Leisure,Supplies & Services,Provisions,BIKOLD,11/05/2017,118.75
Commercial Services,Sport & Leisure,Supplies & Services,Provisions,BIKOLD,11/05/2017,205.80
Commercial Services,Sport & Leisure,Supplies & Services,Provisions,BIKOLD,11/05/2017,270.62
Commercial Services,Sport & Leisure,Supplies & Services,Provisions,BIKOLD,11/05/2017,464.85
Commercial Services,Sport & Leisure,Supplies & Services,Provisions,BIKOLD,11/05/2017,240.05
Commercial Services,Sport & Leisure,Supplies & Services,Provisions,BIKOLD,11/05/2017,175.34
Commercial Services,Sport & Leisure,Supplies & Services,Provisions,BIKOLD,11/05/2017,367.35
Commercial Services,Sport & Leisure,Supplies & Services,Provisions,BIKOLD,11/05/2017,440.10
Commercial Services,Sport & Leisure,Supplies & Services,Provisions,BIKOLD,11/05/2017,192.88
Commercial Services,Sport & Leisure,Supplies & Services,Provisions,BIKOLD,11/05/2017,132.36
Commercial Services,Sport & Leisure,Supplies & Services,Provisions,BIKOLD,11/05/2017,431.73
Commercial Services,Sport & Leisure,Supplies & Services,Provisions,BIKOLD,11/05/2017,164.55
Commercial Services,Sport & Leisure,Supplies & Services,Provisions,BIKOLD,11/05/2017,238.42
Commercial Services,Sport & Leisure,Supplies & Services,Provisions,BIKOLD,11/05/2017,390.18
Commercial Services,Sport & Leisure,Supplies & Services,Provisions,BIKOLD,11/05/2017,115.21
Commercial Services,Sport & Leisure,Supplies & Services,Provisions,BIKOLD,11/05/2017,233.64
Commercial Services,Sport & Leisure,Supplies & Services,Provisions,BIKOLD,11/05/2017,106.12
Commercial Services,Sport & Leisure,Supplies & Services,Provisions,BIKOLD,11/05/2017,130.17
Commercial Services,Sport & Leisure,Supplies & Services,Provisions,BIKOLD,11/05/2017,115.63
Commercial Services,Sport & Leisure,Supplies & Services,Provisions,BIKOLD,11/05/2017,234.44
Commercial Services,Sport & Leisure,Supplies & Services,Provisions,BIKOLD,11/05/2017,156.75
Commercial Services,Sport & Leisure,Supplies & Services,Provisions,BIKOLD,11/05/2017,211.32
Commercial Services,Sport & Leisure,Supplies & Services,Provisions,BIKOLD,11/05/2017,177.15
Commercial Services,Sport & Leisure,Supplies & Services,Provisions,BIKOLD,26/05/2017,220.57
Commercial Services,Sport & Leisure,Supplies & Services,Provisions,BIKOLD,26/05/2017,159.24
Commercial Services,Sport & Leisure,Supplies & Services,Provisions,BIKOLD,26/05/2017,105.78
Commercial Services,Sport & Leisure,Supplies & Services,Provisions,BIKOLD,26/05/2017,109.75
Commercial Services,Sport & Leisure,Supplies & Services,Provisions,BIKOLD,26/05/2017,130.38
Commercial Services,Sport & Leisure,Supplies & Services,Provisions,BIKOLD,26/05/2017,160.69
Commercial Services,Sport & Leisure,Supplies & Services,Provisions,BIKOLD,26/05/2017,129.73
Commercial Services,Sport & Leisure,Supplies & Services,Provisions,BIKOLD,26/05/2017,255.13
Commercial Services,Sport & Leisure,Supplies & Services,Provisions,BIKOLD,26/05/2017,270.99
Commercial Services,Sport & Leisure,Supplies & Services,Provisions,BIKOLD,26/05/2017,233.04
Commercial Services,Sport & Leisure,Supplies & Services,Provisions,BIKOLD,26/05/2017,235.91
Commercial Services,Sport & Leisure,Supplies & Services,Provisions,BIKOLD,26/05/2017,139.94
Commercial Services,Sport & Leisure,Supplies & Services,Provisions,BIKOLD,26/05/2017,115.31
Commercial Services,Sport & Leisure,Supplies & Services,Provisions,BIKOLD,26/05/2017,323.70
Commercial Services,Sport & Leisure,Supplies & Services,Provisions,BIKOLD,26/05/2017,245.45
Commercial Services,Sport & Leisure,Supplies & Services,Provisions,BIKOLD,26/05/2017,110.32
Commercial Services,Sport & Leisure,Supplies & Services,Provisions,BIKOLD,26/05/2017,135.92
Commercial Services,Sport & Leisure,Supplies & Services,Provisions,BIKOLD,26/05/2017,272.37
Commercial Services,Sport & Leisure,Supplies & Services,Provisions,BIKOLD,26/05/2017,110.39
Commercial Services,Sport & Leisure,Supplies & Services,Provisions,BIKOLD,26/05/2017,204.98
Commercial Services,Sport & Leisure,Supplies & Services,Provisions,BIKOLD,26/05/2017,120.88
Commercial Services,Sport & Leisure,Supplies & Services,Provisions,BIKOLD,26/05/2017,107.79
Commercial Services,Sport & Leisure,Supplies & Services,Provisions,BIKOLD,26/05/2017,211.43
Commercial Services,Sport & Leisure,Supplies & Services,Provisions,BIKOLD,26/05/2017,162.85
Commercial Services,Sport & Leisure,Supplies & Services,Provisions,BIKOLD,26/05/2017,114.56
Commercial Services,Sport & Leisure,Supplies & Services,Provisions,BIKOLD,26/05/2017,259.77
Commercial Services,Sport & Leisure,Supplies & Services,Provisions,BIKOLD,26/05/2017,230.15
Commercial Services,Sport & Leisure,Supplies & Services,Provisions,BIKOLD,26/05/2017,282.90
Commercial Services,Sport & Leisure,Supplies & Services,Provisions,BIKOLD,26/05/2017,-133.40
Commercial Services,Sport & Leisure,Supplies & Services,Provisions,BIKOLD,26/05/2017,125.70
Commercial Services,Sport & Leisure,Supplies & Services,Provisions,BIKOLD,26/05/2017,120.33
Commercial Services,Sport & Leisure,Supplies & Services,Provisions,BIKOLD,26/05/2017,272.49
Commercial Services,Sport & Leisure,Supplies & Services,Provisions,BIKOLD,26/05/2017,129.88
Commercial Services,Sport & Leisure,Supplies & Services,Provisions,BIKOLD,26/05/2017,312.65
Commercial Services,Sport & Leisure,Supplies & Services,Provisions,BIKOLD,26/05/2017,117.11
Commercial Services,Sport & Leisure,Supplies & Services,Provisions,BIKOLD,26/05/2017,121.87
Commercial Services,Sport & Leisure,Supplies & Services,Provisions,BIKOLD,26/05/2017,171.26
Commercial Services,Sport & Leisure,Supplies & Services,Provisions,BIKOLD,26/05/2017,228.18
Commercial Services,Sport & Leisure,Supplies & Services,Provisions,BIKOLD,26/05/2017,158.11
Commercial Services,Sport & Leisure,Supplies & Services,Provisions,BIKOLD,26/05/2017,158.42
Commercial Services,Sport & Leisure,Supplies & Services,Provisions,BIKOLD,26/05/2017,194.85
Commercial Services,Sport & Leisure,Supplies & Services,Provisions,BIKOLD,26/05/2017,140.36
Commercial Services,Sport & Leisure,Supplies & Services,Provisions,BIKOLD,26/05/2017,123.16
Commercial Services,Sport & Leisure,Supplies & Services,Provisions,BIKOLD,26/05/2017,123.58
Commercial Services,Sport & Leisure,Supplies & Services,Provisions,BIKOLD,26/05/2017,167.77
Commercial Services,Sport & Leisure,Supplies & Services,Provisions,BIKOLD,26/05/2017,108.04
Commercial Services,Sport & Leisure,Supplies & Services,Provisions,BIKOLD,26/05/2017,128.75
Commercial Services,Sport & Leisure,Supplies & Services,Provisions,BIKOLD,26/05/2017,115.21
Commercial Services,Sport & Leisure,Supplies & Services,Provisions,BIKOLD,26/05/2017,239.53
Commercial Services,Sport & Leisure,Supplies & Services,Provisions,BIKOLD,26/05/2017,157.85
Commercial Services,Sport & Leisure,Supplies & Services,Provisions,BIKOLD,26/05/2017,128.83
Commercial Services,Sport & Leisure,Supplies & Services,Provisions,BIKOLD,26/05/2017,189.22
Commercial Services,Sport & Leisure,Supplies & Services,Provisions,BIKOLD,26/05/2017,140.48
Commercial Services,Sport & Leisure,Supplies & Services,Provisions,BIKOLD,26/05/2017,175.37
Commercial Services,Sport & Leisure,Supplies & Services,Provisions,BIKOLD,26/05/2017,149.74
Commercial Services,Sport & Leisure,Supplies & Services,Provisions,BIKOLD,26/05/2017,289.19
Commercial Services,Sport & Leisure,Supplies & Services,Provisions,BIKOLD,26/05/2017,272.52
Commercial Services,Sport & Leisure,Supplies & Services,Provisions,BIKOLD,26/05/2017,150.51
Commercial Services,Sport & Leisure,Supplies & Services,Provisions,BIKOLD,26/05/2017,130.06
Commercial Services,Sport & Leisure,Supplies & Services,Provisions,BIKOLD,26/05/2017,309.72
Commercial Services,Sport & Leisure,Supplies & Services,Provisions,BIKOLD,26/05/2017,137.53
Commercial Services,Sport & Leisure,Supplies & Services,Provisions,BIKOLD,26/05/2017,155.71
Commercial Services,Sport & Leisure,Supplies & Services,Provisions,BIKOLD,26/05/2017,104.55
Commercial Services,Sport & Leisure,Supplies & Services,Provisions,BIKOLD,26/05/2017,140.03
Commercial Services,Sport & Leisure,Supplies & Services,Provisions,BIKOLD,26/05/2017,254.57
Commercial Services,Sport & Leisure,Supplies & Services,Provisions,BIKOLD,26/05/2017,190.73
Commercial Services,Sport & Leisure,Supplies & Services,Provisions,BIKOLD,26/05/2017,413.63
Commercial Services,Sport & Leisure,Supplies & Services,Provisions,BIKOLD,26/05/2017,107.25
Commercial Services,Sport & Leisure,Supplies & Services,Provisions,BIKOLD,26/05/2017,181.59
Commercial Services,Sport & Leisure,Supplies & Services,Provisions,BIKOLD,26/05/2017,230.13
Commercial Services,Sport & Leisure,Supplies & Services,Provisions,BIKOLD,26/05/2017,369.61
Commercial Services,Sport & Leisure,Supplies & Services,Provisions,BIKOLD,26/05/2017,135.88
Commercial Services,Sport & Leisure,Supplies & Services,Provisions,BIKOLD,26/05/2017,132.53
Commercial Services,Sport & Leisure,Supplies & Services,Provisions,BIKOLD,26/05/2017,555.14
Commercial Services,Sport & Leisure,Supplies & Services,Provisions,BIKOLD,26/05/2017,138.14
Commercial Services,Sport & Leisure,Supplies & Services,Provisions,BIKOLD,26/05/2017,134.07
Commercial Services,Sport & Leisure,Supplies & Services,Provisions,BIKOLD,26/05/2017,126.26
Commercial Services,Sport & Leisure,Supplies & Services,Provisions,BIKOLD,26/05/2017,137.86
Commercial Services,Sport & Leisure,Supplies & Services,Provisions,BIKOLD,26/05/2017,165.33
Commercial Services,Sport & Leisure,Supplies & Services,Provisions,BIKOLD,26/05/2017,128.66
Commercial Services,Sport & Leisure,Supplies & Services,Provisions,BIKOLD,26/05/2017,100.65
Commercial Services,Sport & Leisure,Supplies & Services,Provisions,BIKOLD,26/05/2017,105.29
Commercial Services,Sport & Leisure,Supplies & Services,Provisions,BIKOLD,26/05/2017,103.43
Commercial Services,Sport & Leisure,Supplies & Services,Provisions,BIKOLD,26/05/2017,345.91
Commercial Services,Sport & Leisure,Supplies & Services,Provisions,BIKOLD,26/05/2017,267.02
Commercial Services,Sport & Leisure,Supplies & Services,Provisions,BIKOLD,26/05/2017,215.29
Commercial Services,Sport & Leisure,Supplies & Services,Provisions,BIKOLD,26/05/2017,164.71
Commercial Services,Sport & Leisure,Supplies & Services,Provisions,BIKOLD,26/05/2017,100.96
Commercial Services,Sport & Leisure,Supplies & Services,Provisions,BIKOLD,26/05/2017,-140.32
Commercial Services,Sport & Leisure,Supplies & Services,Provisions,BIKOLD,26/05/2017,310.37
Commercial Services,Sport & Leisure,Supplies & Services,Provisions,BIKOLD,15/05/2017,170.67
Commercial Services,Sport & Leisure,Supplies & Services,Provisions,BIKOLD,15/05/2017,240.63
Commercial Services,Sport & Leisure,Supplies & Services,Provisions,BIKOLD,15/05/2017,153.41
Commercial Services,Sport & Leisure,Supplies & Services,Provisions,BIKOLD,15/05/2017,127.37
Commercial Services,Sport & Leisure,Supplies & Services,Provisions,BIKOLD,15/05/2017,159.49
Commercial Services,Sport & Leisure,Supplies & Services,Provisions,BIKOLD,15/05/2017,200.41
Commercial Services,Sport & Leisure,Supplies & Services,Provisions,BIKOLD,15/05/2017,115.09
Commercial Services,Sport & Leisure,Supplies & Services,Provisions,BIKOLD,15/05/2017,259.50
Commercial Services,Sport & Leisure,Supplies & Services,Provisions,BIKOLD,15/05/2017,291.29
Commercial Services,Sport & Leisure,Supplies & Services,Provisions,BIKOLD,15/05/2017,380.31
Commercial Services,Sport & Leisure,Supplies & Services,Provisions,BIKOLD,15/05/2017,193.01
Commercial Services,Sport & Leisure,Supplies & Services,Provisions,BIKOLD,15/05/2017,145.99
Commercial Services,Sport & Leisure,Supplies & Services,Provisions,BIKOLD,15/05/2017,422.72
Commercial Services,Sport & Leisure,Supplies & Services,Provisions,BIKOLD,15/05/2017,127.96
Commercial Services,Sport & Leisure,Supplies & Services,Provisions,BIKOLD,15/05/2017,118.95
Commercial Services,Sport & Leisure,Supplies & Services,Provisions,BIKOLD,15/05/2017,307.07
Commercial Services,Sport & Leisure,Supplies & Services,Provisions,BIKOLD,15/05/2017,290.92
Commercial Services,Sport & Leisure,Supplies & Services,Provisions,BIKOLD,15/05/2017,311.19
Commercial Services,Sport & Leisure,Supplies & Services,Provisions,BIKOLD,15/05/2017,135.98
Commercial Services,Sport & Leisure,Supplies & Services,Provisions,BIKOLD,15/05/2017,271.36
Commercial Services,Sport & Leisure,Supplies & Services,Provisions,BIKOLD,15/05/2017,202.43
Commercial Services,Sport & Leisure,Supplies & Services,Provisions,BIKOLD,15/05/2017,158.75
Commercial Services,Sport & Leisure,Supplies & Services,Provisions,BIKOLD,15/05/2017,169.33
Commercial Services,Sport & Leisure,Supplies & Services,Provisions,BIKOLD,15/05/2017,130.64
Commercial Services,Sport & Leisure,Supplies & Services,Provisions,BIKOLD,15/05/2017,225.78
Commercial Services,Sport & Leisure,Supplies & Services,Provisions,BIKOLD,15/05/2017,227.83
Commercial Services,Sport & Leisure,Supplies & Services,Provisions,BIKOLD,15/05/2017,160.67
Commercial Services,Sport & Leisure,Supplies & Services,Provisions,BIKOLD,15/05/2017,222.88
Commercial Services,Sport & Leisure,Supplies & Services,Provisions,BIKOLD,15/05/2017,162.90
Commercial Services,Sport & Leisure,Supplies & Services,Provisions,BIKOLD,15/05/2017,181.71
Commercial Services,Sport & Leisure,Supplies & Services,Provisions,BIKOLD,15/05/2017,213.03
Commercial Services,Sport & Leisure,Supplies & Services,Provisions,BIKOLD,15/05/2017,126.10
Commercial Services,Sport & Leisure,Supplies & Services,Provisions,BIKOLD,15/05/2017,274.92
Commercial Services,Sport & Leisure,Supplies & Services,Provisions,BIKOLD,15/05/2017,130.20
Commercial Services,Sport & Leisure,Supplies & Services,Provisions,BIKOLD,15/05/2017,102.86
Commercial Services,Sport & Leisure,Supplies & Services,Provisions,BIKOLD,15/05/2017,108.55
Commercial Services,Sport & Leisure,Supplies & Services,Provisions,BIKOLD,15/05/2017,151.97
Commercial Services,Sport & Leisure,Supplies & Services,Provisions,BIKOLD,15/05/2017,109.92
Commercial Services,Sport & Leisure,Supplies & Services,Provisions,BIKOLD,15/05/2017,194.36
Commercial Services,Sport & Leisure,Supplies & Services,Provisions,BIKOLD,15/05/2017,157.08
Commercial Services,Sport & Leisure,Supplies & Services,Provisions,BIKOLD,15/05/2017,102.66
Commercial Services,Sport & Leisure,Supplies & Services,Provisions,BIKOLD,15/05/2017,135.75
Commercial Services,Sport & Leisure,Supplies & Services,Provisions,BIKOLD,15/05/2017,248.01
Commercial Services,Sport & Leisure,Supplies & Services,Provisions,BIKOLD,15/05/2017,142.95
Commercial Services,Sport & Leisure,Supplies & Services,Provisions,BIKOLD,15/05/2017,107.37
Commercial Services,Sport & Leisure,Supplies & Services,Provisions,BIKOLD,15/05/2017,143.02
Commercial Services,Sport & Leisure,Supplies & Services,Provisions,BIKOLD,15/05/2017,401.65
Commercial Services,Sport & Leisure,Supplies & Services,Provisions,BIKOLD,15/05/2017,107.54
Commercial Services,Sport & Leisure,Supplies & Services,Provisions,BIKOLD,15/05/2017,201.83
Commercial Services,Sport & Leisure,Supplies & Services,Provisions,BIKOLD,15/05/2017,136.14
Commercial Services,Sport & Leisure,Supplies & Services,Provisions,BIKOLD,15/05/2017,242.54
Commercial Services,Sport & Leisure,Supplies & Services,Provisions,BIKOLD,15/05/2017,215.64
Commercial Services,Sport & Leisure,Supplies & Services,Provisions,BIKOLD,15/05/2017,151.46
Commercial Services,Sport & Leisure,Supplies & Services,Provisions,BIKOLD,15/05/2017,146.37
Commercial Services,Sport & Leisure,Supplies & Services,Provisions,BIKOLD,15/05/2017,167.85
Commercial Services,Sport & Leisure,Supplies & Services,Provisions,BIKOLD,15/05/2017,388.85
Commercial Services,Sport & Leisure,Supplies & Services,Provisions,BIKOLD,15/05/2017,192.62
Commercial Services,Sport & Leisure,Supplies & Services,Provisions,BIKOLD,15/05/2017,131.12
Commercial Services,Sport & Leisure,Supplies & Services,Provisions,BIKOLD,15/05/2017,318.80
Commercial Services,Sport & Leisure,Supplies & Services,Provisions,BIKOLD,15/05/2017,418.15
Commercial Services,Sport & Leisure,Supplies & Services,Provisions,BIKOLD,15/05/2017,195.30
Commercial Services,Sport & Leisure,Supplies & Services,Provisions,BIKOLD,15/05/2017,171.67
Commercial Services,Sport & Leisure,Supplies & Services,Provisions,BIKOLD,15/05/2017,131.17
Commercial Services,Sport & Leisure,Supplies & Services,Provisions,BIKOLD,15/05/2017,226.51
Commercial Services,Sport & Leisure,Supplies & Services,Provisions,BIKOLD,15/05/2017,186.87
Commercial Services,Sport & Leisure,Supplies & Services,Provisions,BIKOLD,15/05/2017,157.11
Commercial Services,Sport & Leisure,Supplies & Services,Provisions,BIKOLD,15/05/2017,226.79
Commercial Services,Sport & Leisure,Supplies & Services,Provisions,BIKOLD,15/05/2017,132.81
Commercial Services,Sport & Leisure,Supplies & Services,Provisions,BIKOLD,15/05/2017,119.44
Commercial Services,Sport & Leisure,Supplies & Services,Provisions,BIKOLD,15/05/2017,365.36
Commercial Services,Sport & Leisure,Supplies & Services,Provisions,BIKOLD,15/05/2017,156.78
Commercial Services,Sport & Leisure,Supplies & Services,Provisions,BIKOLD,15/05/2017,118.91
Commercial Services,Sport & Leisure,Supplies & Services,Provisions,BIKOLD,15/05/2017,103.48
Commercial Services,Sport & Leisure,Supplies & Services,Provisions,BIKOLD,15/05/2017,189.57
Commercial Services,Sport & Leisure,Supplies & Services,Provisions,BIKOLD,15/05/2017,297.16
Commercial Services,Sport & Leisure,Supplies & Services,Provisions,BIKOLD,15/05/2017,157.38
Commercial Services,Sport & Leisure,Supplies & Services,Provisions,BIKOLD,15/05/2017,237.29
Commercial Services,Sport & Leisure,Supplies & Services,Provisions,BIKOLD,15/05/2017,157.16
Commercial Services,Sport & Leisure,Supplies & Services,Provisions,BIKOLD,15/05/2017,234.05
Commercial Services,Sport & Leisure,Supplies & Services,Provisions,BIKOLD,15/05/2017,123.01
Commercial Services,Sport & Leisure,Supplies & Services,Provisions,BIKOLD,15/05/2017,176.26
Commercial Services,Sport & Leisure,Supplies & Services,Provisions,BIKOLD,15/05/2017,141.02
Commercial Services,Sport & Leisure,Supplies & Services,Provisions,BIKOLD,15/05/2017,291.72
Commercial Services,Sport & Leisure,Supplies & Services,Provisions,BIKOLD,15/05/2017,159.44
Commercial Services,Sport & Leisure,Supplies & Services,Provisions,BIKOLD,15/05/2017,170.89
Commercial Services,Sport & Leisure,Supplies & Services,Provisions,BIKOLD,15/05/2017,309.53
Commercial Services,Sport & Leisure,Supplies & Services,Provisions,BIKOLD,15/05/2017,112.02
Commercial Services,Sport & Leisure,Supplies & Services,Provisions,BIKOLD,15/05/2017,379.97
Commercial Services,Sport & Leisure,Supplies & Services,Provisions,BIKOLD,15/05/2017,155.56
Commercial Services,Sport & Leisure,Supplies & Services,Provisions,BIKOLD,15/05/2017,181.11
Commercial Services,Sport & Leisure,Supplies & Services,Provisions,BIKOLD,15/05/2017,105.26
Commercial Services,Sport & Leisure,Supplies & Services,Provisions,BIKOLD,15/05/2017,171.51
Commercial Services,Sport & Leisure,Supplies & Services,Provisions,BIKOLD,15/05/2017,241.68
Commercial Services,Sport & Leisure,Supplies & Services,Provisions,BIKOLD,15/05/2017,231.40
Commercial Services,Sport & Leisure,Supplies & Services,Provisions,BIKOLD,15/05/2017,329.77
Commercial Services,Sport & Leisure,Supplies & Services,Provisions,BIKOLD,15/05/2017,188.81
Commercial Services,Sport & Leisure,Supplies & Services,Provisions,BIKOLD,15/05/2017,212.66
Commercial Services,Sport & Leisure,Supplies & Services,Provisions,BIKOLD,15/05/2017,304.67
Commercial Services,Sport & Leisure,Supplies & Services,Provisions,BIKOLD,15/05/2017,146.07
Commercial Services,Sport & Leisure,Supplies & Services,Provisions,BIKOLD,15/05/2017,229.92
Commercial Services,Sport & Leisure,Supplies & Services,Provisions,BIKOLD,15/05/2017,222.63
Commercial Services,Sport & Leisure,Supplies & Services,Provisions,BIKOLD,15/05/2017,116.71
Commercial Services,Sport & Leisure,Supplies & Services,Provisions,BIKOLD,15/05/2017,279.30
Commercial Services,Sport & Leisure,Supplies & Services,Provisions,BIKOLD,15/05/2017,163.13
Commercial Services,Sport & Leisure,Supplies & Services,Provisions,BIKOLD,05/05/2017,247.47
Commercial Services,Sport & Leisure,Supplies & Services,Provisions,BIKOLD,05/05/2017,201.21
Commercial Services,Sport & Leisure,Supplies & Services,Provisions,BIKOLD,05/05/2017,147.41
Commercial Services,Sport & Leisure,Supplies & Services,Provisions,BIKOLD,05/05/2017,351.87
Commercial Services,Sport & Leisure,Supplies & Services,Provisions,BIKOLD,05/05/2017,184.69
Commercial Services,Sport & Leisure,Supplies & Services,Provisions,BIKOLD,05/05/2017,120.46
Commercial Services,Sport & Leisure,Supplies & Services,Provisions,BIKOLD,05/05/2017,298.16
Commercial Services,Sport & Leisure,Supplies & Services,Provisions,BIKOLD,05/05/2017,138.39
Commercial Services,Sport & Leisure,Supplies & Services,Provisions,BIKOLD,05/05/2017,327.65
Commercial Services,Sport & Leisure,Supplies & Services,Provisions,BIKOLD,05/05/2017,319.91
Commercial Services,Sport & Leisure,Supplies & Services,Provisions,BIKOLD,05/05/2017,253.01
Commercial Services,Sport & Leisure,Supplies & Services,Provisions,BIKOLD,05/05/2017,142.58
Commercial Services,Sport & Leisure,Supplies & Services,Provisions,BIKOLD,05/05/2017,432.35
Commercial Services,Sport & Leisure,Supplies & Services,Provisions,BIKOLD,05/05/2017,333.32
Commercial Services,Sport & Leisure,Supplies & Services,Provisions,BIKOLD,05/05/2017,181.09
Commercial Services,Sport & Leisure,Supplies & Services,Provisions,BIKOLD,05/05/2017,196.60
Commercial Services,Sport & Leisure,Supplies & Services,Provisions,BIKOLD,05/05/2017,340.18
Commercial Services,Sport & Leisure,Supplies & Services,Provisions,BIKOLD,05/05/2017,165.71
Commercial Services,Sport & Leisure,Supplies & Services,Provisions,BIKOLD,05/05/2017,110.41
Commercial Services,Sport & Leisure,Supplies & Services,Provisions,BIKOLD,05/05/2017,189.17
Commercial Services,Sport & Leisure,Supplies & Services,Provisions,BIKOLD,05/05/2017,123.42
Commercial Services,Sport & Leisure,Supplies & Services,Provisions,BIKOLD,05/05/2017,111.61
Commercial Services,Sport & Leisure,Supplies & Services,Provisions,BIKOLD,05/05/2017,103.95
Commercial Services,Sport & Leisure,Supplies & Services,Provisions,BIKOLD,05/05/2017,456.69
Commercial Services,Sport & Leisure,Supplies & Services,Provisions,BIKOLD,05/05/2017,258.03
Commercial Services,Sport & Leisure,Supplies & Services,Provisions,BIKOLD,05/05/2017,407.24
Commercial Services,Sport & Leisure,Supplies & Services,Provisions,BIKOLD,05/05/2017,152.87
Commercial Services,Sport & Leisure,Supplies & Services,Provisions,BIKOLD,05/05/2017,234.31
Commercial Services,Sport & Leisure,Supplies & Services,Provisions,BIKOLD,05/05/2017,310.63
Commercial Services,Sport & Leisure,Supplies & Services,Provisions,BIKOLD,05/05/2017,340.09
Commercial Services,Sport & Leisure,Supplies & Services,Provisions,BIKOLD,05/05/2017,138.74
Commercial Services,Sport & Leisure,Supplies & Services,Provisions,BIKOLD,05/05/2017,432.97
Commercial Services,Sport & Leisure,Supplies & Services,Provisions,BIKOLD,05/05/2017,206.67
Commercial Services,Sport & Leisure,Supplies & Services,Provisions,BIKOLD,05/05/2017,267.05
Commercial Services,Sport & Leisure,Supplies & Services,Provisions,BIKOLD,05/05/2017,127.94
Commercial Services,Sport & Leisure,Supplies & Services,Provisions,BIKOLD,05/05/2017,298.85
Commercial Services,Sport & Leisure,Supplies & Services,Provisions,BIKOLD,05/05/2017,163.45
Commercial Services,Sport & Leisure,Supplies & Services,Provisions,BIKOLD,05/05/2017,349.29
Commercial Services,Sport & Leisure,Supplies & Services,Provisions,BIKOLD,05/05/2017,105.46
Commercial Services,Sport & Leisure,Supplies & Services,Provisions,BIKOLD,05/05/2017,111.01
Commercial Services,Sport & Leisure,Supplies & Services,Provisions,BIKOLD,05/05/2017,149.03
Commercial Services,Sport & Leisure,Supplies & Services,Provisions,BIKOLD,05/05/2017,322.62
Commercial Services,Sport & Leisure,Supplies & Services,Provisions,BIKOLD,05/05/2017,242.95
Commercial Services,Sport & Leisure,Supplies & Services,Provisions,BIKOLD,05/05/2017,129.83
Commercial Services,Sport & Leisure,Supplies & Services,Provisions,BIKOLD,05/05/2017,345.64
Commercial Services,Sport & Leisure,Supplies & Services,Provisions,BIKOLD,05/05/2017,362.08
Commercial Services,Sport & Leisure,Supplies & Services,Provisions,BIKOLD,05/05/2017,193.13
Commercial Services,Sport & Leisure,Supplies & Services,Provisions,BIKOLD,05/05/2017,172.45
Commercial Services,Sport & Leisure,Supplies & Services,Provisions,BIKOLD,05/05/2017,184.12
Commercial Services,Sport & Leisure,Supplies & Services,Provisions,BIKOLD,05/05/2017,-185.65
Commercial Services,Sport & Leisure,Supplies & Services,Provisions,BIKOLD,05/05/2017,213.83
Commercial Services,Sport & Leisure,Supplies & Services,Provisions,BIKOLD,05/05/2017,134.65
Commercial Services,Sport & Leisure,Supplies & Services,Provisions,BIKOLD,05/05/2017,404.29
Commercial Services,Sport & Leisure,Supplies & Services,Provisions,BIKOLD,05/05/2017,314.51
Commercial Services,Sport & Leisure,Supplies & Services,Provisions,BIKOLD,05/05/2017,661.52
Commercial Services,Sport & Leisure,Supplies & Services,Provisions,BIKOLD,05/05/2017,116.37
Commercial Services,Sport & Leisure,Supplies & Services,Provisions,BIKOLD,05/05/2017,165.24
Commercial Services,Sport & Leisure,Supplies & Services,Provisions,BIKOLD,05/05/2017,259.95
Commercial Services,Sport & Leisure,Supplies & Services,Provisions,BIKOLD,05/05/2017,449.09
Commercial Services,Sport & Leisure,Supplies & Services,Provisions,BIKOLD,05/05/2017,324.95
Commercial Services,Sport & Leisure,Supplies & Services,Provisions,BIKOLD,05/05/2017,159.78
Commercial Services,Sport & Leisure,Supplies & Services,Provisions,BIKOLD,05/05/2017,430.29
Commercial Services,Sport & Leisure,Supplies & Services,Provisions,BIKOLD,05/05/2017,245.20
Commercial Services,Sport & Leisure,Supplies & Services,Provisions,BIKOLD,05/05/2017,158.40
Commercial Services,Sport & Leisure,Supplies & Services,Provisions,BIKOLD,05/05/2017,167.94
Commercial Services,Sport & Leisure,Supplies & Services,Provisions,BIKOLD,05/05/2017,135.37
Commercial Services,Sport & Leisure,Supplies & Services,Provisions,BIKOLD,05/05/2017,294.27
Commercial Services,Sport & Leisure,Supplies & Services,Provisions,BIKOLD,05/05/2017,172.94
Commercial Services,Sport & Leisure,Supplies & Services,Provisions,BIKOLD,05/05/2017,149.11
Commercial Services,Sport & Leisure,Supplies & Services,Provisions,BIKOLD,05/05/2017,214.94
Commercial Services,Sport & Leisure,Supplies & Services,Provisions,BIKOLD,05/05/2017,375.31
Commercial Services,Sport & Leisure,Supplies & Services,Provisions,BIKOLD,05/05/2017,158.03
Commercial Services,Sport & Leisure,Supplies & Services,Provisions,BIKOLD,05/05/2017,324.89
Commercial Services,Sport & Leisure,Supplies & Services,Provisions,BIKOLD,05/05/2017,291.47
Commercial Services,Sport & Leisure,Supplies & Services,Provisions,BIKOLD,05/05/2017,385.49
Commercial Services,Sport & Leisure,Supplies & Services,Provisions,BIKOLD,05/05/2017,-337.68
Commercial Services,Sport & Leisure,Supplies & Services,Provisions,BIKOLD,05/05/2017,263.56
Commercial Services,Sport & Leisure,Supplies & Services,Provisions,BIKOLD,05/05/2017,101.10
Commercial Services,Sport & Leisure,Supplies & Services,Provisions,BIKOLD,05/05/2017,312.35
Commercial Services,Sport & Leisure,Supplies & Services,Provisions,BIKOLD,05/05/2017,554.50
Commercial Services,Sport & Leisure,Supplies & Services,Provisions,BIKOLD,05/05/2017,274.19
Commercial Services,Sport & Leisure,Supplies & Services,Provisions,BIKOLD,05/05/2017,152.05
Commercial Services,Sport & Leisure,Supplies & Services,Provisions,BIKOLD,05/05/2017,178.31
Commercial Services,Sport & Leisure,Supplies & Services,Provisions,BIKOLD,05/05/2017,148.08
Commercial Services,Sport & Leisure,Supplies & Services,Provisions,BIKOLD,05/05/2017,-294.79
Commercial Services,Sport & Leisure,Supplies & Services,Provisions,BIKOLD,05/05/2017,486.27
Commercial Services,Sport & Leisure,Supplies & Services,Provisions,BIKOLD,05/05/2017,173.16
Commercial Services,Sport & Leisure,Supplies & Services,Provisions,BIKOLD,05/05/2017,175.45
Commercial Services,Sport & Leisure,Supplies & Services,Provisions,BIKOLD,05/05/2017,449.26
Commercial Services,Sport & Leisure,Supplies & Services,Provisions,BIKOLD,05/05/2017,126.11
Commercial Services,Sport & Leisure,Supplies & Services,Provisions,BIKOLD,05/05/2017,432.44
Commercial Services,Sport & Leisure,Supplies & Services,Provisions,BIKOLD,05/05/2017,271.85
Commercial Services,Sport & Leisure,Supplies & Services,Provisions,BIKOLD,05/05/2017,210.49
Commercial Services,Sport & Leisure,Supplies & Services,Provisions,BIKOLD,05/05/2017,268.52
Commercial Services,Sport & Leisure,Supplies & Services,Provisions,BIKOLD,05/05/2017,206.80
Commercial Services,Sport & Leisure,Supplies & Services,Provisions,BIKOLD,05/05/2017,157.10
Commercial Services,Sport & Leisure,Supplies & Services,Provisions,BIKOLD,05/05/2017,159.69
Commercial Services,Sport & Leisure,Supplies & Services,Provisions,BIKOLD,05/05/2017,144.78
Commercial Services,Sport & Leisure,Supplies & Services,Provisions,BIKOLD,05/05/2017,337.68
Commercial Services,Sport & Leisure,Supplies & Services,Provisions,BIKOLD,05/05/2017,238.40
Commercial Services,Sport & Leisure,Supplies & Services,Provisions,BIKOLD,05/05/2017,155.11
Commercial Services,Sport & Leisure,Supplies & Services,Provisions,BIKOLD,05/05/2017,123.35
Commercial Services,Sport & Leisure,Supplies & Services,Provisions,BIKOLD,05/05/2017,190.43
Commercial Services,Sport & Leisure,Supplies & Services,Provisions,BIKOLD,05/05/2017,470.82
Commercial Services,Sport & Leisure,Supplies & Services,Provisions,BIKOLD,05/05/2017,347.16
Commercial Services,Sport & Leisure,Supplies & Services,Provisions,BIKOLD,05/05/2017,181.32
Commercial Services,Sport & Leisure,Supplies & Services,Provisions,BIKOLD,05/05/2017,288.81
Commercial Services,Sport & Leisure,Supplies & Services,Provisions,BIKOLD,05/05/2017,153.67
Commercial Services,Sport & Leisure,Supplies & Services,Provisions,BIKOLD,05/05/2017,202.82
Commercial Services,Sport & Leisure,Supplies & Services,Provisions,BIKOLD,05/05/2017,143.62
Commercial Services,Sport & Leisure,Supplies & Services,Provisions,BIKOLD,05/05/2017,258.94
Commercial Services,Sport & Leisure,Supplies & Services,Provisions,BIKOLD,05/05/2017,145.60
Commercial Services,Sport & Leisure,Supplies & Services,Provisions,BIKOLD,05/05/2017,118.06
Commercial Services,Sport & Leisure,Supplies & Services,Provisions,BIKOLD,05/05/2017,192.32
Commercial Services,Sport & Leisure,Supplies & Services,Provisions,BIKOLD,05/05/2017,110.62
Commercial Services,Sport & Leisure,Supplies & Services,Provisions,BIKOLD,05/05/2017,108.47
Commercial Services,Sport & Leisure,Supplies & Services,Provisions,BIKOLD,05/05/2017,139.88
Commercial Services,Sport & Leisure,Supplies & Services,Provisions,BIKOLD,05/05/2017,168.15
Commercial Services,Sport & Leisure,Supplies & Services,Provisions,BIKOLD,05/05/2017,159.53
Commercial Services,Sport & Leisure,Supplies & Services,Provisions,BIKOLD,05/05/2017,211.50
Commercial Services,Sport & Leisure,Supplies & Services,Provisions,BIKOLD,05/05/2017,128.11
Commercial Services,Sport & Leisure,Supplies & Services,Provisions,BIKOLD,05/05/2017,435.83
Commercial Services,Sport & Leisure,Supplies & Services,Provisions,BIKOLD,05/05/2017,200.70
Commercial Services,Sport & Leisure,Supplies & Services,Provisions,BIKOLD,05/05/2017,287.27
Commercial Services,Sport & Leisure,Supplies & Services,Provisions,BIKOLD,05/05/2017,173.19
Commercial Services,Sport & Leisure,Supplies & Services,Provisions,BIKOLD,05/05/2017,120.36
Commercial Services,Sport & Leisure,Supplies & Services,Provisions,BIKOLD,05/05/2017,149.49
Commercial Services,Sport & Leisure,Supplies & Services,Provisions,BIKOLD,05/05/2017,102.30
Commercial Services,Sport & Leisure,Supplies & Services,Provisions,BIKOLD,05/05/2017,251.21
Commercial Services,Sport & Leisure,Supplies & Services,Provisions,BIKOLD,05/05/2017,160.11
Commercial Services,Sport & Leisure,Supplies & Services,Provisions,BIKOLD,05/05/2017,221.14
Commercial Services,Sport & Leisure,Supplies & Services,Provisions,BIKOLD,05/05/2017,194.66
Commercial Services,Sport & Leisure,Supplies & Services,Provisions,BIKOLD,05/05/2017,321.65
Commercial Services,Sport & Leisure,Supplies & Services,Provisions,BIKOLD,05/05/2017,243.68
Commercial Services,Sport & Leisure,Supplies & Services,Provisions,BIKOLD,05/05/2017,269.76
Commercial Services,Sport & Leisure,Supplies & Services,Provisions,BIKOLD,05/05/2017,351.51
Commercial Services,Sport & Leisure,Supplies & Services,Provisions,BIKOLD,05/05/2017,103.12
Commercial Services,Sport & Leisure,Supplies & Services,Provisions,BIKOLD,05/05/2017,164.69
Commercial Services,Sport & Leisure,Supplies & Services,Provisions,BIKOLD,05/05/2017,415.66
Commercial Services,Sport & Leisure,Supplies & Services,Provisions,BIKOLD,05/05/2017,153.44
Commercial Services,Sport & Leisure,Supplies & Services,Provisions,BIKOLD,05/05/2017,215.67
Commercial Services,Sport & Leisure,Supplies & Services,Provisions,BIKOLD,05/05/2017,215.23
Commercial Services,Sport & Leisure,Supplies & Services,Provisions,BIKOLD,05/05/2017,303.32
Commercial Services,Sport & Leisure,Supplies & Services,Provisions,BIKOLD,05/05/2017,164.89
Commercial Services,Sport & Leisure,Supplies & Services,Provisions,BIKOLD,05/05/2017,169.18
Commercial Services,Sport & Leisure,Supplies & Services,Provisions,BIKOLD,05/05/2017,231.97
Commercial Services,Sport & Leisure,Supplies & Services,Provisions,BIKOLD,05/05/2017,280.42
Commercial Services,Sport & Leisure,Supplies & Services,Provisions,BIKOLD,05/05/2017,332.01
Commercial Services,Sport & Leisure,Supplies & Services,Provisions,BIKOLD,05/05/2017,116.41
Commercial Services,Sport & Leisure,Supplies & Services,Provisions,BIKOLD,05/05/2017,162.57
Commercial Services,Sport & Leisure,Supplies & Services,Provisions,BIKOLD,24/05/2017,153.76
Commercial Services,Sport & Leisure,Supplies & Services,Provisions,BIKOLD,24/05/2017,110.60
Commercial Services,Sport & Leisure,Supplies & Services,Provisions,BIKOLD,24/05/2017,161.07
Commercial Services,Sport & Leisure,Supplies & Services,Provisions,BIKOLD,24/05/2017,103.32
Commercial Services,Sport & Leisure,Supplies & Services,Provisions,BIKOLD,24/05/2017,108.49
Commercial Services,Sport & Leisure,Supplies & Services,Provisions,BIKOLD,24/05/2017,121.89
Commercial Services,Sport & Leisure,Supplies & Services,Provisions,BIKOLD,24/05/2017,218.35
Commercial Services,Sport & Leisure,Supplies & Services,Provisions,BIKOLD,24/05/2017,173.81
Commercial Services,Sport & Leisure,Supplies & Services,Provisions,BIKOLD,24/05/2017,148.65
Commercial Services,Sport & Leisure,Supplies & Services,Provisions,BIKOLD,24/05/2017,104.89
Commercial Services,Sport & Leisure,Supplies & Services,Provisions,BIKOLD,24/05/2017,299.58
Commercial Services,Sport & Leisure,Supplies & Services,Provisions,BIKOLD,24/05/2017,114.61
Commercial Services,Sport & Leisure,Supplies & Services,Provisions,BIKOLD,24/05/2017,241.99
Commercial Services,Sport & Leisure,Supplies & Services,Provisions,BIKOLD,24/05/2017,177.24
Commercial Services,Sport & Leisure,Supplies & Services,Provisions,BIKOLD,24/05/2017,114.49
Commercial Services,Sport & Leisure,Supplies & Services,Provisions,BIKOLD,24/05/2017,151.66
Commercial Services,Sport & Leisure,Supplies & Services,Provisions,BIKOLD,24/05/2017,303.97
Commercial Services,Sport & Leisure,Supplies & Services,Provisions,BIKOLD,24/05/2017,199.13
Commercial Services,Sport & Leisure,Supplies & Services,Provisions,BIKOLD,24/05/2017,309.80
Commercial Services,Sport & Leisure,Supplies & Services,Provisions,BIKOLD,24/05/2017,123.46
Commercial Services,Sport & Leisure,Supplies & Services,Provisions,BIKOLD,24/05/2017,181.17
